{"text_format":"1","workbook":"xlsx","n_sheets":26,"sheets":["INICIO","Estructura_Planeación_Estr","Mapa_EstraInstitucional","listas","Indicadores_PEI_2023-2026","Indicadores","Integración_PAA","PINAR","Plan_Adquisiciones ","Plan_de_Vacantes","Plan_de_Previsión","PETH","PIC","Plan_de_Incentivos","PSST","PAAC","Riesgos","Trámites","Rendición_de_Cuentas","Servicio_al_Ciudadano","Transparencia","Iniciativas_Adicionales","Tratamiento_de_riesgos","PETI","Seguridad_de_Información","Plan de Accion Institu"],"not_rendered":{"charts":0,"images":25,"macros":1,"external_links":1,"defined_names":38,"comments":6,"pivot_tables":0},"unopened":[],"bounds":{"document_bytes":16777216,"sheet_cells":100000,"rows_first":2000,"rows_last":500,"rows_between":2000,"halvings":0,"cell_chars":16384,"cell_head_chars":4096},"cells_cut":0,"cells_raw":0,"read":"whole","date_system":"1900"}

{"sheet":"INICIO","index":0,"n_rows":0,"n_cols":0,"rows_kept":0,"cut":false,"hidden":false,"merged":[]}

{"sheet":"Estructura_Planeación_Estr","index":1,"n_rows":0,"n_cols":0,"rows_kept":0,"cut":false,"hidden":false,"merged":[]}

{"sheet":"Mapa_EstraInstitucional","index":2,"n_rows":9,"n_cols":2,"rows_kept":9,"cut":false,"hidden":false,"merged":[[3,1,3,12],[7,1,7,14],[4,0,4,15],[8,1,8,14]]}
[]
[]
[]
[]
["Versión 1 aprobada en el Comité Institucional de Gestión y Desempeño del 23 de diciembre de 2022"]
[]
[]
[null,"VISIÓN"]
[null,"En el año 2026, nos consolidaremos como el Ministerio que lidera la macroeconomía con un enfoque responsable y a la vez distributivo, esto se soporta con la puesta en marcha de las estrategias y políticas de gestión pública nacional y territorial formuladas para la igualdad y la justicia social, la inclusión financiera, la transición exportadora y energética."]

{"sheet":"listas","index":3,"n_rows":31,"n_cols":14,"rows_kept":31,"cut":false,"hidden":true,"merged":[]}
[]
[null,"Dimensión","Política MIPG","Fuente de Información de la Tarea","Componente PAAC","Subcomponente PAAC","Fuente de Financiación","Recursos necesarios para el desarrollo de la tarea","Plan Decreto 612","Eje transformacional PND 2022-2026","Objetivo ODS"]
[null,"Talento Humano","Planeación Institucional ","Cierre de brechas FURAG","1. Gestión del Riesgo de Corrupción","1.1. Política de Administración de Riesgos","Funcionamiento","Talento Humano","1.Plan Institucional de Archivos de la Entidad – PINAR","Paz Total","• Objetivo 1: Fin de la pobreza","Se cambió componente de PAAC según presentación Plan anticorrupción",null,"PLAN DE ACCIÓN ANUAL (Dto. 612 de 2018)"]
[null,"Direccionamiento Estratégico y Planeación","Gestión Presupuestal y Eficiencia del Gasto Público  ","Necesidades MHCP","2. Racionalización de trámites","1.2. Construcción del Mapa de Riesgos de Corrupción","Deuda","Financiero","2.Plan Anual de Adquisiciones","Ordenamiento del territorio alrededor del agua y justicia ambiental","•    Objetivo 2: Hambre cero",null,null,"1.Plan Institucional de Archivos de la Entidad – PINAR"]
[null,"Gestión con valores para el resultado (Ventanilla hacia afuera)","Talento Humano","Open Hacienda","3. Rendición de cuentas","1.3. Consulta y divulgación","Inversión","Tecnológico","3.Plan Anual de Vacantes","Seguridad Humana y Justicia Social","•    Objetivo 3: Salud y bienestar",null,null,"2.Plan Anual de Adquisiciones"]
[null,"Gestión con valores para el resultado (Ventanilla hacia adentro)","Integridad","N/A","4. Servicio al Ciudadano","1.4. Monitoreo y revisión","Funcionamiento e  Inversión","Fisico","4.Plan de Previsión de Recursos Humanos","Derecho Humano a la Alimentación","•    Objetivo 4: Educación de calidad","Se cambió componente de PAAC según presentación Plan anticorrupción",null,"3.Plan Anual de Vacantes"]
[null,"Gestión con valores para el resultado (Ventanilla hacia afuera-hacia adentro)","Transparencia, Acceso a la Información Pública y Lucha Contra la Corrupción","Observaciones DAFP","5. Transparencia y Acceso a la Información","1.5. Seguimiento",null,null,"5.Plan Estratégico de Talento Humano","Internacionalización, transformación productiva para la vida y acción climática","•    Objetivo 5: Igualdad de género",null,null,"4.Plan de Previsión de Recursos Humanos"]
[null,"Evaluación de Resultados","Fortalecimiento Organizacional y Simplificación de Procesos ","Necesidad del MHCP\nPolítica ambiental ","6. Iniciativas Adicionales","2.1 Identificación de tramites",null,null,"6.Plan Institucional de Capacitación","Convergencia Regional","•    Objetivo 6: Agua limpia y saneamiento","Obsetrvación 8/5/2023 Se incluyó el subcomponete PAAC de tramites. No estaba",null,"5.Plan Estratégico de Talento Humano"]
[null,"Información y Comunicación ","Servicio al Ciudadano","Estrategia Racionalización de Tramites - \nMIPG","N/A","2.2 Priorización de tramites",null,null,"7.Plan de Incentivos Institucionales","Estabilidad macroeconómica","•    Objetivo 7: Energía asequible y no contaminante",null,null,"6.Plan Institucional de Capacitación"]
[null,"Gestión de Conocimiento e Innovación","Participación Ciudadana en la Gestión Pública","Requerimiento Archivo General de la Nación","-","2.3 Racionalización de tramites",null,null,"8.Plan de Trabajo Anual en Seguridad y Salud en el Trabajo ",null,"•    Objetivo 8: Trabajo decente y crecimiento económico",null,null,"7.Plan de Incentivos Institucionales"]
["FUIN","Control Interno ","Racionalización de Trámites","-","-","2.4 Interoperabilidad",null,null,"9.Plan Anticorrupción y de Atención al Ciudadano",null,"•    Objetivo 9: Industria, innovación e infraestructura",null,null,"8.Plan de Trabajo Anual en Seguridad y Salud en el Trabajo "]
[null,"Direccionamiento Estratégico y Evaluación de Resultados","Gestión Documental","-","-","3.1 Informar avances y resultados de la gestión con calidad y en lenguaje comprensible",null,null,"10.Plan Estratégico de Tecnologías de la Información y las Comunicaciones – PETI",null,"•    Objetivo 10: Reducción de las desigualdades",null,null,"9.Plan Anticorrupción y de Atención al Ciudadano"]
[null,"N/A","Gobierno Digital","-","-","3.2 Desarrollar escenarios de diálogo de doble vía con la ciudadanía y sus organizaciones",null,null,"11.Plan de Tratamiento de Riesgos de Seguridad y Privacidad de la Información",null,"•    Objetivo 11: Ciudades y comunidades sostenibles",null,null,"10.Plan Estratégico de Tecnologías de la Información y las Comunicaciones – PETI"]
[null,"-","Seguridad Digital","-","-","3.3 Responder a compromisos propuestos, evaluación y retroalimentación en los ejercicios de rendición de cuentas con acciones correctivas para mejora",null,null,"12.Plan de Seguridad y Privacidad de la Información ",null,"•    Objetivo 12: Producción y consumo responsables",null,null,"11.Plan de Tratamiento de Riesgos de Seguridad y Privacidad de la Información"]
[null,"-","Defensa Jurídica ","-","-","3.4. Evaluación y retroalimentación a la gestión institucional",null,null,"13.Plan Institucional de Gestión Ambiental - PIGA",null,"•    Objetivo 13: Acción por el clima ",null,null,"12.Plan de Seguridad y Privacidad de la Información "]
[null,"-","Gestión del Conocimiento y la Innovación ","-","-","3.5 Diálogo de doble vía con la ciudadania y sus organizaciones",null,null,null,null,"•    Objetivo 14: Vida submarina",null,null,"13.Plan Institucional de Gestión Ambiental - PIGA"]
[null,"-","Control Interno","-","-","4.1 Estructura administrativa y direccionamiento estratégico",null,null,null,null,"•    Objetivo 15: Vida de ecosistemas terrestres"]
[null,"-","Seguimiento y Evaluación del Desempeño Institucional ","-","-","4.2 Fortalecimiento de los canales de atención",null,null,null,null,"•    Objetivo 16: Paz, justicia e instituciones solidad"]
[null,"-","Mejora Normativa","-","-","4.3 Gestión de relacionamiento con los ciudadanos.",null,null,null,null,"•    Objetivo 17: Alianzas para lograr los objetivos"]
[null,"-","Gestión de Información Estadística ","-","-","4.4 Conocimiento al servicio al ciudadano."]
[null,"-","Compras y contratación pública ","-","-","4.5 Evaluación de gestión y medición de la percepción ciudadana."]
[null,"-","N/A","-","-","4.6 Talento Humano"]
[null,"-","Planeación Institucional y Seguimiento  y Evaluación del Desempeño Institucional","-","-","5.1. Lineamientos de Transparencia Activa"]
[null,"-","Transparencia -Participación Ciudadana - Racionalización de Trámites - Servicio al Ciudadano","-","-","5.2. Lineamientos de Transparencia Pasiva"]
[null,"-","Talento Humano e Integridad ","-","-","5.3. Elaboración de los Instrumentos de Gestión de la Información"]
[null,"-","Gobierno Digital y Seguridad Digital","-","-","5.4. Gestión Documental"]
[null,"-","Planeación Institucional-Participación Ciudadana en la Gestión Pública\n","-","-","5.5. Monitoreo del Acceso a\nla Información Pública"]
[null,"-","Transparencia -Participación Ciudadana- Servicio al Ciudadano- Racionalización de Trámites","-","-","5.6 Tranparencia Colaborativa"]
[null,"-","Fortalecimiento Organizacional y Simplificación de Procesos-","-","-","N/A"]
[null,"-","Fortalecimiento Organizacional y Simplificación de Procesos-Seguimiento  y Evaluación del Desempeño Institucional","-","-","-"]
[null,null,"Fortalecimiento Organizacional y Simplificación de Procesos-Seguridad Digital - Racionalización de Trámites","-","-","-"]

{"sheet":"Indicadores_PEI_2023-2026","index":4,"n_rows":47,"n_cols":16,"rows_kept":47,"cut":false,"hidden":true,"merged":[[1,1,1,15],[45,1,45,15],[46,1,46,15],[3,5,3,9]]}
[]
[null,"Indicadores Ministerio de Hacienda y Crédito Público\n2023-2026"]
[]
[null,null,null,null,null,"Metas"]
[null,"N°","Objetivo Estratégico","Iniciativa Estratégica","Indicador","2023","2024","2025","2026","cuatrienio","Eje transformacional PND","Entidad responsable ","Especificidad del indicador","Incluido en bases PND","Incluido en Plan Estratégico Sectorial","Incluido en Plan Estratégico Institucional"]
[null,1,"GM1.Generar las condiciones para unas finanzas sanas y un financiamiento para las transiciones exportadora y energética","-","GM1_2023_2026_Ind1 Balance primario del Sector Público No Financiero (SPNF) (% del PIB) (Sinergia)",0.01,2.5999999999999999E-2,1.7999999999999999E-2,1.7000000000000001E-2,1.7000000000000001E-2,"Estabilidad macroeconómica ","MHCP (Dirección General de Política Macroeconómica)","-","SI","NO","SI"]
[null,2,"GM1.Generar las condiciones para unas finanzas sanas y un financiamiento para las transiciones exportadora y energética","-","GM1_2023_2026_Ind2 Diversificación de instrumentos financieros para las transiciones exportadora y energética ",1,1,1,1,1,"Internacionalización, transformación productiva para la vida y acción climática","MHCP (Dirección General de Crédito Público)","-","NO","NO","SI"]
[null,3,"GM1.Generar las condiciones para unas finanzas sanas y un financiamiento para las transiciones exportadora y energética","Ini.2023.2026.GM1.01 Desarrollar estrategias e instrumentos para el financiamiento sostenible que contribuya a la adaptación, mitigación del cambio climático y la transición energética.","Ini_2023_2026_GM1_01_Ind1  Instrumentos financieros que  faciliten las transiciones exportadoras y energéticas (Mínimo 1 al año - Emisión de bonos verdes, sociales y sostenibles) ",1,1,1,1,4,"Internacionalización, transformación productiva, para la vida y la acción climática ","MHCP (Dirección General de Crédito Público)","-","NO","NO","SI"]
[null,4,"GM1.Generar las condiciones para unas finanzas sanas y un financiamiento para las transiciones exportadora y energética","Ini.2023.2026.GM1.02 Mecanismos de protección financiera para la reducción de la vulnerabilidad fiscal","Ini_2023_2026_GM1_02_Ind1 Propuesta de reforma al sistema financiero - DGCPTN",1,1,1,1,4,"-","MHCP (Dirección General de Crédito Público)","-","NO","NO","SI"]
[null,5,"GM1.Generar las condiciones para unas finanzas sanas y un financiamiento para las transiciones exportadora y energética","Ini.2023.2026.GM1.03 Avanzar en una reglamentación para el sistema financiero nacional para unas finanzas públicas más incluyentes","Ini_2023_2026_GM1_03_Ind1Reglamentación sistema financiero, solidario y mercado de capitales para una mayor inclusión financiera y crediticia",1,1,1,0,3,"-","MHCP (Viceministerio Técnico)","-","NO","NO","SI"]
[null,6,"GM1.Generar las condiciones para unas finanzas sanas y un financiamiento para las transiciones exportadora y energética","Ini.2023.2026.GM1.04 Modernizar y fortalecer la gestión financiera pública nacional ","Ini_2023_2026_GM1_04_Ind1 Medición del préstamo neto del Gobierno General, medido como % del PIB, con base en los lineamientos del MEFP 2014",5,5,5,5,20,"-","MHCP (Dirección General de Política Macroeconómica)","-","NO","NO","SI"]
[null,7,"GM1.Generar las condiciones para unas finanzas sanas y un financiamiento para las transiciones exportadora y energética","Ini.2023.2026.GM1.04 Modernizar y fortalecer la gestión financiera pública nacional","Ini_2023_2026_GM1_04_Ind2 Documentos metodológicos, técnicos y de lineamientos de política macroeconómica realizados  ",3,3,0,0,6,"-","MHCP (Dirección General de Política Macroeconómica)","-","NO","NO","SI"]
[null,8,"GM1.Generar las condiciones para unas finanzas sanas y un financiamiento para las transiciones exportadora y energética","Ini.2023.2026.GM1.05 Fortalecer la institucionalidad macroeconómica y fiscal mediante el uso de herramientas de análisis actualizadas.","Ini_2023_2026_GM1_05_Ind1 Herramientas incorporadas para el seguimiento macroeconómico ",4,0,0,0,4,"-","MHCP (Dirección General de Política Macroeconómica)","-","NO","NO","SI"]
[null,9,"GM1.Generar las condiciones para unas finanzas sanas y un financiamiento para las transiciones exportadora y energética","Ini.2023.2026.GM1.06 Construir la propuesta de estadísticas presupuestales y fiscales bajo estándares internacionales en línea con la hoja de ruta del CONPES 4008","Ini_2023_2026_GM1_06_Ind1 estrategias diseñadas e implementadas para fortalecer el proceso de asignación de recursos del gasto público",0,1,0,2,3,"-","MHCP (Dirección General de Presupuesto Público Nacional)","-","NO","NO","SI"]
[null,10,"GM2.Fortalecer la gestión financiera pública territorial para una descentralización efectiva, con equidad de las fuentes de financiación y calidad del gasto territorial","-","GM2_2023_2026_Ind1 Propuestas de reorganización de las fuentes de financiación territorial (impuestos, transferencias (SGP)",0,0,0,1,1,"Ordenamiento del Territorio alrededor del Agua y Justicia Ambiental ","MHCP (Dirección de Apoyo Fiscal)","-","NO","NO","SI"]
[null,11,"GM2.Fortalecer la gestión financiera pública territorial para una descentralización efectiva, con equidad de las fuentes de financiación y calidad del gasto territorial","-","GM2_2023_2026_Ind2 Propuestas para mejorar la calidad del gasto territorial​ ",1,0,0,1,1,null,"Dirección General de Apoyo Fiscal"]
[null,12,"GM2.Fortalecer la gestión financiera pública territorial para una descentralización efectiva, con equidad de las fuentes de financiación y calidad del gasto territorial","-","GM2_2023_2026_Ind3 Recaudo de ingresos tributarios y no tributarios territoriales como porcentaje del PIB (SINERGIA)",3.35,3.65,3.75,3.75,3.63,null,"MHCP (Dirección General de Apoyo Fiscal)",null,"SI","NO","SI"]
[null,13,"GM2.Fortalecer la gestión financiera pública territorial para una descentralización efectiva, con equidad de las fuentes de financiación y calidad del gasto territorial","Ini.2023.2026.GM2.01 Contribuir al fortalecimiento de la capacidad fiscal territorial","Ini_2023_2026_GM2_01_Ind1Propuesta de proyecto de ley de reforma tributaria territorial",1,0,0,0,1,null,"MHCP (Dirección General de Apoyo Fiscal)","-",null,"NO","SI"]
[null,14,"GM2.Fortalecer la gestión financiera pública territorial para una descentralización efectiva, con equidad de las fuentes de financiación y calidad del gasto territorial","Ini.2023.2026.GM2.01 Contribuir al fortalecimiento de la capacidad fiscal territorial","Ini_2023_2026_GM2_01_Ind2 Propuesta de proyecto de ley de reforma a la Ley de competencias y recursos (SGP) ",0,1,0,0,1,null,"MHCP (Dirección General de Apoyo Fiscal)","-",null,"NO","SI"]
[null,15,"GM2.Fortalecer la gestión financiera pública territorial para una descentralización efectiva, con equidad de las fuentes de financiación y calidad del gasto territorial","Ini.2023.2026.GM2.02 Contribuir al mejoramiento de la calidad del gasto territorial","Ini_2023_2026_GM2_02_Ind1 Informes anuales presentados sobre los resultados del monitoreo y seguimiento de las políticas públicas aplicadas en territorio, por los sectores de educación, salud, APSB, PAE,  deporte cultura y atención a grupos étnicos.  ",1,1,1,1,4,"-","MHCP (Dirección de Apoyo Fiscal)","-","NO","NO","SI"]
[null,16,"GM2.Fortalecer la gestión financiera pública territorial para una descentralización efectiva, con equidad de las fuentes de financiación y calidad del gasto territorial","Ini.2023.2026.GM2.03 Avanzar en la cobertura del pasivo pensional de las entidades territoriales y optimizar los procesos internos de gestión ","Ini_2023_2026_GM2_03_Ind1 Porcentaje  de entidades con cubrimiento del pasivo pensional (SINERGIA)",0.4,0.45,0.5,0.6,0.6,"Seguridad Humana y Justicia Social","MHCP (Dirección de Regulación Económica de la Seguridad Social)","-","SI","NO","SI"]
[null,17," GM3.Dinamizar la Banca de Desarrollo para la inclusión financiera que favorezca el desarrollo de los objetivos del programa \"Colombia potencia mundial de la vida\"","-","GM3_2023_2026_Ind1 Lineamientos y seguimiento a la estrategia del Portafolio Grupo Bicentenario ",5,4,4,5,18]
[null,18," GM3.Dinamizar la Banca de Desarrollo para la inclusión financiera que favorezca el desarrollo de los objetivos del programa \"Colombia potencia mundial de la vida\"","-","GM3_2023_2026_Ind2 Estrategia de armonización de las entidades financieras públicas bajo el holding financiero (expedición de reglamentación)",1,1,0,0,2]
[null,19," GM3.Dinamizar la Banca de Desarrollo para la inclusión financiera que favorezca el desarrollo de los objetivos del programa \"Colombia potencia mundial de la vida\"","Ini.2023.2026.GM3.01 Fomento de servicios financieros públicos a través del Holding Financiero y el modelo de gestión de propiedad estatal para generar valor social y económico.","Ini_2023_2026_GM3_01_Ind1 Implementación de 3 programas estratégicos del Grupo Bicentenario(Inclusión Financiera,Innovación y Finanzas Verdes)",5,4,4,5,5,"Internacionalización, transformación productiva, para la vida y la acción climática ","MHCP (Dirección Participaciones Estatales)\nGrupo Bicentenario","-","NO","NO","SI"]
[null,20," GM3.Dinamizar la Banca de Desarrollo para la inclusión financiera que favorezca el desarrollo de los objetivos del programa \"Colombia potencia mundial de la vida\"","Ini.2023.2026.GM3.02 Participar en la formulación de políticas de inclusión productiva y financiera para fomentar economías populares y procesos de reindustrialización","Ini_2023_2026_GM3_02_Ind1Política pública y reglamentación de los instrumentos de financiamiento de la reindustrialización y reducción de desigualdades",1,1,1,0,3,"Seguridad Humana y Justicia Social \nInternacionalización, transformación productiva para la vida y acción climática","MHCP (Viceministerio General - Viceministerio Técnico)","-","NO","NO","SI"]
[null,21," GM4. Promover un nuevo contrato social de manera sostenible y responsable en el Sistema General de Seguridad Social","-","GM4_2023_2026_Ind1 Propuestas de lineamientos de sostenibilidad financiera y fiscal para el Sistema General de Seguridad Social",2,2,1,1,6,"Seguridad Humana y Justicia Social","MHCP (Dirección de Regulación Económica de la Seguridad Social)","-","NO","NO","SI"]
[null,22," GM4. Promover un nuevo contrato social de manera sostenible y responsable en el Sistema General de Seguridad Social","Ini.2023.2026.GM4.01 Fortalecer los lineamientos de política de sostenibilidad financiera del Sistema General de Seguridad Social en Salud y el Sistema General de Riesgos Laborales.","Ini_2023_2026_GM4_01_Ind1Documentos de lineamiento técnico",1,1,1,1,6,"-","MHCP (Dirección de Regulación Económica de la Seguridad Social)","-","NO","NO","SI"]
[null,23," GM4. Promover un nuevo contrato social de manera sostenible y responsable en el Sistema General de Seguridad Social","Ini.2023.2026.GM4.02 Promover la regulación de normas para avanzar en la cobertura de los mecanismos de protección a la vejez.","Ini_2023_2026_GM4_02_Ind1 Escenarios fiscales de propuesta de reforma de protección social",1,1,0,0,2,"-","MHCP (Dirección de Regulación Económica de la Seguridad Social)","-","NO","NO","SI"]
[null,24,"GR1. Fortalecer los mecanismos para una cultura de transparencia y participación ciudadana","-","GR1_2023_2026_Ind1  Resultados de medición del índice de transparencia y acceso a la información pública - ITA",0.9,0.9,0.9,0.9,0.9,"-","MHCP (Oficina Asesora de Planeación)","-","NO","NO","SI"]
[null,25,"GR1. Fortalecer los mecanismos para una cultura de transparencia y participación ciudadana","-","GR1_2023_2026_Ind2 Propuestas de acciones que permitan mitigar la insatisfacción en la atención a los grupos de valor.",1,1,1,1,4,"-","MHCP (Dirección Administrativa)","-","NO","NO","SI"]
[null,26,"GR1. Fortalecer los mecanismos para una cultura de transparencia y participación ciudadana","Ini.2023.2026.GR1.01 Generar estrategias para la divulgación de información y relacionamiento con el ciudadano","Ini_2023_2026_GR1_01_Ind1 Estrategias de divulgación de información y relacionamiento con el ciudadano",1,1,1,1,4,"-","MHCP (Dirección Administrativa)","-","NO","NO","SI"]
[null,27,"GR2. Promover una cultura de gestión de conocimiento e innovación para una adecuada gestión de información y analítica instituciona","-","GR2_2023_2026_Ind1 Actividades de apropiación de conocimientos basadas en Gesco+i realizadas al interior de la entidad",1,1,1,1,4,"-","MHCP (Oficina Asesora de Planeación)","-","NO","NO","SI"]
[null,28,"GR2. Promover una cultura de gestión de conocimiento e innovación para una adecuada gestión de información y analítica instituciona","Ini.2023.2026.GR2.01 Fortalecer la Política de Gestión del Conocimiento y la Innovación","Ini_2023_2026_GR2_01_Ind1 Estrategias para el fortalecimento de la politica de gestión del conocimiento e innovación.",1,1,1,1,4,"-","MHCP (Oficina Asesora de Planeación)","-","NO","NO","SI"]
[null,29,"GR2. Promover una cultura de gestión de conocimiento e innovación para una adecuada gestión de información y analítica instituciona","Ini.2023.2026.GR2.02 Promover la gestión de expedientes electrónicos de archivo","Ini_2023_2026_GR2_02_Ind1 Implementar una serie documental para manejar expedientes híbridos en el SIED.","0.25","0.50","0.75",1,1,"-","MHCP (Dirección Administrativa)","-","NO","NO","SI"]
[null,30,"GR2. Promover una cultura de gestión de conocimiento e innovación para una adecuada gestión de información y analítica instituciona","Ini.2023.2026.GR2.03 Fortalecer la gestión organizacional y por procesos de la entidad","Ini_2023_2026_GR2_03_Ind1 documentos realizados / documentos programados",1,1,1,1,4,"-","MHCP (Subdireccion de Servicios y Relación con el Ciudadano y Oficina Asesora de Planeación )","-",null,"NO","SI"]
[null,31,"GR3. Fortalecer la transformación digital para contribuir a la generación de valor público","-","GR3_2023_2026_Ind1  Incrementar el índice FURAG para la política de gobierno digital",0.9,0.93,0.95,0.97,0.97,"-","MHCP (Direccion de Tecnología)","-","NO","NO","SI"]
[null,32,"GR3. Fortalecer la transformación digital para contribuir a la generación de valor público","Ini.2023.2026.GR3.01 Fortalecer el gobierno y gestión de datos en el MHCP","Ini_2023_2026_GR3_01_Ind1 Dominio de datos implementado anualmente de acuerdo con el marco de gobierno de datos definido para la entidad",1,1,1,1,4,"-","MHCP (Direccion de Tecnología)","-","NO","NO","SI"]
[null,33,"GR3. Fortalecer la transformación digital para contribuir a la generación de valor público","Ini.2023.2026.GR3.02 Fortalecer la adopción de los elementos constitutivos de la política de gobierno digital establecidos en el Decreto 767 de 2022","Ini_2023_2026_GR3_02_Ind1Incrementar el nivel de madurez del 80% de lineamientos MGGTI y MAE de  MinTIC que presentan brechas  de acuerdo con la evaluación de madurez indicada en el PETI 2022 - 2025.",0.15,0.25,0.2,0.2,0.8,"-","MHCP (Direccion de Tecnología)","-","NO","NO","SI"]
[null,34,"GR3. Fortalecer la transformación digital para contribuir a la generación de valor público","Ini.2023.2026.GR3.02 Fortalecer la adopción de los elementos constitutivos de la política de gobierno digital establecidos en el Decreto 767 de 2022","Ini_2023_2026_GR3_02_Ind2 Piloto anual de tecnologías emergentes siguiendo las recomendaciones de la guía de implementación de tecnologías emergentes del MinTIC .",0,1,1,1,3,"-","MHCP (Direccion de Tecnología)","-","NO","NO","SI"]
[null,35,"GC1. Fortalecer las capacidades del talento humano en el marco de los valores institucionales","-","GC1_2023_2026_Ind1 Nivel de Madurez en la Dimensión de Talento Humano del Mipg, de conformidad con los Autodiagnóstico del DAFP",0.8,0.85,0.9,0.9,0.9,"-","MHCP (Dirección Administrativa)","-","NO","NO","SI"]
[null,36,"GC1. Fortalecer las capacidades del talento humano en el marco de los valores institucionales","Ini.2023.2026.GC1.01 Promover acciones orientadas a mantener el nivel de consolidación de la Política de Gestión Estratégica de Talento Humano, de acuerdo con los lineamientos del Modelo Integrado de Planeación y Gestión - MIPG y el Modelo de Entidad Familiarmente Responsable - efr.","Ini_2023_2026_GC1_01_Ind1 Nivel de Madurez en las etapas de Gestión de la Política de Gestión del Talento Humano de la Matriz de Autodiagnóstico del DAFP",0.8,0.85,0.9,0.9,0.9,"-","MHCP (Dirección Administrativa)","-","NO","NO","SI"]
[null,37,"GC1. Fortalecer las capacidades del talento humano en el marco de los valores institucionales","Ini.2023.2026.GC1.02 Realizar actividades que fortalezcan la implementación de la Política de Integridad, con el propósito de alcanzar el nivel de consolidación, de acuerdo con los lineamientos del Modelo Integrado de Planeación y Gestión - MIPG.","Ini_2023_2026_GC1_02_Ind1 Nivel de Madurez en las etapas de Gestión de la Política de Integridad de la Matriz de Autodiagnóstico del DAFP",0.8,0.85,0.9,0.9,0.9,"-","MHCP (Dirección Administrativa)","-","NO","NO","SI"]
[null,38,"GC2.  Fortalecer la gestión pública a través de procesos administrativos, financieros y jurídicos","-"," GC2_2023_2026_Ind1  Número de documentos entregados/ Número de documentos programados",1,0,0,0,1]
[null,39,"GC2.  Fortalecer la gestión pública a través de procesos administrativos, financieros y jurídicos","Ini.2023.2026.GC2.01 Promover mecanismos para un ejercicio adecuado de defensa jurídica de la Entidad.","Ini_2023_2026_GC2_01_Ind1 Número de documentos entregados/ Número de documentos programados",1,0,0,0,1,"-","MHCP (Subdirección Jurídica)","-",null,"NO","SI"]
[]
[null,"Los indicadores del PND estan sujetos a la versión definitiva de bases del Plan."]
[null,"El Plan Estratégico Sectorial contiene indicadores diferentes al Plan Estratégico Sectorial, dado que miden las metas del Sector Hacienda y los indicadores definidos en el Plan Institucional miden las metas definidas para la entidad."]

{"sheet":"Indicadores","index":5,"n_rows":44,"n_cols":18,"rows_kept":44,"cut":false,"hidden":false,"merged":[[45,1,45,17],[3,10,3,13],[3,14,3,17]]}
[]
[]
[]
[null,null,null,null,null,null,null,null,null,null,"Cumplimiento 2023",null,null,null,"Metas"]
[null,"N°","Objetivo Estratégico","Iniciativa Estratégica","Indicador","Periodicidad","Eje transformacional PND","Dependencia responsable ","Incluido en bases PND","Responsable","Meta","Cuantitativo","Cualitativo","Cumplimiento","2024","2025","2026","Cuatrienio"]
[null,1,"GM1.Generar las condiciones para unas finanzas sanas y un financiamiento para las transiciones exportadora y energética","Indicador de objetivo, no tiene iniciativa asociada","GM1_2023_2026_Ind1 Balance primario del Sector Público No Financiero (SPNF) (% del PIB) (Sinergia) - Rezago de 120 días","Anual","Estabilidad macroeconómica ","Dirección General de Política Macroeconómica","SI","Daniel Esteban Osorio",0.01,"N/A","N/A en cuantitativo\nEl indicador tiene un rezago de aproximadamente 120 días, por tanto, el indicador correspondiente al cierre de la vigencia 2023 será publicado por el Ministerio de Hacienda y Crédito Público durante la última semana del mes de abril de 2024. \n\nSin embargo, cabe resaltar que actualmente en la página del Ministerio de Hacienda se encuentran publicados los informes de cierre del primer y segundo trimestre del SPNF para la vigencia 2023. \n\nLink: https://www.minhacienda.gov.co/webcenter/portal/EntidadesFinancieras/pages_EntidadesFinancieras/PoliticaFiscal/cf/cierrefiscal2023/cierresfiscalestrimestralesgncyspnf\n","N/A",2.5999999999999999E-2,1.7999999999999999E-2,1.7000000000000001E-2,1.7000000000000001E-2]
[null,2,"GM1.Generar las condiciones para unas finanzas sanas y un financiamiento para las transiciones exportadora y energética","Indicador de objetivo, no tiene iniciativa asociada","GM1_2023_2026_Ind2 Diversificación de instrumentos financieros para las transiciones exportadora y energética ","Anual","Internacionalización, transformación productiva para la vida y acción climática","Dirección General de Crédito Público","NO","Jose Roberto Acosta",1,1,"Durante la vigencia 2023 se realizó: \n\n1.\tEmisión de dos bonos sociales por un monto total de 2.500 millones\n2.\tLa cuarta subasta de TES Verdes en el mercado local con excelentes resultados.  Se subastaron $975 mm, la tasa de interés de corte de la subasta del TES Verde 2031 fue 10.059% que al compararse con el nivel de transacción del TES convencional con vencimiento 2031 (10.150%) presentó una diferencia de 9 puntos básicos, técnicamente conocido como Greenium.  \n3.\tSe cumplió con las estrategias de protección financiera propuestas.",{"$f":"+Tabla16524[[#This Row],[Cuantitativo]]/Tabla16524[[#This Row],[Meta]]","v":1},1,1,1,1]
[null,3,"GM1.Generar las condiciones para unas finanzas sanas y un financiamiento para las transiciones exportadora y energética","Ini.2023.2026.GM1.01 Desarrollar estrategias e instrumentos para el financiamiento sostenible que contribuya a la adaptación, mitigación del cambio climático y la transición energética.","Ini_2023_2026_GM1_01_Ind1  Instrumentos financieros que  faciliten las transiciones exportadoras y energéticas (Mínimo 1 al año - Emisión de bonos verdes, sociales y sostenibles) ","Anual","Internacionalización, transformación productiva, para la vida y la acción climática ","Dirección General de Crédito Público","NO","Jose Roberto Acosta",1,1,"El pasado 14 de diciembre de 2023 se realizó la cuarta subasta de TES Verdes en el mercado local con excelentes resultados.  Se subastaron $975 mm, la tasa de interés de corte de la subasta del TES Verde 2031 fue 10.059% que al compararse con el nivel de transacción del TES convencional con vencimiento 2031 (10.150%) presentó una diferencia de 9 puntos básicos, técnicamente conocido como Greenium.  En el marco de la operación, se presentó una sólida demanda recibiendo ofertas de compra por $2,4 billones, lo que representa un Bid to Cover (ofertas recibidas con relación al monto convocado) de 3.7 veces el monto convocado inicialmente, lo cual evidenció el interés de los inversionistas locales y extranjeros en esta clase de títulos de deuda pública de Colombia.",{"$f":"+Tabla16524[[#This Row],[Cuantitativo]]/Tabla16524[[#This Row],[Meta]]","v":1},1,1,1,4]
[null,4,"GM1.Generar las condiciones para unas finanzas sanas y un financiamiento para las transiciones exportadora y energética","Ini.2023.2026.GM1.02 Mecanismos de protección financiera para la reducción de la vulnerabilidad fiscal","Ini_2023_2026_GM1_02_Ind1 Propuesta de reforma al sistema financiero - DGCPTN","Anual","-","Dirección General de Crédito Público","NO","Jose Roberto Acosta",1,1,"Se cumplió con las estrategias de protección financiera propuestas.",{"$f":"+Tabla16524[[#This Row],[Cuantitativo]]/Tabla16524[[#This Row],[Meta]]","v":1},1,1,1,4]
[null,5,"GM1.Generar las condiciones para unas finanzas sanas y un financiamiento para las transiciones exportadora y energética","Ini.2023.2026.GM1.03 Avanzar en una reglamentación para el sistema financiero nacional para unas finanzas públicas más incluyentes","Ini_2023_2026_GM1_03_Ind1Reglamentación sistema financiero, solidario y mercado de capitales para una mayor inclusión financiera y crediticia","Anual","-","Viceministerio Técnico","NO","Maria Fernanda Valdes",1,4,"Durante 2023 se expidieron los siguientes Decretos:\n-\tDecreto 455 del 29 de marzo de 2023: Crédito Popular\n-\tDecreto 626 del 27 de abril de 2023: Asociación de MiPymes a Cooperativas financieras\n-\tDecreto 627 del 27 de abril de 2023: Asociación de Mipymes a cooperativas con actividad de ahorro y crédito\n-\tDecreto 2105 del 5 de diciembre de 2023: Financiación colaborativa",{"$f":"+Tabla16524[[#This Row],[Cuantitativo]]/Tabla16524[[#This Row],[Meta]]","v":4},1,1,0,3]
[null,6,"GM1.Generar las condiciones para unas finanzas sanas y un financiamiento para las transiciones exportadora y energética","Ini.2023.2026.GM1.04 Modernizar y fortalecer la gestión financiera pública nacional ","Ini_2023_2026_GM1_04_Ind1 Medición del préstamo neto del Gobierno General, medido como % del PIB, con base en los lineamientos del MEFP 2014","Anual","-","Dirección General de Política Macroeconómica","NO","Daniel Esteban Osorio",5,5,"Durante la vigencia 2023 se produjeron y publicaron 5 reportes con la medición del préstamo neto del Gobierno General, medido como % del PIB, con base en los lineamientos del MEFP 2014. Estos fueron:\n•\t4 cierres fiscales trimestrales de los periodos: 2022-3, 2022-4, 2023-1 y 2023-2 (publicados como parte de los cierres fiscales trimestrales del Sector Público no Financiero - SPNF)\n•\t1 cierre fiscal anual a diciembre de 2022 (publicado como parte del capítulo 1 del Marco Fiscal de Mediano Plazo 2023)",{"$f":"+Tabla16524[[#This Row],[Cuantitativo]]/Tabla16524[[#This Row],[Meta]]","v":1},5,5,5,20]
[null,7,"GM1.Generar las condiciones para unas finanzas sanas y un financiamiento para las transiciones exportadora y energética","Ini.2023.2026.GM1.04 Modernizar y fortalecer la gestión financiera pública nacional","Ini_2023_2026_GM1_04_Ind2 Documentos metodológicos, técnicos y de lineamientos de política macroeconómica realizados  ","Anual","-","Dirección General de Política Macroeconómica","NO","Daniel Esteban Osorio",3,2.75,"Para la vigencia 2023 se programó la elaboración de 3 documentos:\n1.\tDocumento con los resultados de las Estadísticas de Finanzas Públicas (EFP) del Gobierno General de 2022 y la proyección de las cifras del Gobierno Central Presupuestario para el año 2023.\n2.\tDocumento de los métodos de proyección de estadísticas del Gobierno Central Presupuestario.\n3.\tDocumento Metodológico de la producción de EFP de base devengado.\nEn el mes de junio se publicaron los resultados de las EFP del Gobierno General de 2022 y la proyección de las cifras del Gobierno Central Presupuestario para el año 2023 (documento 1) como parte del capítulo 1 del Marco Fiscal de Mediano Plazo 2023. \nAsí mismo, en el mes de noviembre se completó la compilación del documento de los métodos de proyección de estadísticas del Gobierno Central Presupuestario (documento 2) y se identificaron aspectos que requerirán mejoras en una versión posterior. \nFinalmente, en cuanto al Documento Metodológico de la producción de EFP de base devengado, si bien se realizaron avances durante el año para alcanzar un 75% de su elaboración, aún se encuentra en construcción. Al respecto, cabe aclarar que se presentaron retrasos en este frente, debido a que durante la vigencia fue necesario modificar la planeación contractual que inicialmente se tenía prevista, los contratos presentaron demoras en celebrarse (no iniciaron en las fechas planeadas) y fue necesario atender otras necesidades de servicio con mayor urgencia. ",{"$f":"+Tabla16524[[#This Row],[Cuantitativo]]/Tabla16524[[#This Row],[Meta]]","v":0.91666666666666663},3,0,0,6]
[null,8,"GM1.Generar las condiciones para unas finanzas sanas y un financiamiento para las transiciones exportadora y energética","Ini.2023.2026.GM1.05 Fortalecer la institucionalidad macroeconómica y fiscal mediante el uso de herramientas de análisis actualizadas.","Ini_2023_2026_GM1_05_Ind1 Herramientas incorporadas para el seguimiento macroeconómico ","Anual","-","Dirección General de Política Macroeconómica","NO","Daniel Esteban Osorio",4,4,"Primer Semestre 2023:\n*Consolidación del modelo central de pronóstico de corto plazo semi-estructural (Quartely Projection Model -QPM) \n*Misiones de seguimiento con el Fondo Monetario Internacional para el desarrollo del modelo fiscal de pronóstico de mediano plazo (Cannonical Pillar Three)\n*Institucionalización de las herramientas de muy corto y corto plazo de pronóstico para la elaboración del Plan Financiero y el Marco Fiscal de Mediano Plazo\n*Desarrollo de modelos satélites de consistencia macroeconómica para el análisis de la tasa de interés neutral y el sistema financiero en Colombia  \n*Extensión de las herramientas de pronóstico de muy corto plazo para un uso trasversal en la Subdirección de Programación Macroeconómica (Modelos Nowcast de desempleo, ocupados, entre otros) \nSegundo semestre 2023:\n*Actualización del escenario macroeconómico del Marco Fiscal de Mediano Plazo en función de la herramienta QPM y Modelos de frecuencias mixtas\n*Documentación y presentación de las herramientas de consistencia macroeconómicas (Modelos de equilibrio general, semi*estructurales y de muy corto plazo)\n*Misión FMI, mejoras a las herramientas de pronóstico ya establecidas en el ministerio como el QPM y evaluación del proceso de pronóstico de la Subdirección de Programación Macroeconómica\n*Elaboración de las cifras proyectadas en el Plan Financiero con las herramientas desarrolladas durante la Misión ",{"$f":"+Tabla16524[[#This Row],[Cuantitativo]]/Tabla16524[[#This Row],[Meta]]","v":1},0,0,0,4]
[null,9,"GM1.Generar las condiciones para unas finanzas sanas y un financiamiento para las transiciones exportadora y energética","Ini.2023.2026.GM1.06 Construir la propuesta de estadísticas presupuestales y fiscales bajo estándares internacionales en línea con la hoja de ruta del CONPES 4008","Ini_2023_2026_GM1_06_Ind1 estrategias diseñadas e implementadas para fortalecer el proceso de asignación de recursos del gasto público","Anual","-","Dirección General de Presupuesto Público Nacional","NO","Claudia Marcela Numa",0,"N/A","No aplica medición para este periodo","N/A",1,0,2,3]
[null,10,"GM2.Fortalecer la gestión financiera pública territorial para una descentralización efectiva, con equidad de las fuentes de financiación y calidad del gasto territorial","Indicador de objetivo, no tiene iniciativa asociada","GM2_2023_2026_Ind1 Propuestas de reorganización de las fuentes de financiación territorial (impuestos, transferencias (SGP)","Anual","Ordenamiento del Territorio alrededor del Agua y Justicia Ambiental ","Dirección General de Apoyo Fiscal","NO","Nestor Urrea",0,"N/A","No aplica medición para este periodo, aun así se reporta información de gestión realizada:\n9 sesiones Misión de Descentralización\nReuniones semanales con equipo técnico de la DAF y de la Misión de Descentralización para la construcción de propuestas de modificación a los tributos del orden territorial. Presentaciones y documentos técnicos sobre modificaciones a:\n-\tImpuesto al consumo de Cigarrillo\n-\tImpuesto al consumo de Cerveza;\n-\tImpuesto Predial Unificado;\n-\tSimplificación del impuesto de Industria y Comercio ","N/A",0,0,1,1]
[null,11,"GM2.Fortalecer la gestión financiera pública territorial para una descentralización efectiva, con equidad de las fuentes de financiación y calidad del gasto territorial","Indicador de objetivo, no tiene iniciativa asociada","GM2_2023_2026_Ind2 Propuestas para mejorar la calidad del gasto territorial​ ","Anual",null,"Dirección General de Apoyo Fiscal","NO","Nestor Urrea",1,1," En el marco del Plan de Acción Estratégico Institucional 2023-2026, iniciativa Ini.2023.2026.GM2.02 Contribuir al mejoramiento de la calidad del gasto territorial, se planteó la realización de una propuesta de reforma a la Estrategia de Monitoreo, Seguimiento y Control Integral al uso del Sistema General de Participantes bajo la responsabilidad de la Dirección General de Apoyo Fiscal con el indicador Propuestas para Mejorar la Calidad del Gasto Territorial, se avanzó en la vigencia 2023 sobre un documento que recoge modificaciones propuestas al interior del grupo que soporta el Proceso MIS 4.5, tomando como insumos la “Propuesta de reforma a la Ley de competencias y recursos” presentada a consideración del Congreso de la República en el año 2018 por el Ministerio de Hacienda y Crédito Público, las conclusiones presentadas por el documento “10 años de la Estrategia de Monitoreo, Seguimiento y Control al uso de los recursos del Sistema General de Participaciones” publicado en 2021 por esta Dirección y las nuevas propuestas presentadas por los equipos sectoriales. ",{"$f":"+Tabla16524[[#This Row],[Cuantitativo]]/Tabla16524[[#This Row],[Meta]]","v":1},0,0,1,1]
[null,12,"GM2.Fortalecer la gestión financiera pública territorial para una descentralización efectiva, con equidad de las fuentes de financiación y calidad del gasto territorial","Indicador de objetivo, no tiene iniciativa asociada","GM2_2023_2026_Ind3 Recaudo de ingresos tributarios y no tributarios territoriales como porcentaje del PIB (SINERGIA) - Rezago 120 días","Anual",null,"Dirección General de Apoyo Fiscal","SI","Nestor Urrea",3.35,"N/A","Este indicador se mide de forma anual. Los resultados preliminares al cierre de 2023 estarán disponibles en abril de 2024.\n'- La DAF realiza seguimiento trimestral de los resultados de las Gobernaciones y Alcaldías Capitales. Al tercer trimestre de 2023, los ingresos de recaudo propio de estos niveles de gobierno registraron un crecimiento de doble dígito (18%), impulsado fundamentalmente por el comportamiento del impuesto de industria y comercio (29%) e impuesto predial (15%) en las capitales, e impuesto a vehículos (27%) y cigarrillos (15%) en los departamentos.","N/A",3.63,3.63,3.63,3.63]
[null,13,"GM2.Fortalecer la gestión financiera pública territorial para una descentralización efectiva, con equidad de las fuentes de financiación y calidad del gasto territorial","Ini.2023.2026.GM2.01 Contribuir al fortalecimiento de la capacidad fiscal territorial","Ini_2023_2026_GM2_01_Ind1Propuesta de proyecto de ley de reforma tributaria territorial","Anual",null,"Dirección General de Apoyo Fiscal","NO","Nestor Urrea",1,1,"9 sesiones Misión de Descentralización\nReuniones semanales con equipo técnico de la DAF y de la Misión de Descentralización para la construcción de propuestas de modificación a los tributos del orden territorial\nPresentaciones y documentos técnicos sobre modificaciones a:\n-Impuesto al consumo de Cigarrillo\n-Impuesto al consumo de Cerveza;\n-Impuesto Predial Unificado;\n-Simplificación del impuesto de Industria y Comercio\n\n1 proyecto de ley radicado en congreso\nElaboración de proyecto de ley sobre límites del impuesto Predial Unificado en desarrollo del artículo 49 del PND, radicado en el congreso el 8 de noviembre de 2023 y presentado a la comisión accidental el 23 del mismo mes y año. Corresponde al proyecto de ley 292 de 2023.",{"$f":"+Tabla16524[[#This Row],[Cuantitativo]]/Tabla16524[[#This Row],[Meta]]","v":1},0,0,0,1]
[null,14,"GM2.Fortalecer la gestión financiera pública territorial para una descentralización efectiva, con equidad de las fuentes de financiación y calidad del gasto territorial","Ini.2023.2026.GM2.01 Contribuir al fortalecimiento de la capacidad fiscal territorial","Ini_2023_2026_GM2_01_Ind2 Propuesta de proyecto de ley de reforma a la Ley de competencias y recursos (SGP) ","Anual",null,"Dirección General de Apoyo Fiscal","NO","Nestor Urrea",0,"N/A","Es responsabilidad de la Misión de Descentralización proponer reformas al SGP que sean coherentes con los objetivos generales del nuevo modelo descentralista. \nLa DAF participa como parte del equipo técnico de la Misión que lidera el  DNP y de la que hace parte el MHCP a través del Viceministro General de Hacienda. Al respecto, se trabaja  conjuntamente en una  propuesta que además de lograr un aumento de recursos para el sistema; busca que  los recursos adicionales se distribuyan con criterios que garanticen el cierre de brechas y la equidad entre los territorios, la inclusión social de las poblaciones con los peores estándares de bienestar y atender la urgencia del cambio climático y la necesidad de protección de nuestra riqueza ambiental. Para ello, es necesario promover la asociatividad y la concurrencia en el gasto territorial, el reconocimiento de la diversidad territorial como principio de política pública y la autonomía de las entidades territoriales para el ejercicio de sus competencias.  ","N/A",1,0,0,1]
[null,15,"GM2.Fortalecer la gestión financiera pública territorial para una descentralización efectiva, con equidad de las fuentes de financiación y calidad del gasto territorial","Ini.2023.2026.GM2.02 Contribuir al mejoramiento de la calidad del gasto territorial","Ini_2023_2026_GM2_02_Ind1 Informes anuales presentados sobre los resultados del monitoreo y seguimiento de las políticas públicas aplicadas en territorio, por los sectores de educación, salud, APSB, PAE,  deporte cultura y atención a grupos étnicos.  ","Anual","-","Dirección General de Apoyo Fiscal","NO","Nestor Urrea",1,1,"En el marco del Plan de Acción Estratégico Institucional 2023-2026, iniciativa Ini.2023.2026.GM2.02 Contribuir al mejoramiento de la calidad del gasto territorial, se planteó la realización de un análisis en aspectos relacionados con el uso eficiente de los recursos asignados a los sectores de: educación, salud, APSB, PAE, propósito general, atención a grupos étnicos, municipios ribereños al Río Magdalena y hospitales bajo la responsabilidad de la Dirección General de Apoyo Fiscal con el indicador Propuestas para Mejorar la Calidad del Gasto Territorial, tarea que se ha proyectado para ser desarrollada en el cuatrienio 2023-2026. Con relación a la vigencia 2023 se avanzó la precisión de los temas, alcance, metodologías, y cronograma de trabajo con los diferentes equipos sectoriales. El documento informe se alimenta de cada análisis particular de problemática sectorial, destacando los siguientes temas: \n \n1.\tSalud: Análisis de la deuda en el sector salud de las entidades territoriales por concepto de atenciones no cubiertas por el plan de beneficios del régimen subsidiado, atenciones a población pobre no cubierta por subsidios a la demanda y atención a población migrante. \n2.\tEducación: informe de problemáticas sector educación 2022-2023. \n3.\tAgua Potable y Saneamiento Básico: El otorgamiento y pago del déficit por subsidios de acueducto, alcantarillado y aseo. un gasto de distritos y municipios que ha generado dificultades. \n4.\tPropósito General: Análisis de asignación y uso de los recursos de la participación de propósito general del sistema general de participaciones para el periodo 2021-2022. \n5.\tAsignación Ribereños: problemáticas asociadas al uso ineficiente de los recursos de la asignación especial para municipios Ribereños del Río Magdalena. \n6.\tAsignación Resguardos Indígenas: Evolución de la distribución de los recursos de la Asignación Especial del Sistema General de Participaciones para los resguardos Indígenas. \n7.\tHospitales: Análisis problemática de programa de saneamiento fiscal y financiero de empresas sociales del estado.  \nLos documentos se encuentran en revisión por parte del Comité Editorial de la Dirección General de Apoyo Fiscal. Al ser una tarea del cuatrienio, se espera que en 2024 se continúe con la recolección y análisis de nueva información y la redacción de nuevos informes que den cuenta de problemáticas sectoriales que inciden en el uso de los recursos asignados a las entidades territoriales",{"$f":"+Tabla16524[[#This Row],[Cuantitativo]]/Tabla16524[[#This Row],[Meta]]","v":1},1,1,1,4]
[null,16,"GM2.Fortalecer la gestión financiera pública territorial para una descentralización efectiva, con equidad de las fuentes de financiación y calidad del gasto territorial","Ini.2023.2026.GM2.03 Avanzar en la cobertura del pasivo pensional de las entidades territoriales y optimizar los procesos internos de gestión ","Ini_2023_2026_GM2_03_Ind1 Porcentaje  de entidades con cubrimiento del pasivo pensional (SINERGIA) - Rezago 60 días","Anual","Seguridad Humana y Justicia Social","Dirección General de Regulación Económica de la Seguridad Social","SI","Flor Esther Salazar",0.4,"El reporte cuantitativo de la vigencia 2023 se realizará en el segundo semestre de 2024, previa solicitud de actualización de la ficha técnica del indicador que actualmente permite rezago para reporte de 60 días. Lo anterior de acuerdo con el proceso de consolidación de la información requerido para presentar el reporte.","Se reportaron los avances cualitativos del indicador en forma periódica mensual de enero de 2023 a diciembre, dentro de los tiempos oportunos de reporte. En el reporte de diciembre se consignó lo siguiente: \n“Principales avances: $57,19 billones en el valor del Fondo Nacional de Pensiones de las Entidades Territoriales.\nCuellos de botella y limitaciones: No se identifican cuellos de botella y limitaciones en el periodo.\nJustificación Avance: Conforme a la información registrada en el Sistema de Información del Fondo Nacional de Pensiones de las Entidades Territoriales (SIF), en este mes de reporte se evidenció un incremento en el valor del Fondo, del último corte disponible (septiembre) al último valor registrado en SINERGIA correspondiente a la información de mayo de 2023, así: de $56,60 billones en mayo de 2023 a $57,19 billones en septiembre de 2023 (excluyendo Reserva), en parte debido al comportamiento positivo de la rentabilidad del valor del Fondo.”","N/A",0.45,0.5,0.6,0.6]
[null,17," GM3.Dinamizar la Banca de Desarrollo para la inclusión financiera que favorezca el desarrollo de los objetivos del programa \"Colombia potencia mundial de la vida\"","Indicador de objetivo, no tiene iniciativa asociada","GM3_2023_2026_Ind1 Lineamientos y seguimiento a la estrategia del Portafolio Grupo Bicentenario ","Anual",null,"Dirección Participaciones Estatales - \nGrupo Bicentenario","NO","Piedad Muñoz",5,5,"Se remitieron los lineamientos para la elaboración del presupuesto de la vigencia 2024 y se llevaron a cabo las 4 reuniones de seguimiento con las empresas del Grupo Bicentenario, donde se revisaron los temas siguientes temas: puntos de la asamblea de 2023 el cierre del año 2022, seguimiento a indicadores financieros operativos y estratégicos con corte a Q1, Q2, Q3 respectivamente y se revisó el proyecto de presupuesto para la vigencia 2024. ",{"$f":"+Tabla16524[[#This Row],[Cuantitativo]]/Tabla16524[[#This Row],[Meta]]","v":1},4,4,5,18]
[null,18," GM3.Dinamizar la Banca de Desarrollo para la inclusión financiera que favorezca el desarrollo de los objetivos del programa \"Colombia potencia mundial de la vida\"","Indicador de objetivo, no tiene iniciativa asociada","GM3_2023_2026_Ind2 Estrategia de armonización de las entidades financieras públicas bajo el holding financiero (expedición de reglamentación)","Anual",null,"Dirección Participaciones Estatales - \nGrupo Bicentenario","NO","Piedad Muñoz",1,1,"Se expidió el Decreto Ley 1962 del 2023, por el cual se homogeneizan las disposiciones que regulan la gobernanza y los regímenes de las entidades públicas de servicios financieros.",{"$f":"+Tabla16524[[#This Row],[Cuantitativo]]/Tabla16524[[#This Row],[Meta]]","v":1},1,0,0,2]
[null,19," GM3.Dinamizar la Banca de Desarrollo para la inclusión financiera que favorezca el desarrollo de los objetivos del programa \"Colombia potencia mundial de la vida\"","Ini.2023.2026.GM3.01 Fomento de servicios financieros públicos a través del Holding Financiero y el modelo de gestión de propiedad estatal para generar valor social y económico.","Ini_2023_2026_GM3_01_Ind1 Implementación de 3 programas estratégicos del Grupo Bicentenario(Inclusión Financiera, Innovación y Finanzas Verdes)","Anual","Internacionalización, transformación productiva, para la vida y la acción climática ","Dirección Participaciones Estatales - \nGrupo Bicentenario","NO","Piedad Muñoz",5,1,"Se expidió el Decreto 2120 de 2023, por medio del cual se crea el programa “CREO, un crédito para conocernos”",1,4,4,5,5]
[null,20," GM3.Dinamizar la Banca de Desarrollo para la inclusión financiera que favorezca el desarrollo de los objetivos del programa \"Colombia potencia mundial de la vida\"","Ini.2023.2026.GM3.02 Participar en la formulación de políticas de inclusión productiva y financiera para fomentar economías populares y procesos de reindustrialización","Ini_2023_2026_GM3_02_Ind1Política pública y reglamentación de los instrumentos de financiamiento de la reindustrialización y reducción de desigualdades","Anual","Seguridad Humana y Justicia Social \nInternacionalización, transformación productiva para la vida y acción climática","Viceministerio General - Viceministerio Técnico","NO","Diego Guevara",1,1,"Apoyo en la elaboración del CONPES 4129 del 2023 de Reindustrialización, en el que se incluyen recursos hasta 300.000 millones de pesos anuales para el financiamiento de proyectos asociados a la Transición Energética Justa por medio del Fondo Colombia Potencia Mundial de la Vida. Así mismo se espera financiar proyectos de capital semilla hasta por 100.000 millones de pesos por medio de recursos del FONDES. EL decreto esta en revisión para firma y sanción presidencial. \nApoyo en la elaboración del CONPES 4129 del 2023 sobre la Política Nacional de Reindustrialización. Elaboración del Decreto 049 del 2024 que reglamenta el Fondo Colombia Potencia Mundial de la Vida. Elaboración del decreto sobre línea de crédito de capital semilla del FONDES y las condiciones de condonación. \n",{"$f":"+Tabla16524[[#This Row],[Cuantitativo]]/Tabla16524[[#This Row],[Meta]]","v":1},1,1,0,3]
[null,21," GM4. Promover un nuevo contrato social de manera sostenible y responsable en el Sistema General de Seguridad Social","Indicador de objetivo, no tiene iniciativa asociada","GM4_2023_2026_Ind1 Propuestas de lineamientos de sostenibilidad financiera y fiscal para el Sistema General de Seguridad Social","Anual","Seguridad Humana y Justicia Social","Dirección General de Regulación Económica de la Seguridad Social","NO","Flor Esther Salazar",2,2,"Por un lado, se elaboró un documento que corresponde al escenario de factibilidad del proyecto de ley 339 de 2023 Cámara, acumulado con los proyectos de ley 340, 341 y 344 de 2023 Cámara, “por medio de la cual se transforma el Sistema de Salud de Colombia y se dictan otras disposiciones”, el cual se radicó en la Cámara de Representantes el 29 de noviembre de 2023. Este documento recoge el resultado de mesas de trabajo llevadas a cabo al interior del Gobierno con las entidades involucradas (ADRES, Ministerio de Salud y DNP). Esto corresponde al indicador Ini_2023_2026_GM4_01_Ind1.\n\nPor otro lado, se elaboró un documento en Excel que contiene las observaciones al proyecto de ley 293 de 2023 “por medio de la cual se establece el sistema de protección social integral para la vejez, invalidez y muerte de origen común, y se dictan otras disposiciones” con la identificación de 43 artículos que requerirían reglamentación por el Gobierno Nacional, entendiendo con esto que serán objeto de regulación conjunta con otras carteras ministeriales por tratarse de temas relacionados con el Sistema de Protección Social Integral para la vejez, invalidez y muerte de origen común. Esto corresponde al indicador Ini_2023_2026_GM4_02_Ind1. \nCabe reseñar que la DGRESS participó con comentarios al documento de impacto fiscal sobre el texto de ponencia para segundo debate de la reforma pensional, del que se ha hecho referencia, elaborado por la Dirección General de Política Macroeconómica del Ministerio de Hacienda, de acuerdo con la asignación de dicha responsabilidad a la DGPM.",{"$f":"+Tabla16524[[#This Row],[Cuantitativo]]/Tabla16524[[#This Row],[Meta]]","v":1},2,1,1,6]
[null,22," GM4. Promover un nuevo contrato social de manera sostenible y responsable en el Sistema General de Seguridad Social","Ini.2023.2026.GM4.01 Fortalecer los lineamientos de política de sostenibilidad financiera del Sistema General de Seguridad Social en Salud y el Sistema General de Riesgos Laborales.","Ini_2023_2026_GM4_01_Ind1Documentos de lineamiento técnico","Anual","-","Dirección General de Regulación Económica de la Seguridad Social","NO","Flor Esther Salazar",1,1,"Se elaboró documento de lineamiento técnico consistente en un escenario de factibilidad del proyecto de ley 339 de 2023 Cámara, acumulado con los proyectos de ley 340, 341 y 344 de 2023 Cámara, “por medio de la cual se transforma el Sistema de Salud de Colombia y se dictan otras disposiciones”, el cual se radicó en la Cámara de Representantes el 29 de noviembre de 2023. Este documento recoge el resultado de mesas de trabajo llevadas a cabo al interior del Gobierno en lo corrido de la vigencia con las entidades involucradas (ADRES, Ministerio de Salud y DNP).",{"$f":"+Tabla16524[[#This Row],[Cuantitativo]]/Tabla16524[[#This Row],[Meta]]","v":1},1,1,1,6]
[null,23," GM4. Promover un nuevo contrato social de manera sostenible y responsable en el Sistema General de Seguridad Social","Ini.2023.2026.GM4.02 Promover la regulación de normas para avanzar en la cobertura de los mecanismos de protección a la vejez.","Ini_2023_2026_GM4_02_Ind1 Escenarios fiscales de propuesta de reforma de protección social","Anual","-","Dirección General de Regulación Económica de la Seguridad Social","NO","Flor Esther Salazar",1,1,"Se elaboró documento en Excel que contiene observaciones al proyecto de ley 293 de 2023 “por medio de la cual se establece el sistema de protección social integral para la vejez, invalidez y muerte de origen común, y se dictan otras disposiciones” con la identificación de 43 artículos que requerirían reglamentación por el Gobierno Nacional, entendiendo con esto que serán objeto de regulación conjunta con otras carteras ministeriales por tratarse de temas relacionados con el Sistema de Protección Social Integral para la vejez, invalidez y muerte de origen común. Cabe reseñar que la DGRESS participó con comentarios al documento de impacto fiscal sobre el texto de ponencia para segundo debate de la reforma pensional, del que se ha hecho referencia, elaborado por la Dirección General de Política Macroeconómica del Ministerio de Hacienda, de acuerdo con la asignación de dicha responsabilidad a la DGPM.",{"$f":"+Tabla16524[[#This Row],[Cuantitativo]]/Tabla16524[[#This Row],[Meta]]","v":1},1,0,0,2]
[null,24,"GR1. Fortalecer los mecanismos para una cultura de transparencia y participación ciudadana","Indicador de objetivo, no tiene iniciativa asociada","GR1_2023_2026_Ind1  Resultados de medición del índice de transparencia y acceso a la información pública - ITA","Anual","-","Oficina Asesora de Planeación","NO","María del Pilar Florido",0.9,"N/A","De acuerdo con la Directiva de la Procuraduría General de la Nación, 011 de 01-Ago-2023 e informe anexo a esta, el Ministerio de Hacienda no fue sujeto obligado focalizado para la vigencia 2023, dado que obtuvo en la auditoría 2022 un porcentaje de cumplimiento del 95% y no cumple con los criterios definidos en el numeral III del referido informe para ser auditado en 2023. ","N/A",0.9,0.9,0.9,0.9]
[null,25,"GR1. Fortalecer los mecanismos para una cultura de transparencia y participación ciudadana","Indicador de objetivo, no tiene iniciativa asociada","GR1_2023_2026_Ind2 Propuestas de acciones que permitan mitigar la insatisfacción en la atención a los grupos de valor.","Anual","-","Subdirección de Servicios y Relación con el Ciudadano","NO","Johanna Paola Restrepo",1,1,"*Se realizó Informe de Seguimiento a la Satisfacción de Usuarios, mediante el cual se logró establecer los aspectos que pueden generar insatisfacción en el momento de la atención.                                                    * Mediante este informe, se identificaron posibles falencias en la atención, lo cual permitirá  trabajar en acciones que permitirán mitigar la insatisfacción de los usuarios en el momento de la atención.",{"$f":"+Tabla16524[[#This Row],[Cuantitativo]]/Tabla16524[[#This Row],[Meta]]","v":1},1,1,1,4]
[null,26,"GR1. Fortalecer los mecanismos para una cultura de transparencia y participación ciudadana","Ini.2023.2026.GR1.01 Generar estrategias para la divulgación de información y relacionamiento con el ciudadano","Ini_2023_2026_GR1_01_Ind1 Estrategias de divulgación de información y relacionamiento con el ciudadano","Anual","-","Subdirección de Servicios y Relación con el Ciudadano","NO","Johanna Paola Restrepo",1,1,"* En la vigencia del 2023 se planteó como estrategia la divulgación de información y Relacionamiento con el Ciudadano, se publicaron en los medios internos (pantallas e Intranet de la entidad) diferentes tips y mensajes para fortalecer la atención al ciudadano desde las dependencias del Ministerio.                                                 * Se publicaron en la Intranet y en las pantallas del Ministerio 9 Tips y/o mensajes referentes a la Atención al Ciudadano. ",{"$f":"+Tabla16524[[#This Row],[Cuantitativo]]/Tabla16524[[#This Row],[Meta]]","v":1},1,1,1,4]
[null,27,"GR2. Promover una cultura de gestión de conocimiento e innovación para una adecuada gestión de información y analítica institucional","Indicador de objetivo, no tiene iniciativa asociada","GR2_2023_2026_Ind1 Actividades de apropiación de conocimientos basadas en Gesco+i realizadas al interior de la entidad","Anual","-","Oficina Asesora de Planeación","NO","María del Pilar Florido",1,1,"Mediante la Escuela Corporativa se habilitó y ofreció el curso virtual de “Innovación en el MHCP”, durante el II semestre de la vigencia anterior, abierto para todo el personal de planta de la entidad, el cual finalizó en diciembre 2023.",{"$f":"+Tabla16524[[#This Row],[Cuantitativo]]/Tabla16524[[#This Row],[Meta]]","v":1},1,1,1,4]
[null,28,"GR2. Promover una cultura de gestión de conocimiento e innovación para una adecuada gestión de información y analítica institucional","Ini.2023.2026.GR2.01 Fortalecer la Política de Gestión del Conocimiento y la Innovación","Ini_2023_2026_GR2_01_Ind1 Estrategias para el fortalecimiento de la política de gestión del conocimiento e innovación.","Anual","-","Oficina Asesora de Planeación","NO","María del Pilar Florido",1,1,"Mediante la estrategia ESTUDIA se realizaron sesiones de innovación con los procesos de la entidad, para determinar y apropiar conocimientos sobre ideación, creatividad organizacional y roles de equipos para innovar. ",{"$f":"+Tabla16524[[#This Row],[Cuantitativo]]/Tabla16524[[#This Row],[Meta]]","v":1},1,1,1,4]
[null,29,"GR2. Promover una cultura de gestión de conocimiento e innovación para una adecuada gestión de información y analítica institucional","Ini.2023.2026.GR2.02 Promover la gestión de expedientes electrónicos de archivo","Ini_2023_2026_GR2_02_Ind1 Implementar una serie documental para manejar expedientes híbridos en el SIED.","Anual","-","Subdirección de Servicios y Relación con el Ciudadano","NO","Johanna Paola Restrepo",0.25,0.25,"Se trabajó en la identificación de una Serie Documental híbrida, la cual fue seleccionada teniendo en cuenta su volumen documental y toda vez que la misma puede ser objeto de auditoría. Como complemento de esta actividad se elaboró un Instructivo para el Manejo de Expedientes Híbridos. Elaboración de un instructivo para el manejo de expedientes híbridos.",{"$f":"+Tabla16524[[#This Row],[Cuantitativo]]/Tabla16524[[#This Row],[Meta]]","v":1},"0.50","0.75",1,1]
[null,30,"GR2. Promover una cultura de gestión de conocimiento e innovación para una adecuada gestión de información y analítica institucional","Ini.2023.2026.GR2.03 Fortalecer la gestión organizacional y por procesos de la entidad","Ini_2023_2026_GR2_03_Ind1 documentos realizados / documentos programados","Anual","-","Oficina Asesora de Planeación","NO","María del Pilar Florido",1,1,"Se estructuró el documento de caracterización del proceso Est.2.2 y se espera avanzar con la demás documentación en la próxima vigencia. Es de anotar, que la creación del proceso fue aprobada por el Comité Institucional de Gestión y Desempeño.  ",{"$f":"+Tabla16524[[#This Row],[Cuantitativo]]/Tabla16524[[#This Row],[Meta]]","v":1},1,1,1,4]
[null,31,"GR3. Fortalecer la transformación digital para contribuir a la generación de valor público","Indicador de objetivo, no tiene iniciativa asociada","GR3_2023_2026_Ind1  Incrementar el índice FURAG para la política de gobierno digital","Anual","-","Dirección de Tecnología","NO","Ricardo Rios",0.9,"N/A","Una vez se conozcan los resultados Furag 2023, se tendrá el dato.","N/A",0.93,0.95,0.97,0.97]
[null,32,"GR3. Fortalecer la transformación digital para contribuir a la generación de valor público","Ini.2023.2026.GR3.01 Fortalecer el gobierno y gestión de datos en el MHCP","Ini_2023_2026_GR3_01_Ind1 Dominio de datos implementado anualmente de acuerdo con el marco de gobierno de datos definido para la entidad","Anual","-","Dirección de Tecnología","NO","Ricardo Rios",1,1,"Fue implementado en las áreas de conocimiento definidas. El dominio implementado fue Presupuesto.  ",{"$f":"+Tabla16524[[#This Row],[Cuantitativo]]/Tabla16524[[#This Row],[Meta]]","v":1},1,1,1,4]
[null,33,"GR3. Fortalecer la transformación digital para contribuir a la generación de valor público","Ini.2023.2026.GR3.02 Fortalecer la adopción de los elementos constitutivos de la política de gobierno digital establecidos en el Decreto 767 de 2022","Ini_2023_2026_GR3_02_Ind1Incrementar el nivel de madurez del 80% de lineamientos MGGTI y MAE de  MinTIC que presentan brechas  de acuerdo con la evaluación de madurez indicada en el PETI 2022 - 2025.","Anual","-","Dirección de Tecnología","NO","Ricardo Rios",0.15,0.375,"En la meta planteada el 15% corresponde a 8 brechas a subir de nivel, en el ejercicio realizado se llega a subir 20 brechas que corresponde a al 37.5%. Las brechas mencionadas se respaldan en la culminación de las actividades proyectadas en los contratos de consultoría de Gobierno de Datos y de PETI.",{"$f":"+Tabla16524[[#This Row],[Cuantitativo]]/Tabla16524[[#This Row],[Meta]]","v":2.5},0.25,0.2,0.2,0.8]
[null,34,"GR3. Fortalecer la transformación digital para contribuir a la generación de valor público","Ini.2023.2026.GR3.02 Fortalecer la adopción de los elementos constitutivos de la política de gobierno digital establecidos en el Decreto 767 de 2022","Ini_2023_2026_GR3_02_Ind2 Piloto anual de tecnologías emergentes siguiendo las recomendaciones de la guía de implementación de tecnologías emergentes del MinTIC .","Anual","-","Dirección de Tecnología","NO","Ricardo Rios",0,"N/A","No aplica medición para este periodo","N/A",1,1,1,3]
[null,35,"GC1. Fortalecer las capacidades del talento humano en el marco de los valores institucionales","Indicador de objetivo, no tiene iniciativa asociada","GC1_2023_2026_Ind1 Nivel de Madurez en la Dimensión de Talento Humano del Mipg, de conformidad con los Autodiagnóstico del DAFP","Anual","-","Subdirección de Gestión de Talento Humano","NO","Fernando Carvajal",0.8,0.9," La Dimensión de Talento Humano está conformada por las políticas de Talento Humano e integridad que se han implementado de acuerdo con los estándares del MIPG. Para este periodo se obtuvo un resultado de 90 puntos, dato por encima de la línea base en 10 puntos, que se sustenta en la medición de las mencionadas políticas, incremento que da cuenta de la estabilidad y el mantenimiento asertivo de los procesos de Apo.2.1 administración de personal y Apo.2.2 desarrollo de personal, a través de la ejecución del Plan Estratégico de Talento Humano, evidencias que están reportadas en los diversos módulos del SMGI.",{"$f":"+Tabla16524[[#This Row],[Cuantitativo]]/Tabla16524[[#This Row],[Meta]]","v":1.125},0.85,0.9,0.9,0.9]
[null,36,"GC1. Fortalecer las capacidades del talento humano en el marco de los valores institucionales","Ini.2023.2026.GC1.01 Promover acciones orientadas a mantener el nivel de consolidación de la Política de Gestión Estratégica de Talento Humano, de acuerdo con los lineamientos del Modelo Integrado de Planeación y Gestión - MIPG y el Modelo de Entidad Familiarmente Responsable - efr.","Ini_2023_2026_GC1_01_Ind1 Nivel de Madurez en las etapas de Gestión de la Política de Gestión del Talento Humano de la Matriz de Autodiagnóstico del DAFP","Anual","-","Subdirección de Gestión de Talento Humano","NO","Fernando Carvajal",0.8,0.93,"El resultado de 93 puntos del indicador, se observa como un incremento significativo frente a la meta planteada para la vigencia 2023, situación que permite determinar que en ese periodo se avanzó en el fortalecimiento de la Política de Gestión del Talento Humano del MIPG. Además, la herramienta en ese año presentó ajustes en sus estándares por parte de la Función Pública, cambios que fueron atendidos dentro de las actividades ejecutadas en el Plan Estratégico de Talento Humano de 2023. Así las cosas, los avances se encuentran vinculados al cumplimiento de los planes que conformaron el mencionado PETH, evidencias que están documentadas en el Módulo de Planes del SMGI. Se anexa la matriz de autodiagnóstico",{"$f":"+Tabla16524[[#This Row],[Cuantitativo]]/Tabla16524[[#This Row],[Meta]]","v":1.1625000000000001},0.85,0.9,0.9,0.9]
[null,37,"GC1. Fortalecer las capacidades del talento humano en el marco de los valores institucionales","Ini.2023.2026.GC1.02 Realizar actividades que fortalezcan la implementación de la Política de Integridad, con el propósito de alcanzar el nivel de consolidación, de acuerdo con los lineamientos del Modelo Integrado de Planeación y Gestión - MIPG.","Ini_2023_2026_GC1_02_Ind1 Nivel de Madurez en las etapas de Gestión de la Política de Integridad de la Matriz de Autodiagnóstico del DAFP","Anual","-","Subdirección de Gestión de Talento Humano","NO","Fernando Carvajal",0.8,0.8,"En la vigencia 2023 se obtuvo un resultado de 87 puntos que surgen de aplicar los instrumentos de integridad y conflicto de interés que obtuvieron 93 y 82 puntos respectivamente. Incremento de 7 puntos que se sustenta en la ejecución del Plan de Integridad, situación que permite determinar que en dicho periodo se avanzó en la implementación de la Política de Integridad del MIPG y en el fortalecimiento de la apropiación de los cinco valores del Código de Integridad, que se encuentra documentado en el Módulo de Planes del SMGI. Se anexan los autodiagnósticos 2023.",{"$f":"+Tabla16524[[#This Row],[Cuantitativo]]/Tabla16524[[#This Row],[Meta]]","v":1},0.85,0.9,0.9,0.9]
[null,38,"GC2.  Fortalecer la gestión pública a través de procesos administrativos, financieros y jurídicos","Indicador de objetivo, no tiene iniciativa asociada"," GC2_2023_2026_Ind1 Estrategias para el fortalecimiento de la gestión pública a través de procesos administrativos, financieros y jurídicos ","Anual","-","Subdirección Jurídica","NO","Diego Rivera",1,1,"Se realizaron 3 mesas de trabajo: \n\n•\tConstrucción tarifa nuevas operaciones RUNEOL.\n•\tEntidades concurrentes al para el cumplimiento de la Sentencia de Unificación SU 484 de 2008. \n•\tMesa de Dialogo SIINTRASEGURIDAD SOCIAL con MinTrabajo\nSe fortalece la gestión pública en la defensa de la institucionalidad presupuestal. ",{"$f":"+Tabla16524[[#This Row],[Cuantitativo]]/Tabla16524[[#This Row],[Meta]]","v":1},0,0,0,1]
[null,39,"GC2.  Fortalecer la gestión pública a través de procesos administrativos, financieros y jurídicos","Ini.2023.2026.GC2.01 Promover mecanismos para un ejercicio adecuado de defensa jurídica de la Entidad.","Ini_2023_2026_GC2_01_Ind1  Implementar mecanismos para la adecuada defensa jurídica de la Entidad","Anual","-","Subdirección Jurídica","NO","Diego Rivera",1,1,"  i) Se realizaron 3 mesas de trabajo para fortalecer la argumentación para la defensa dentro de los procesos judiciales es los que es parte el MHCP y con las diferentes entidades del Estado ii) Se gestionaron 3 asesorías a diversas dependencias del MHCP (OBP - DGREES - SUBSERVICIOS) ( iii) Se realizó una mesa de trabajo con una entidades del Estado para coordinar la defensa judicial (IDIAN - ITRC- FOMAG). \nSe coordinó con las Dependencias del Ministerio el intercambio de información que sea de interés para fortalecer la defensa jurídica de la Entidad y fortalecer la dinámica para la prevención del daño antijurídico. De igual manera, se apoyo jurídicamente a las áreas al interior del MHCP y a las Entidades del Sector Hacienda",{"$f":"+Tabla16524[[#This Row],[Cuantitativo]]/Tabla16524[[#This Row],[Meta]]","v":1},0,0,0,1]

{"sheet":"Integración_PAA","index":6,"n_rows":0,"n_cols":0,"rows_kept":0,"cut":false,"hidden":false,"merged":[[48,12,48,14]]}

{"sheet":"PINAR","index":7,"n_rows":29,"n_cols":21,"rows_kept":29,"cut":false,"hidden":true,"merged":[[24,11,24,15],[25,9,25,10],[25,11,26,11],[25,12,26,12],[25,13,26,13],[25,14,26,14],[25,15,26,15],[24,16,26,16],[24,17,26,17],[25,18,26,18],[25,19,26,19],[25,20,26,20],[24,18,24,20],[1,1,11,10],[24,1,26,1],[24,2,26,2],[24,3,26,3],[24,4,26,4],[24,5,26,5],[24,6,26,6],[24,7,26,7],[24,8,26,8],[24,9,24,10]]}
[]
[null,"PLAN INSTITUCIONAL DE ARCHIVOS - PINAR"]
[]
[]
[]
[]
[]
[]
[]
[]
[]
[]
[]
[]
[]
[]
[]
[]
[]
[]
[]
[]
[]
[]
[null,"Objetivo Estratégico","Iniciativa Estratégica","Categoría","Responsable de aprobar","Nombre de la Tarea","Responsable de documentar","Proceso asociado","Dependencia responsable","Año de ejecución de la actividad",null,"Fuente de Financiación (Inversión)",null,null,null,null,"Otra Fuente de Financiación**","Fuente de información de la tarea","Plan Anticorrupción y de Atención al Ciudadano"]
[null,null,null,null,null,null,null,null,null,2023,null,"Nombre del proyecto","Actividad","Producto","Indicador de producto","Apropiación Vigente",null,null,"Políticas ","Componente ","Subcomponente"]
[null,null,null,null,null,null,null,null,null,"Fecha inicial","Fecha final"]
[null,"Objetivo estratégico: GR2. Promover una cultura de gestión de conocimiento e innovación para una adecuada gestión de información y analítica institucional","Ini.2023.2026.GR2.02.Promover la gestión de expedientes electrónicos de archivo.","PAA 2023 > Grupo de Gestión de Información y de Relación con el Ciudadano","Sandra Patricia Castiblanco","Revisar las  Tablas de Retención Documental  para identificar una serie documental hibrida e identificar tipos documentales y formatos para revisar la organización Física y finalmente elaborar  instructivo expedientes híbridos","Carlos Andrés Gil","Apo 1.4","Grupo Gestión de Información y de Relación con el Ciudadano","2023-02-01","2023-12-20","N/A","N/A","N/A","N/A","N/A","Funcionamiento","Iniciativa de la dependencia","Gestión Documental","5. Transparencia y Acceso a la Información","5.4. Gestión Documental"]
[null,"Objetivo estratégico: GR2. Promover una cultura de gestión de conocimiento e innovación para una adecuada gestión de información y analítica institucional","Ini.2023.2026.GR2.02.Promover la gestión de expedientes electrónicos de archivo.","PAA 2023 > Grupo de Gestión de Información y de Relación con el Ciudadano","Sandra Patricia Castiblanco","Aplicar el  instructivo a la serie documental definida e informe impacto en la gestión serie hibrida","Carlos Andrés Gil","Apo 1.5","Grupo Gestión de Información y de Relación con el Ciudadano","2023-02-01","2023-12-20","N/A","N/A","N/A","N/A","N/A","Funcionamiento","Iniciativa de la dependencia","Gestión Documental","5. Transparencia y Acceso a la Información","5.4. Gestión Documental"]

{"sheet":"Plan_Adquisiciones ","index":8,"n_rows":31,"n_cols":21,"rows_kept":31,"cut":false,"hidden":true,"merged":[[25,18,26,18],[25,19,26,19],[25,20,26,20],[2,4,10,10],[24,11,24,15],[24,16,26,16],[24,17,26,17],[24,18,24,20],[25,9,25,10],[25,11,26,11],[25,12,26,12],[25,13,26,13],[25,14,26,14],[25,15,26,15],[24,6,26,6],[24,7,26,7],[30,1,30,11],[24,8,26,8],[24,9,24,10],[24,1,26,1],[24,2,26,2],[24,3,26,3],[24,4,26,4],[24,5,26,5]]}
[]
[]
[null,null,null,null,"PLAN \nANUAL DE ADQUISICIONES"]
[]
[]
[]
[]
[]
[]
[]
[]
[]
[]
[]
[]
[]
[]
[]
[]
[]
[]
[]
[]
[]
[null,"Objetivo Estratégico","Iniciativa Estratégica","Categoría","Responsable de aprobar","Nombre de la Tarea","Responsable de documentar","Proceso asociado","Dependencia responsable","Año de ejecución de la actividad",null,"Fuente de Financiación (Inversión)",null,null,null,null,"Otra Fuente de Financiación**","Fuente de información de la tarea","Plan Anticorrupción y de Atención al Ciudadano"]
[null,null,null,null,null,null,null,null,null,2023,null,"Nombre del proyecto","Actividad","Producto","Indicador de producto","Apropiación Vigente",null,null,"Políticas ","Componente ","Subcomponente"]
[null,null,null,null,null,null,null,null,null,"Fecha inicial","Fecha final"]
[null,"Objetivo estratégico: GR1. Fortalecer los mecanismos para una cultura de transparencia y participación ciudadana","Ini.2023.2026.GR1.01.Generar estrategias para la divulgación de información y relacionamiento con el ciudadano.","PAA 2023 > Grupo de Licitaciones y Procesos Especiales","Sonia Liliana Rojas","Implementar mecanismos de control para la divulgación de información contractual e interacción de los entes de control, veedurías y demás interesados en la participación de los procesos de contratación gestionados por el Misterio de Hacienda y Crédito Publico (MHCP).","Nidia Constanza Rojas","Apo.4.1","Grupo de Licitaciones y Proceso Especiales","2023-01-31","2023-12-20","N/A","N/A","N/A","N/A","N/A","Funcionamiento","Plataforma SECOP II","Compras y contratación pública ","5. Mecanismos para la transparencia y acceso a la información","5.1. Lineamientos de Transparencia Activa"]
[]
[]
[null,"Consulta página web https://www.minhacienda.gov.co/webcenter/portal/Contratacin/pages_PlanAnualAdquisiciones/paa2023"]

{"sheet":"Plan_de_Vacantes","index":9,"n_rows":19,"n_cols":20,"rows_kept":19,"cut":false,"hidden":true,"merged":[[14,17,14,18],[15,11,16,11],[15,12,16,12],[15,17,16,17],[15,18,16,18],[15,13,16,13],[14,19,16,19],[14,15,16,15],[14,16,16,16],[14,11,14,14],[1,1,11,10],[14,1,16,1],[14,2,16,2],[14,3,16,3],[14,4,16,4],[14,5,16,5],[14,6,16,6],[14,7,16,7],[14,8,16,8],[15,9,15,10],[14,9,14,10],[15,14,16,14]]}
[]
[null,"PLAN ANUAL DE VACANTES"]
[]
[]
[]
[]
[]
[]
[]
[]
[]
[]
[]
[]
[null,"Objetivo Estratégico","Iniciativa Estratégica","Categoría","Responsable de aprobar","Nombre de la Tarea","Responsable de documentar","Proceso asociado","Dependencia responsable","Año de ejecución de la actividad",null,"Fuente de Financiación (Inversión)",null,null,null,"Otra Fuente de Financiación**","Fuente de información de la tarea","Plan Anticorrupción y de Atención al Ciudadano",null,"Modelo Integrado de Planeación y Gestión"]
[null,null,null,null,null,null,null,null,null,2023,null,"Nombre del proyecto","Actividad","Producto","Apropiación Vigente",null,null,"Componente ","Subcomponente","Dimensión"]
[null,null,null,null,null,null,null,null,null,"Fecha inicial","Fecha final"]
["ACTUALIZACIÓN DE LINEAMIENTOS DE LA POLÍTICA PÚBLICA DE SERVICIO AL CIUDADANO","Objetivo estratégico: GC1. Fortalecer las capacidades del talento humano en el marco de los valores institucionales","Ini.2023.2026.GC1.01.Promover acciones orientadas a mantener el nivel de consolidación de la Política de Gestión Estratégica de Talento Humano, de acuerdo con lo lineamientos del Modelo Integrado de Planeación y Gestión - MIPG y el Modelo de Entidad Familiarmente Responsable - efr.","PAA 2023 > Subdirección de Gestión del Talento Humano","Fernando Antonio Carvajal","Realizar las actividades a cargo del proceso Apo.2.1 relacionadas con el ciclo de vida del servidor público, los estándares de la norma entidad familiarmente responsable - efr y las rutas de creación de valor (felicidad, crecimiento, servicio, calidad, análisis de datos), según lo estipulado en el PETH.","Cristian Giovanny Leal Pardo","Apo 2.1","Subdirección de Gestión del  Talento Humano","2023-02-01","2023-12-20","N/A","N/A","N/A","N/A","Funcionamiento","Necesidades MHCP","N/A","N/A","Talento Humano"]
[null,"Objetivo estratégico: GC1. Fortalecer las capacidades del talento humano en el marco de los valores institucionales","Ini.2023.2026.GC1.01.Promover acciones orientadas a mantener el nivel de consolidación de la Política de Gestión Estratégica de Talento Humano, de acuerdo con lo lineamientos del Modelo Integrado de Planeación y Gestión - MIPG y el Modelo de Entidad Familiarmente Responsable - efr.","PAA 2023 > Subdirección de Gestión del Talento Humano","Fernando Antonio Carvajal","Realizar las actividades a cargo del proceso Apo.2.2 relacionadas con el ciclo de vida del servidor público, los estándares de la norma entidad familiarmente responsable - efr y las rutas de creación de valor (felicidad, crecimiento, servicio, calidad, análisis de datos), según lo estipulado en el PETH.","Karen Duque Aguirre","Apo 2.2","Subdirección de Gestión del  Talento Humano","2023-02-01","2023-12-20"," Fortalecimiento de las Competencias Técnicas de los Funcionarios del MHCP Nacional","* Desarrollar la convocatoria para\nofrecer cupos de Estudios en el\nExterior del País.\n* Desarrollar la convocatoria para ofrecer cupos de estudio del idioma inglés.","Servicio de Apoyo Financiero para\nel Fortalecimiento del Talento\nHumano",1496180182,"Funcionamiento e  Inversión","Necesidades MHCP","N/A","N/A","Talento Humano"]

{"sheet":"Plan_de_Previsión","index":10,"n_rows":19,"n_cols":20,"rows_kept":19,"cut":false,"hidden":true,"merged":[[14,15,16,15],[14,1,16,1],[14,2,16,2],[14,3,16,3],[14,4,16,4],[14,5,16,5],[4,2,9,7],[14,17,14,18],[14,19,16,19],[15,17,16,17],[15,18,16,18],[15,9,15,10],[15,11,16,11],[15,12,16,12],[15,13,16,13],[15,14,16,14],[14,9,14,10],[14,16,16,16],[14,6,16,6],[14,7,16,7],[14,8,16,8],[14,11,14,14]]}
[]
[]
[]
[]
[null,null,"PLAN ANUAL DE PREVISIÓN \nDE RECURSOS HUMANOS"]
[]
[]
[]
[]
[]
[]
[]
[]
[]
[null,"Objetivo Estratégico","Iniciativa Estratégica","Categoría","Responsable de aprobar","Nombre de la Tarea","Responsable de documentar","Proceso asociado","Dependencia responsable","Año de ejecución de la actividad",null,"Fuente de Financiación (Inversión)",null,null,null,"Otra Fuente de Financiación**","Fuente de información de la tarea","Plan Anticorrupción y de Atención al Ciudadano",null,"Modelo Integrado de Planeación y Gestión"]
[null,null,null,null,null,null,null,null,null,2023,null,"Nombre del proyecto","Actividad","Producto","Apropiación Vigente",null,null,"Componente ","Subcomponente","Dimensión"]
[null,null,null,null,null,null,null,null,null,"Fecha inicial","Fecha final"]
[null,"Objetivo estratégico: GC1. Fortalecer las capacidades del talento humano en el marco de los valores institucionales","Ini.2023.2026.GC1.01.Promover acciones orientadas a mantener el nivel de consolidación de la Política de Gestión Estratégica de Talento Humano, de acuerdo con lo lineamientos del Modelo Integrado de Planeación y Gestión - MIPG y el Modelo de Entidad Familiarmente Responsable - efr.","PAA 2023 > Subdirección de Gestión del Talento Humano","Fernando Antonio Carvajal","Realizar las actividades a cargo del proceso Apo.2.1 relacionadas con el ciclo de vida del servidor público, los estándares de la norma entidad familiarmente responsable - efr y las rutas de creación de valor (felicidad, crecimiento, servicio, calidad, análisis de datos), según lo estipulado en el PETH.","Cristian Giovanny Leal Pardo","Apo 2.1","Subdirección de Gestión del  Talento Humano","2023-02-01","2023-12-20","N/A","N/A","N/A","N/A","Funcionamiento","Necesidades MHCP","N/A","N/A","Talento Humano"]
[null,"Objetivo estratégico: GC1. Fortalecer las capacidades del talento humano en el marco de los valores institucionales","Ini.2023.2026.GC1.01.Promover acciones orientadas a mantener el nivel de consolidación de la Política de Gestión Estratégica de Talento Humano, de acuerdo con lo lineamientos del Modelo Integrado de Planeación y Gestión - MIPG y el Modelo de Entidad Familiarmente Responsable - efr.","PAA 2023 > Subdirección de Gestión del Talento Humano","Fernando Antonio Carvajal","Realizar las actividades a cargo del proceso Apo.2.2 relacionadas con el ciclo de vida del servidor público, los estándares de la norma entidad familiarmente responsable - efr y las rutas de creación de valor (felicidad, crecimiento, servicio, calidad, análisis de datos), según lo estipulado en el PETH.","Karen Duque Aguirre","Apo 2.2","Subdirección de Gestión del  Talento Humano","2023-02-01","2023-12-20"," Fortalecimiento de las Competencias Técnicas de los Funcionarios del MHCP Nacional","* Desarrollar la convocatoria para\nofrecer cupos de Estudios en el\nExterior del País.\n* Desarrollar la convocatoria para ofrecer cupos de estudio del idioma inglés.","Servicio de Apoyo Financiero para\nel Fortalecimiento del Talento\nHumano",1496180182,"Funcionamiento e  Inversión","Necesidades MHCP","N/A","N/A","Talento Humano"]

{"sheet":"PETH","index":11,"n_rows":23,"n_cols":20,"rows_kept":23,"cut":false,"hidden":true,"merged":[[17,15,19,15],[17,16,19,16],[17,17,17,18],[18,9,18,10],[18,11,19,11],[18,12,19,12],[18,13,19,13],[18,14,19,14],[18,17,19,17],[18,18,19,18],[1,1,11,12],[17,1,19,1],[17,2,19,2],[17,3,19,3],[17,4,19,4],[17,5,19,5],[17,6,19,6],[17,7,19,7],[17,8,19,8],[17,9,17,10],[17,11,17,14]]}
[]
[null,"PLAN ESTRATÉGICO DE TALENTO HUMANO"]
[]
[]
[]
[]
[]
[]
[]
[]
[]
[]
[]
[]
[]
[]
[]
[null,"Objetivo Estratégico","Iniciativa Estratégica","Categoría","Responsable de aprobar","Nombre de la Tarea","Responsable de documentar","Proceso asociado","Dependencia responsable","Año de ejecución de la actividad",null,"Fuente de Financiación (Inversión)",null,null,null,"Otra Fuente de Financiación**","Fuente de información de la tarea","Plan Anticorrupción y de Atención al Ciudadano",null,"Modelo Integrado de Planeación y Gestión"]
[null,null,null,null,null,null,null,null,null,2023,null,"Nombre del proyecto","Actividad","Producto","Apropiación Vigente",null,null,"Componente ","Subcomponente","Dimensión"]
[null,null,null,null,null,null,null,null,null,"Fecha inicial","Fecha final"]
[null,"Objetivo estratégico: GC1. Fortalecer las capacidades del talento humano en el marco de los valores institucionales","Ini.2023.2026.GC1.01.Promover acciones orientadas a mantener el nivel de consolidación de la Política de Gestión Estratégica de Talento Humano, de acuerdo con lo lineamientos del Modelo Integrado de Planeación y Gestión - MIPG y el Modelo de Entidad Familiarmente Responsable - efr.","PAA 2023 > Subdirección de Gestión del Talento Humano","Fernando Antonio Carvajal","Realizar las actividades a cargo del proceso Apo.2.1 relacionadas con el ciclo de vida del servidor público, los estándares de la norma entidad familiarmente responsable - efr y las rutas de creación de valor (felicidad, crecimiento, servicio, calidad, análisis de datos), según lo estipulado en el PETH.","Cristian Giovanny Leal Pardo","Apo 2.1","Subdirección de Gestión del  Talento Humano","2023-02-01","2023-12-20","N/A","N/A","N/A","N/A","Funcionamiento","Necesidades MHCP","N/A","N/A","Talento Humano"]
[null,"Objetivo estratégico: GC1. Fortalecer las capacidades del talento humano en el marco de los valores institucionales","Ini.2023.2026.GC1.01.Promover acciones orientadas a mantener el nivel de consolidación de la Política de Gestión Estratégica de Talento Humano, de acuerdo con lo lineamientos del Modelo Integrado de Planeación y Gestión - MIPG y el Modelo de Entidad Familiarmente Responsable - efr.","PAA 2023 > Subdirección de Gestión del Talento Humano","Fernando Antonio Carvajal","Realizar las actividades a cargo del proceso Apo.2.2 relacionadas con el ciclo de vida del servidor público, los estándares de la norma entidad familiarmente responsable - efr y las rutas de creación de valor (felicidad, crecimiento, servicio, calidad, análisis de datos), según lo estipulado en el PETH.","Karen Duque Aguirre","Apo 2.2","Subdirección de Gestión del  Talento Humano","2023-02-01","2023-12-20"," Fortalecimiento de las Competencias Técnicas de los Funcionarios del MHCP Nacional","* Desarrollar la convocatoria para\nofrecer cupos de Estudios en el\nExterior del País.\n* Desarrollar la convocatoria para ofrecer cupos de estudio del idioma inglés.","Servicio de Apoyo Financiero para\nel Fortalecimiento del Talento\nHumano",1496180182,"Funcionamiento e  Inversión","Necesidades MHCP","N/A","N/A","Talento Humano"]
[null,"Objetivo estratégico: GC1. Fortalecer las capacidades del talento humano en el marco de los valores institucionales","Ini.2023.2026.GC1.02.Realizar actividades que fortalezcan la implementación de la Política de Integridad, con el propósito de alcanzar el nivel de consolidación, de acuerdo con los lineamientos del Modelo Integrado de Planeación y Gestión - MIPG.","PAA 2023 > Subdirección de Gestión del Talento Humano","Fernando Antonio Carvajal","Ejecutar actividades que promuevan la cultura de integridad, de conformidad con las líneas de trabajo estipuladas en el Plan Estratégico de Talento Humano de cada vigencia.","Karen Duque Aguirre","Apo 2.3","Subdirección de Gestión del  Talento Humano","2023-02-01","2023-12-20","N/A","N/A","N/A","N/A","Funcionamiento","Necesidades MHCP","6. Iniciativas Adicionales","N/A","Integridad"]

{"sheet":"PIC","index":12,"n_rows":19,"n_cols":20,"rows_kept":19,"cut":false,"hidden":true,"merged":[[14,17,14,18],[14,19,16,19],[15,9,15,10],[15,11,16,11],[15,12,16,12],[15,13,16,13],[15,14,16,14],[15,17,16,17],[15,18,16,18],[14,8,16,8],[14,9,14,10],[14,11,14,14],[14,15,16,15],[14,16,16,16],[1,1,11,7],[14,1,16,1],[14,2,16,2],[14,3,16,3],[14,4,16,4],[14,5,16,5],[14,6,16,6],[14,7,16,7]]}
[]
[null,"PLAN INSTITUCIONAL \nDE CAPACITACIÓN - PIC"]
[]
[]
[]
[]
[]
[]
[]
[]
[]
[]
[]
[]
[null,"Objetivo Estratégico","Iniciativa Estratégica","Categoría","Responsable de aprobar","Nombre de la Tarea","Responsable de documentar","Proceso asociado","Dependencia responsable","Año de ejecución de la actividad",null,"Fuente de Financiación (Inversión)",null,null,null,"Otra Fuente de Financiación**","Fuente de información de la tarea","Plan Anticorrupción y de Atención al Ciudadano",null,"Modelo Integrado de Planeación y Gestión"]
[null,null,null,null,null,null,null,null,null,2023,null,"Nombre del proyecto","Actividad","Producto","Apropiación Vigente",null,null,"Componente ","Subcomponente","Dimensión"]
[null,null,null,null,null,null,null,null,null,"Fecha inicial","Fecha final"]
[null,"Objetivo estratégico: GC1. Fortalecer las capacidades del talento humano en el marco de los valores institucionales","Ini.2023.2026.GC1.01.Promover acciones orientadas a mantener el nivel de consolidación de la Política de Gestión Estratégica de Talento Humano, de acuerdo con lo lineamientos del Modelo Integrado de Planeación y Gestión - MIPG y el Modelo de Entidad Familiarmente Responsable - efr.","PAA 2023 > Subdirección de Gestión del Talento Humano","Fernando Antonio Carvajal","Realizar las actividades a cargo del proceso Apo.2.1 relacionadas con el ciclo de vida del servidor público, los estándares de la norma entidad familiarmente responsable - efr y las rutas de creación de valor (felicidad, crecimiento, servicio, calidad, análisis de datos), según lo estipulado en el PETH.","Cristian Giovanny Leal Pardo","Apo 2.1","Subdirección de Gestión del  Talento Humano","2023-02-01","2023-12-20","N/A","N/A","N/A","N/A","Funcionamiento","Necesidades MHCP","N/A","N/A","Talento Humano"]
[null,"Objetivo estratégico: GC1. Fortalecer las capacidades del talento humano en el marco de los valores institucionales","Ini.2023.2026.GC1.01.Promover acciones orientadas a mantener el nivel de consolidación de la Política de Gestión Estratégica de Talento Humano, de acuerdo con lo lineamientos del Modelo Integrado de Planeación y Gestión - MIPG y el Modelo de Entidad Familiarmente Responsable - efr.","PAA 2023 > Subdirección de Gestión del Talento Humano","Fernando Antonio Carvajal","Realizar las actividades a cargo del proceso Apo.2.2 relacionadas con el ciclo de vida del servidor público, los estándares de la norma entidad familiarmente responsable - efr y las rutas de creación de valor (felicidad, crecimiento, servicio, calidad, análisis de datos), según lo estipulado en el PETH.","Karen Duque Aguirre","Apo 2.2","Subdirección de Gestión del  Talento Humano","2023-02-01","2023-12-20"," Fortalecimiento de las Competencias Técnicas de los Funcionarios del MHCP Nacional","* Desarrollar la convocatoria para\nofrecer cupos de Estudios en el\nExterior del País.\n* Desarrollar la convocatoria para ofrecer cupos de estudio del idioma inglés.","Servicio de Apoyo Financiero para\nel Fortalecimiento del Talento\nHumano",1496180182,"Funcionamiento e  Inversión","Necesidades MHCP","N/A","N/A","Talento Humano"]

{"sheet":"Plan_de_Incentivos","index":13,"n_rows":53,"n_cols":20,"rows_kept":53,"cut":false,"hidden":true,"merged":[[47,17,47,18],[47,19,49,19],[48,9,48,10],[48,11,49,11],[48,12,49,12],[48,13,49,13],[48,14,49,14],[48,17,49,17],[48,18,49,18],[47,9,47,10],[47,11,47,14],[47,15,49,15],[47,16,49,16],[3,2,10,11],[47,8,49,8],[52,1,52,3],[47,1,49,1],[47,2,49,2],[47,3,49,3],[47,4,49,4],[47,5,49,5],[47,6,49,6],[47,7,49,7]]}
[]
[]
[]
[null,null,"PLAN DE BIENESTAR E INCENTIVOS\n INSTITUCIONALES"]
[]
[]
[]
[]
[]
[]
[]
[]
[]
[]
[]
[]
[]
[]
[]
[]
[]
[]
[]
[]
[]
[]
[]
[]
[]
[]
[]
[]
[]
[]
[]
[]
[]
[]
[]
[]
[]
[]
[]
[]
[]
[]
[]
[null,"Objetivo Estratégico","Iniciativa Estratégica","Categoría","Responsable de aprobar","Nombre de la Tarea","Responsable de documentar","Proceso asociado","Dependencia responsable","Año de ejecución de la actividad",null,"Fuente de Financiación (Inversión)",null,null,null,"Otra Fuente de Financiación**","Fuente de información de la tarea","Plan Anticorrupción y de Atención al Ciudadano",null,"Modelo Integrado de Planeación y Gestión"]
[null,null,null,null,null,null,null,null,null,2023,null,"Nombre del proyecto","Actividad","Producto","Apropiación Vigente",null,null,"Componente ","Subcomponente","Dimensión"]
[null,null,null,null,null,null,null,null,null,"Fecha inicial","Fecha final"]
[]
[]
[null,"No se incluyeron acciones"]

{"sheet":"PSST","index":14,"n_rows":23,"n_cols":20,"rows_kept":23,"cut":false,"hidden":true,"merged":[[17,11,17,14],[17,15,19,15],[17,16,19,16],[17,17,17,18],[17,19,19,19],[18,11,19,11],[18,12,19,12],[18,13,19,13],[18,14,19,14],[18,17,19,17],[18,18,19,18],[18,9,18,10],[22,1,22,3],[1,1,11,10],[17,1,19,1],[17,2,19,2],[17,3,19,3],[17,4,19,4],[17,5,19,5],[17,6,19,6],[17,7,19,7],[17,8,19,8],[17,9,17,10]]}
[]
[null,"PLAN DE TRABAJO ANUAL EN SEGURIDAD Y SALUD \nEN EL TRABAJO - PSST"]
[]
[]
[]
[]
[]
[]
[]
[]
[]
[]
[]
[]
[]
[]
[]
[null,"Objetivo Estratégico","Iniciativa Estratégica","Categoría","Responsable de aprobar","Nombre de la Tarea","Responsable de documentar","Proceso asociado","Dependencia responsable","Año de ejecución de la actividad",null,"Fuente de Financiación (Inversión)",null,null,null,"Otra Fuente de Financiación**","Fuente de información de la tarea","Plan Anticorrupción y de Atención al Ciudadano",null,"Modelo Integrado de Planeación y Gestión"]
[null,null,null,null,null,null,null,null,null,2023,null,"Nombre del proyecto","Actividad","Producto","Apropiación Vigente",null,null,"Componente ","Subcomponente","Dimensión"]
[null,null,null,null,null,null,null,null,null,"Fecha inicial","Fecha final"]
[]
[]
[null,"No se incluyeron acciones"]

{"sheet":"PAAC","index":15,"n_rows":3,"n_cols":4,"rows_kept":3,"cut":false,"hidden":true,"merged":[[55,14,62,23],[2,3,9,14]]}
[" "]
[]
[null,null,null,"PLAN ANTICORRUPCIÓN Y DE ATENCIÓN AL CIUDADANO"]

{"sheet":"Riesgos","index":16,"n_rows":11,"n_cols":20,"rows_kept":11,"cut":false,"hidden":true,"merged":[[6,19,8,19],[7,9,7,10],[7,11,8,11],[7,12,8,12],[7,13,8,13],[7,14,8,14],[7,17,8,17],[7,18,8,18],[6,9,6,10],[6,11,6,14],[6,15,8,15],[6,16,8,16],[6,17,6,18],[1,1,3,2],[1,3,3,16],[6,1,8,1],[6,2,8,2],[6,3,8,3],[6,4,8,4],[6,5,8,5],[6,6,8,6],[6,7,8,7],[6,8,8,8]]}
[]
[null,null,null,"PLAN ANTICORRUPCIÓN Y DE ATENCIÓN AL CIUDADANO\nComponente:Gestion del Riesgos "]
[]
[]
[]
[]
[null,"Objetivo Estratégico","Iniciativa Estratégica","Categoría","Responsable de aprobar","Nombre de la Tarea","Responsable de documentar","Proceso asociado","Dependencia responsable","Año de ejecución de la actividad",null,"Fuente de Financiación (Inversión)",null,null,null,"Otra Fuente de Financiación**","Fuente de información de la tarea","Plan Anticorrupción y de Atención al Ciudadano",null,"Modelo Integrado de Planeación y Gestión"]
[null,null,null,null,null,null,null,null,null,2023,null,"Nombre del proyecto","Actividad","Producto","Apropiación Vigente",null,null,"Componente ","Subcomponente","Dimensión"]
[null,null,null,null,null,null,null,null,null,"Fecha inicial","Fecha final"]
[null,"Objetivo estratégico: GR2. Promover una cultura de gestión de conocimiento e innovación para una adecuada gestión de información y analítica institucional","Ini.2023.2026.GR2.03.Fortalecer la gestión organizacional y por procesos de la entidad.","PAA_2023","Maria del Pilar Florido","Construir el contexto estratégico y perfeccionar la planeación estratégica institucional y sectorial","Catherine Cifuentes","Est.1.1","Oficina Asesora de Planeación","2023-07-01","2023-12-20","N/A","N/A","N/A","N/A","Funcionamiento","Iniciativa dependencia","1. Gestión del Riesgo de Corrupción","1.4. Monitoreo y revisión","Planeación Institucional "]
[null,"Objetivo estratégico: GR2. Promover una cultura de gestión de conocimiento e innovación para una adecuada gestión de información y analítica institucional","Ini.2023.2026.GR2.03.Fortalecer la gestión organizacional y por procesos de la entidad.","PAA_2023","Maria del Pilar Florido","Administrar conforme a la normatividad vigente la política de administración del riesgos","Liliana Parra","Est.1.4","Oficina Asesora de Planeación","2023-04-01","2023-12-20","N/A","N/A","N/A","N/A","Funcionamiento","Iniciativa dependencia","1. Gestión del Riesgo de Corrupción","1.1. Política de Administración de Riesgos","Planeación Institucional "]

{"sheet":"Trámites","index":17,"n_rows":11,"n_cols":20,"rows_kept":11,"cut":false,"hidden":true,"merged":[[6,17,6,18],[6,19,8,19],[7,9,7,10],[7,11,8,11],[7,12,8,12],[7,13,8,13],[7,14,8,14],[7,17,8,17],[7,18,8,18],[1,1,3,16],[6,6,8,6],[6,7,8,7],[6,8,8,8],[6,9,6,10],[6,11,6,14],[6,15,8,15],[6,1,8,1],[6,2,8,2],[6,3,8,3],[6,4,8,4],[6,5,8,5],[6,16,8,16]]}
[]
[null,"PLAN ANTICORRUPCIÓN Y DE ATENCIÓN AL CIUDADANO\nComponente: Racionalización de Trámites"]
[]
[]
[]
[]
[null,"Objetivo Estratégico","Iniciativa Estratégica","Categoría","Responsable de aprobar","Nombre de la Tarea","Responsable de documentar","Proceso asociado","Dependencia responsable","Año de ejecución de la actividad",null,"Fuente de Financiación (Inversión)",null,null,null,"Otra Fuente de Financiación**","Fuente de información de la tarea","Plan Anticorrupción y de Atención al Ciudadano",null,"Modelo Integrado de Planeación y Gestión"]
[null,null,null,null,null,null,null,null,null,2023,null,"Nombre del proyecto","Actividad","Producto","Apropiación Vigente",null,null,"Componente ","Subcomponente","Dimensión"]
[null,null,null,null,null,null,null,null,null,"Fecha inicial","Fecha final"]
[null,"Objetivo estratégico: GR1. Fortalecer los mecanismos para una cultura de transparencia y participación ciudadana","Ini.2023.2026.GR1.01.Generar estrategias para la divulgación de información y relacionamiento con el ciudadano.","PAA_2023","María del Pilar Florido","Gestionar la formulación y seguimiento de la estrategia de racionalización de tramites y otros procedimientos administrativos","Liliana Parra","Est.1.4","Oficina Asesora de Planeación ","2023-01-31","2023-12-20","N/A","N/A","N/A","N/A","Funcionamiento","Iniciativa de la dependencia","2. Racionalización de trámites","2.3 Racionalización de tramites"," Racionalización de trámites"]
[null,"Objetivo estratégico: GR1. Fortalecer los mecanismos para una cultura de transparencia y participación ciudadana","Ini.2023.2026.GR1.01.Generar estrategias para la divulgación de información y relacionamiento con el ciudadano.","PAA_2023","María del Pilar Florido","Estructurar una metodología para la evaluación de la satisfacción de los usuarios de trámites y otros procedimientos administrativos","Liliana Parra","Est.1.4","Oficina Asesora de Planeación ","2023-01-31","2023-12-20","N/A","N/A","N/A","N/A","Funcionamiento","Iniciativa de la dependencia","2. Racionalización de trámites","2.3 Racionalización de tramites","Racionalización de Trámites"]

{"sheet":"Rendición_de_Cuentas","index":18,"n_rows":11,"n_cols":20,"rows_kept":11,"cut":false,"hidden":true,"merged":[[6,17,6,18],[6,19,8,19],[7,9,7,10],[7,11,8,11],[7,12,8,12],[7,13,8,13],[7,14,8,14],[7,17,8,17],[7,18,8,18],[1,1,3,16],[6,1,8,1],[6,2,8,2],[6,3,8,3],[6,4,8,4],[6,5,8,5],[6,6,8,6],[6,7,8,7],[6,8,8,8],[6,9,6,10],[6,11,6,14],[6,15,8,15],[6,16,8,16]]}
[]
[null,"PLAN ANTICORRUPCIÓN Y DE ATENCIÓN AL CIUDADANO\nComponente: Rendición de Cuentas"]
[]
[]
[]
[]
[null,"Objetivo Estratégico","Iniciativa Estratégica","Categoría","Responsable de aprobar","Nombre de la Tarea","Responsable de documentar","Proceso asociado","Dependencia responsable","Año de ejecución de la actividad",null,"Fuente de Financiación (Inversión)",null,null,null,"Otra Fuente de Financiación**","Fuente de información de la tarea","Plan Anticorrupción y de Atención al Ciudadano",null,"Modelo Integrado de Planeación y Gestión"]
[null,null,null,null,null,null,null,null,null,2023,null,"Nombre del proyecto","Actividad","Producto","Apropiación Vigente",null,null,"Componente ","Subcomponente","Dimensión"]
[null,null,null,null,null,null,null,null,null,"Fecha inicial","Fecha final"]
[null,"Objetivo estratégico: GR1. Fortalecer los mecanismos para una cultura de transparencia y participación ciudadana","Ini.2023.2026.GR1.01.Generar estrategias para la divulgación de información y relacionamiento con el ciudadano.","PAA_2023","María del Pilar Florido","Estructurar la estrategia de rendición de cuentas en donde se presenten los resultados de la gestión misional y la gestión institucional.","Catherine Cifuentes","Est. 1.1 ","Oficina Asesora de Planeación ","2023-07-01","2023-12-20","N/A","N/A","N/A","N/A","Funcionamiento","Iniciativa de la dependencia","3. Rendición de cuentas","3.2. Desarrollar escenarios de diálogo de doble vía con la ciudadanía y sus organizaciones.\n\n3.3 Responder a compromisos propuestos, evaluación y retroalimentación en los ejercicios de rendición de cuentas con acciones correctivas para mejora.\n\n","Participación Ciudadana en la Gestión Pública"]
[null,"Objetivo estratégico: GR1. Fortalecer los mecanismos para una cultura de transparencia y participación ciudadana","Ini.2023.2026.GR1.01.Generar estrategias para la divulgación de información y relacionamiento con el ciudadano.","PAA_2024","Edgar Laiton","Fortalecer los espacios de comunicación interna y externa, que genere información de interés a los servidores públicos, incentive la participación ciudadana y el reconocimiento de la marca del Ministerio de Hacienda.","Olga Ximena Novoa","Est.2.1","Comunicaciones","2023-04-10","2023-12-20","N/A","N/A","N/A","N/A","Funcionamiento","Iniciativa de la dependencia","3. Rendición de cuentas","3.1 Informar avances y resultados de la gestión con calidad y en lenguaje comprensible","Participación Ciudadana en la Gestión Pública"]

{"sheet":"Servicio_al_Ciudadano","index":19,"n_rows":15,"n_cols":20,"rows_kept":15,"cut":false,"hidden":true,"merged":[[6,17,6,18],[6,19,8,19],[7,11,8,11],[7,12,8,12],[7,13,8,13],[7,14,8,14],[7,17,8,17],[7,18,8,18],[1,1,3,2],[1,3,3,16],[6,1,8,1],[6,2,8,2],[6,3,8,3],[6,4,8,4],[6,5,8,5],[6,6,8,6],[6,7,8,7],[6,8,8,8],[6,9,6,10],[7,9,7,10],[6,11,6,14],[6,15,8,15],[6,16,8,16]]}
[]
[null,null,null,"PLAN ANTICORRUPCIÓN Y DE ATENCIÓN AL CIUDADANO\nComponente: Mecanismos para mejorar la Atención al Ciudadano"]
[]
[]
[]
[]
[null,"Objetivo Estratégico","Iniciativa Estratégica","Categoría","Responsable de aprobar","Nombre de la Tarea","Responsable de documentar","Proceso asociado","Dependencia responsable","Año de ejecución de la actividad",null,"Fuente de Financiación (Inversión)",null,null,null,"Otra Fuente de Financiación**","Fuente de información de la tarea","Plan Anticorrupción y de Atención al Ciudadano",null,"Modelo Integrado de Planeación y Gestión"]
[null,null,null,null,null,null,null,null,null,2023,null,"Nombre del proyecto","Actividad","Producto","Apropiación Vigente",null,null,"Componente ","Subcomponente","Dimensión"]
[null,null,null,null,null,null,null,null,null,"Fecha inicial","Fecha final"]
[null,"Objetivo estratégico: GR1. Fortalecer los mecanismos para una cultura de transparencia y participación ciudadana","Ini.2023.2026.GR1.01.Generar estrategias para la divulgación de información y relacionamiento con el ciudadano.","PAA_2023","Sandra Patricia Castiblanco","Realizar instructivo de seguimiento a la satisfacción del servicio prestado y consolidar  base de datos.","Carlos Andrés Gil","Apo.6.1","Grupo de Gestión de Información y de Relación con el ciudadano","2023-01-31","2023-12-20","N/A","N/A","N/A","N/A","Funcionamiento","Iniciativa de la dependencia","4. Servicio al Ciudadano","4.2. Fortalecimiento de los canales de atención","Servicio al Ciudadano"]
[null,"Objetivo estratégico: GR1. Fortalecer los mecanismos para una cultura de transparencia y participación ciudadana","Ini.2023.2026.GR1.01.Generar estrategias para la divulgación de información y relacionamiento con el ciudadano.","PAA_2023","Sandra Patricia Castiblanco","Realizar campañas de sensibilización a la ciudadanía donde se promueva la realización de veedurías y participación ciudadana.","Carlos Andrés Gil","Apo.6.2","Grupo de Gestión de Información y de Relación con el ciudadano","2023-01-31","2023-12-20","N/A","N/A","N/A","N/A","Funcionamiento","Iniciativa de la dependencia","4. Servicio al Ciudadano","4.4. Conocimiento al servicio al ciudadano.","Servicio al Ciudadano"]
[null,"Objetivo estratégico: GR1. Fortalecer los mecanismos para una cultura de transparencia y participación ciudadana","Ini.2023.2026.GR1.01.Generar estrategias para la divulgación de información y relacionamiento con el ciudadano.","PAA_2023","Sandra Patricia Castiblanco","Consolidar base de datos y elaborar el informe cuatrimestral con el análisis y propuestas para mitigar la insatisfacción.","Carlos Andrés Gil","Apo.6.3","Grupo de Gestión de Información y de Relación con el ciudadano","2023-01-31","2023-12-20","N/A","N/A","N/A","N/A","Funcionamiento","Iniciativa de la dependencia","4. Servicio al Ciudadano","4.5. Evaluación de gestión y medición de la percepción ciudadana.","Servicio al Ciudadano"]
[null,"Objetivo estratégico: GR1. Fortalecer los mecanismos para una cultura de transparencia y participación ciudadana","Ini.2023.2026.GR1.01.Generar estrategias para la divulgación de información y relacionamiento con el ciudadano.","PAA_2023","Sandra Patricia Castiblanco","Realizar la identificación de necesidades para el diseño de una aplicación de interacción ciudadana con la biblioteca pública.","Carlos Andrés Gil","Apo.6.4","Grupo de Gestión de Información y de Relación con el ciudadano","2023-01-31","2023-12-20","N/A","N/A","N/A","N/A","Funcionamiento","Iniciativa de la dependencia","4. Servicio al Ciudadano","4.3. Gestión de relacionamiento con los ciudadanos.","Servicio al Ciudadano"]
[null,"Objetivo estratégico: GR1. Fortalecer los mecanismos para una cultura de transparencia y participación ciudadana","Ini.2023.2026.GR1.01.Generar estrategias para la divulgación de información y relacionamiento con el ciudadano.","PAA_2023","Sandra Patricia Castiblanco","Estructurar la ruta académica que permita a los estudiantes de bachillerato (décimo y once) y de pregrado entender el propósito del MHCP en el desarrollo del país.","Carlos Andrés Gil","Apo.6.5","Grupo de Gestión de Información y de Relación con el ciudadano","2023-01-31","2023-12-20","N/A","N/A","N/A","N/A","Funcionamiento","Iniciativa de la dependencia","4. Servicio al Ciudadano","4.3. Gestión de relacionamiento con los ciudadanos.","Servicio al Ciudadano"]
[null,"Objetivo estratégico: GR1. Fortalecer los mecanismos para una cultura de transparencia y participación ciudadana","Ini.2023.2026.GR1.01.Generar estrategias para la divulgación de información y relacionamiento con el ciudadano.","PAA_2023","Sandra Patricia Castiblanco","Promover la ruta académica que permita que los estudiantes de bachillerato (décimo y once) y de pregrado que permita entender el propósito del MHCP en el desarrollo del país.","Carlos Andrés Gil","Apo.6.6","Grupo de Gestión de Información y de Relación con el ciudadano","2023-01-31","2023-12-15","N/A","N/A","N/A","N/A","Funcionamiento","Iniciativa de la dependencia","4. Servicio al Ciudadano","4.3. Gestión de relacionamiento con los ciudadanos.","Servicio al Ciudadano"]

{"sheet":"Transparencia","index":20,"n_rows":17,"n_cols":20,"rows_kept":17,"cut":false,"hidden":true,"merged":[[7,19,9,19],[8,9,8,10],[8,11,9,11],[8,12,9,12],[8,13,9,13],[8,14,9,14],[8,17,9,17],[8,18,9,18],[7,9,7,10],[7,11,7,14],[7,15,9,15],[7,16,9,16],[7,17,7,18],[1,1,3,2],[1,3,3,16],[7,1,9,1],[7,2,9,2],[7,3,9,3],[7,4,9,4],[7,5,9,5],[7,6,9,6],[7,7,9,7],[7,8,9,8]]}
[]
[null,null,null,"PLAN ANTICORRUPCIÓN Y DE ATENCIÓN AL CIUDADANO\nComponente: Mecanismos para la Transparencia y Acceso a la Información"]
[]
[]
[]
[]
[]
[null,"Objetivo Estratégico","Iniciativa Estratégica","Categoría","Responsable de aprobar","Nombre de la Tarea","Responsable de documentar","Proceso asociado","Dependencia responsable","Año de ejecución de la actividad",null,"Fuente de Financiación (Inversión)",null,null,null,"Otra Fuente de Financiación**","Fuente de información de la tarea","Plan Anticorrupción y de Atención al Ciudadano",null,"Modelo Integrado de Planeación y Gestión"]
[null,null,null,null,null,null,null,null,null,2023,null,"Nombre del proyecto","Actividad","Producto","Apropiación Vigente",null,null,"Componente ","Subcomponente","Dimensión"]
[null,null,null,null,null,null,null,null,null,"Fecha inicial","Fecha final"]
[null,"Objetivo estratégico: GR1. Fortalecer los mecanismos para una cultura de transparencia y participación ciudadana","Ini.2023.2026.GR1.01.Generar estrategias para la divulgación de información y relacionamiento con el ciudadano.","PAA_2023","María del Pilar Florido","Realizar el seguimiento al cumplimiento de los requisitos de la Resolución 1519 de 2020","Aura Ruth Herrera","Est. 1.1 ","Oficina Asesora de Planeación ","2023-07-01","2023-12-20","N/A","N/A","N/A","N/A","Funcionamiento","Iniciativa de la dependencia","5. Mecanismos para la transparencia y acceso a la información","5.1. Lineamientos de Transparencia Activa","Transparencia, Acceso a la Información Pública y Lucha Contra la Corrupción"]
[null,"Objetivo estratégico: GR1. Fortalecer los mecanismos para una cultura de transparencia y participación ciudadana","Ini.2023.2026.GR1.01.Generar estrategias para la divulgación de información y relacionamiento con el ciudadano.","PAA 2023 > Grupo de Licitaciones y Procesos Especiales","Sonia Liliana Rojas","Implementar mecanismos de control para la divulgación de información contractual e interacción de los entes de control, veedurías y demás interesados en la participación de los procesos de contratación gestionados por el Misterio de Hacienda y Crédito Publico (MHCP).","Nidia Constanza Rojas","Apo.4.1","Grupo de Licitaciones y Proceso Especiales","2023-01-31","2023-12-20","N/A","N/A","N/A","N/A","Funcionamiento","Plataforma SECOP II","5. Mecanismos para la transparencia y acceso a la información","5.1. Lineamientos de Transparencia Activa","Compras y contratación pública "]
[null,"Objetivo estratégico: GR2. Promover una cultura de gestión de conocimiento e innovación para una adecuada gestión de información y analítica institucional","Ini.2023.2026.GR2.02.Promover la gestión de expedientes electrónicos de archivo.","PAA 2023 > Grupo de Gestión de Información y de Relación con el Ciudadano","Sandra Patricia Castiblanco","Revisar las  Tablas de Retención Documental  para identificar una serie documental hibrida e identificar tipos documentales y formatos para revisar la organización Física y finalmente elaborar  instructivo expedientes híbridos","Carlos Andrés Gil","Apo 1.4","Grupo Gestión de Información y de Relación con el Ciudadano","2023-02-01","2023-12-20","N/A","N/A","N/A","N/A","Funcionamiento","Iniciativa de la dependencia","5. Transparencia y Acceso a la Información","5.4. Gestión Documental","Gestión Documental"]
[null,"Objetivo estratégico: GR2. Promover una cultura de gestión de conocimiento e innovación para una adecuada gestión de información y analítica institucional","Ini.2023.2026.GR2.02.Promover la gestión de expedientes electrónicos de archivo.","PAA 2023 > Grupo de Gestión de Información y de Relación con el Ciudadano","Sandra Patricia Castiblanco","Aplicar el  instructivo a la serie documental definida e informe impacto en la gestión serie hibrida","Carlos Andrés Gil","Apo 1.5","Grupo Gestión de Información y de Relación con el Ciudadano","2023-02-01","2023-12-20","N/A","N/A","N/A","N/A","Funcionamiento","Iniciativa de la dependencia","5. Transparencia y Acceso a la Información","5.4. Gestión Documental","Gestión Documental"]
[null,"Objetivo estratégico: GR3. Fortalecer la transformación digital para contribuir a la generación de valor público","Ini.2023.2026.GR3.01.Fortalecer el gobierno y gestión de datos en el MHCP.","PAA_2023","Ricardo Fernelix Rios","Definir el modelo de gobierno de datos para el Ministerio de Hacienda y Crédito Publico","Jose Alberto Ahumada","Apo 1.3","Dirección de Tecnología","2023-01-02","2023-12-20","C-  1399-1000-4 FORTALECIMIENTO DEL GOBIERNO Y LA GESTIÓN DE SERVICIOS TIC EN EL MHCP BOGOTÁ","N/A","Documentos de lineamientos técnicos",361047950,"Inversión","Funcionario que apoya  la supervisión del contrato 4.003-2022","\t\n5. Mecanismos para la Transparencia y el Acceso a la Información","5.1. Lineamientos de Transparencia Activa","Gobierno Digital"]
[null,"Objetivo estratégico: GR3. Fortalecer la transformación digital para contribuir a la generación de valor público","Ini.2023.2026.GR3.01.Fortalecer el gobierno y gestión de datos en el MHCP.","PAA_2023","Ricardo Fernelix Rios","Implementar el modelo de gobierno de datos para los dominios priorizados por la Dirección de Tecnología ","Jose Alberto Ahumada","Apo 1.3","Dirección de Tecnología","2023-01-02","2023-12-20","C-  1399-1000-4 FORTALECIMIENTO DEL GOBIERNO Y LA GESTIÓN DE SERVICIOS TIC EN EL MHCP BOGOTÁ","N/A","Documentos de lineamientos técnicos",{"$f":"448320306/2","v":224160153},"Inversión","Funcionario que apoya  la supervisión del contrato 4.003-2022","\t\n5. Mecanismos para la Transparencia y el Acceso a la Información","5.1. Lineamientos de Transparencia Activa","Gobierno Digital"]
[null,"Objetivo estratégico: GR3. Fortalecer la transformación digital para contribuir a la generación de valor público","Ini.2023.2026.GR3.02.Fortalecer la adopción de los elementos constitutivos de la política de gobierno digital establecidos en el Decreto 767 de 2022.","PAA_2023","Ricardo Fernelix Rios","Gestionar  las acciones anuales de socialización de las políticas de seguridad de la información para usuarios finales","Luis Orlando Arenas ","Apo 1.4","Dirección de Tecnología","2023-02-01","2023-12-20","N/A","N/A","N/A","N/A","Funcionamiento","Asesor de Despacho asignado a labores de seguridad de la información ","5. Transparencia y Acceso a la Información","5.6 Transparencia Colaborativa","Seguridad Digital"]

{"sheet":"Iniciativas_Adicionales","index":21,"n_rows":10,"n_cols":20,"rows_kept":10,"cut":false,"hidden":true,"merged":[[6,17,6,18],[7,9,7,10],[7,11,8,11],[7,12,8,12],[7,13,8,13],[7,14,8,14],[7,17,8,17],[7,18,8,18],[1,1,3,2],[1,3,3,16],[6,1,8,1],[6,2,8,2],[6,3,8,3],[6,4,8,4],[6,5,8,5],[6,6,8,6],[6,7,8,7],[6,8,8,8],[6,9,6,10],[6,11,6,14],[6,15,8,15],[6,16,8,16]]}
[]
[null,null,null,"PLAN ANTICORRUPCIÓN Y DE ATENCIÓN AL CIUDADANO\nComponente: Iniciativas Adicionales"]
[]
[]
[]
[]
[null,"Objetivo Estratégico","Iniciativa Estratégica","Categoría","Responsable de aprobar","Nombre de la Tarea","Responsable de documentar","Proceso asociado","Dependencia responsable","Año de ejecución de la actividad",null,"Fuente de Financiación (Inversión)",null,null,null,"Otra Fuente de Financiación**","Fuente de información de la tarea","Plan Anticorrupción y de Atención al Ciudadano",null,"Modelo Integrado de Planeación y Gestión"]
[null,null,null,null,null,null,null,null,null,2023,null,"Nombre del proyecto","Actividad","Producto","Apropiación Vigente",null,null,"Componente ","Subcomponente","Dimensión"]
[null,null,null,null,null,null,null,null,null,"Fecha inicial","Fecha final"]
[null,"Objetivo estratégico: GC1. Fortalecer las capacidades del talento humano en el marco de los valores institucionales","Ini.2023.2026.GC1.02.Realizar actividades que fortalezcan la implementación de la Política de Integridad, con el propósito de alcanzar el nivel de consolidación, de acuerdo con los lineamientos del Modelo Integrado de Planeación y Gestión - MIPG.","PAA 2023 > Subdirección de Gestión del Talento Humano","Fernando Antonio Carvajal","Ejecutar actividades que promuevan la cultura de integridad, de conformidad con las líneas de trabajo estipuladas en el Plan Estratégico de Talento Humano de cada vigencia.","Karen Duque Aguirre","Apo 2.2","Subdirección de Gestión del  Talento Humano","2023-02-01","2023-12-20","N/A","N/A","N/A","N/A","Funcionamiento","Necesidades MHCP","6. Iniciativas Adicionales","N/A","Integridad"]

{"sheet":"Tratamiento_de_riesgos","index":22,"n_rows":20,"n_cols":7,"rows_kept":20,"cut":false,"hidden":true,"merged":[[15,1,15,3],[15,4,15,6],[19,1,19,6],[2,2,10,6]]}
[]
[]
[null,null,"PLAN DE TRATAMIENTO DE RIESGOS DE \nSEGURIDAD Y PRIVACIDAD DE LA INFORMACIÓN"]
[]
[]
[]
[]
[]
[]
[]
[]
[]
[]
[]
[]
[null,"RIESGOS",null,null,"CONTROLES "]
[null,"Total Riesgos","Total de Riesgos en zona Aceptable","Total de Riesgos en zona No Aceptable ","Tipo Tecnológico ","Tipo Estratégico ","Tipo Documental o Procedimental "]
[null,13,13,0,{"$f":"5+2+11+5+3+1+2+2+1","v":32},4,{"$f":"3+4+2+2","v":11}]
[]
[null,"Información suministrada por la Dirección de Tecnología"]

{"sheet":"PETI","index":23,"n_rows":17,"n_cols":20,"rows_kept":17,"cut":false,"hidden":true,"merged":[[11,15,13,15],[11,16,13,16],[11,17,11,18],[11,19,13,19],[12,9,12,10],[12,11,13,11],[12,12,13,12],[12,13,13,13],[12,14,13,14],[12,17,13,17],[12,18,13,18],[2,2,6,11],[11,1,13,1],[11,2,13,2],[11,3,13,3],[11,4,13,4],[11,5,13,5],[11,6,13,6],[11,7,13,7],[11,8,13,8],[11,9,11,10],[11,11,11,14]]}
[]
[]
[null,null,"PLAN ESTRATÉGICO DE TECNOLOGÍAS DE LA \nINFORMACIÓN Y LAS COMUNICACIONES - PETI"]
[]
[]
[]
[]
[]
[]
[]
[]
[null,"Objetivo Estratégico","Iniciativa Estratégica","Categoría","Responsable de aprobar","Nombre de la Tarea","Responsable de documentar","Proceso asociado","Dependencia responsable","Año de ejecución de la actividad",null,"Fuente de Financiación (Inversión)",null,null,null,"Otra Fuente de Financiación**","Fuente de información de la tarea","Plan Anticorrupción y de Atención al Ciudadano",null,"Modelo Integrado de Planeación y Gestión"]
[null,null,null,null,null,null,null,null,null,2023,null,"Nombre del proyecto","Actividad","Producto","Apropiación Vigente",null,null,"Componente ","Subcomponente","Dimensión"]
[null,null,null,null,null,null,null,null,null,"Fecha inicial","Fecha final"]
[null,"Objetivo estratégico: GR3. Fortalecer la transformación digital para contribuir a la generación de valor público","Ini.2023.2026.GR3.01.Fortalecer el gobierno y gestión de datos en el MHCP.","PAA_2023","Ricardo Fernelix Rios","Definir el modelo de gobierno de datos para el Ministerio de Hacienda y Crédito Publico","Jose Alberto Ahumada","Apo 1.3","Dirección de Tecnología","2023-01-02","2023-12-20","C-  1399-1000-4 FORTALECIMIENTO DEL GOBIERNO Y LA GESTIÓN DE SERVICIOS TIC EN EL MHCP BOGOTÁ","N/A","Documentos de lineamientos técnicos",361047950,"Inversión","Funcionario que apoya  la supervisión del contrato 4.003-2022","\t\n5. Mecanismos para la Transparencia y el Acceso a la Información","5.1. Lineamientos de Transparencia Activa","Gobierno Digital"]
[null,"Objetivo estratégico: GR3. Fortalecer la transformación digital para contribuir a la generación de valor público","Ini.2023.2026.GR3.01.Fortalecer el gobierno y gestión de datos en el MHCP.","PAA_2023","Ricardo Fernelix Rios","Implementar el modelo de gobierno de datos para los dominios priorizados por la Dirección de Tecnología ","Jose Alberto Ahumada","Apo 1.3","Dirección de Tecnología","2023-01-02","2023-12-20","C-  1399-1000-4 FORTALECIMIENTO DEL GOBIERNO Y LA GESTIÓN DE SERVICIOS TIC EN EL MHCP BOGOTÁ","N/A","Documentos de lineamientos técnicos",224160153,"Inversión","Funcionario que apoya  la supervisión del contrato 4.003-2022","\t\n5. Mecanismos para la Transparencia y el Acceso a la Información","5.1. Lineamientos de Transparencia Activa","Gobierno Digital"]
[null,"Objetivo estratégico: GR3. Fortalecer la transformación digital para contribuir a la generación de valor público","Ini.2023.2026.GR3.02.Fortalecer la adopción de los elementos constitutivos de la política de gobierno digital establecidos en el Decreto 767 de 2022.","PAA_2023","Ricardo Fernelix Rios","Gestionar  las acciones anuales de socialización de las políticas de seguridad de la información para usuarios finales","Luis Orlando Arenas ","Apo 1.4","Dirección de Tecnología","2023-02-01","2023-12-20","N/A","N/A","N/A","N/A","Funcionamiento","Asesor de Despacho asignado a labores de seguridad de la información ","5. Transparencia y Acceso a la Información","5.6 Transparencia Colaborativa","Seguridad Digital"]

{"sheet":"Seguridad_de_Información","index":24,"n_rows":19,"n_cols":20,"rows_kept":19,"cut":false,"hidden":true,"merged":[[15,11,15,14],[15,15,17,15],[15,16,17,16],[15,17,15,18],[15,19,17,19],[16,11,17,11],[16,12,17,12],[16,13,17,13],[16,14,17,14],[16,17,17,17],[16,18,17,18],[1,1,11,10],[15,1,17,1],[15,2,17,2],[15,3,17,3],[15,4,17,4],[15,5,17,5],[15,6,17,6],[15,7,17,7],[15,8,17,8],[15,9,15,10],[16,9,16,10]]}
[]
[null,"PLAN DE SEGURIDAD Y PRIVACIDAD \nDE LA INFORMACIÓN"]
[]
[]
[]
[]
[]
[]
[]
[]
[]
[]
[]
[]
[]
[null,"Objetivo Estratégico","Iniciativa Estratégica","Categoría","Responsable de aprobar","Nombre de la Tarea","Responsable de documentar","Proceso asociado","Dependencia responsable","Año de ejecución de la actividad",null,"Fuente de Financiación (Inversión)",null,null,null,"Otra Fuente de Financiación**","Fuente de información de la tarea","Plan Anticorrupción y de Atención al Ciudadano",null,"Modelo Integrado de Planeación y Gestión"]
[null,null,null,null,null,null,null,null,null,2023,null,"Nombre del proyecto","Actividad","Producto","Apropiación Vigente",null,null,"Componente ","Subcomponente","Dimensión"]
[null,null,null,null,null,null,null,null,null,"Fecha inicial","Fecha final"]
[null,"Objetivo estratégico: GR3. Fortalecer la transformación digital para contribuir a la generación de valor público","Ini.2023.2026.GR3.02.Fortalecer la adopción de los elementos constitutivos de la política de gobierno digital establecidos en el Decreto 767 de 2022.","PAA_2023","Ricardo Fernelix Rios","Gestionar  las acciones anuales de socialización de las políticas de seguridad de la información para usuarios finales","Luis Orlando Arenas ","Apo 1.4","Dirección de Tecnología","2023-02-01","2023-12-20","N/A","N/A","N/A","N/A","Funcionamiento","Asesor de Despacho asignado a labores de seguridad de la información ","5. Transparencia y Acceso a la Información","5.6 Transparencia Colaborativa","Seguridad Digital"]

{"sheet":"Plan de Accion Institu","index":25,"n_rows":303,"n_cols":28,"rows_kept":303,"cut":false,"hidden":false,"merged":[[111,25,112,25],[252,27,253,27],[3,3,3,7],[205,26,206,26],[214,26,215,26],[223,26,224,26],[242,26,243,26],[252,26,253,26],[273,26,274,26],[282,26,283,26],[296,26,297,26],[180,26,181,26],[292,10,292,14],[28,10,28,14],[214,21,215,21],[214,22,215,22],[214,23,215,23],[273,11,273,12],[273,13,273,14],[214,3,215,3],[214,4,215,4],[214,5,215,5],[273,21,274,21],[273,22,274,22],[273,23,274,23],[252,3,253,3],[252,4,253,4],[252,5,253,5],[252,6,253,6],[252,7,253,7],[101,7,102,7],[153,22,154,22],[111,23,112,23],[118,8,118,12],[149,9,150,9],[127,24,128,24],[136,1,136,7],[138,23,139,23],[123,1,124,7],[109,1,109,7],[101,9,102,9],[101,2,102,2],[101,3,102,3],[127,10,128,10],[111,24,112,24],[138,22,139,22],[107,1,108,7],[111,1,112,1],[111,2,112,2],[111,3,112,3],[111,4,112,4],[111,5,112,5],[111,6,112,6],[153,10,154,10],[127,7,128,7],[123,10,123,14],[101,16,102,16],[127,3,128,3],[127,4,128,4],[116,1,116,24],[101,24,102,24],[13,1,14,4],[13,5,14,7],[28,9,29,9],[28,8,29,8],[18,8,19,8],[18,9,19,9],[41,24,42,24],[32,21,33,21],[32,22,33,22],[41,22,42,22],[41,23,42,23],[32,23,33,23],[41,9,42,9],[41,21,42,21],[41,10,42,10],[41,11,41,12],[9,1,9,24],[11,1,11,24],[37,1,38,7],[22,13,22,14],[22,16,23,16],[16,13,16,17],[15,1,15,4],[15,5,15,7],[30,1,30,7],[32,24,33,24],[32,1,33,1],[32,2,33,2],[18,10,18,14],[13,8,13,12],[30,16,30,19],[15,13,15,17],[22,15,23,15],[22,9,23,9],[22,24,23,24],[20,1,20,7],[28,1,29,7],[22,21,23,21],[22,22,23,22],[22,23,23,23],[41,13,41,14],[32,5,33,5],[41,2,42,2],[41,8,42,8],[32,6,33,6],[32,10,33,10],[22,7,23,7],[22,8,23,8],[87,1,88,7],[79,8,79,12],[39,1,39,7],[62,7,63,7],[71,4,72,4],[71,5,72,5],[71,6,72,6],[71,7,72,7],[69,1,69,7],[62,1,63,1],[67,10,67,14],[67,1,68,7],[41,3,42,3],[41,4,42,4],[58,8,59,8],[51,13,51,14],[90,2,91,2],[90,10,91,10],[90,9,91,9],[90,7,91,7],[90,8,91,8],[82,5,82,7],[81,5,81,7],[83,5,83,7],[85,8,86,8],[82,1,82,4],[71,24,72,24],[62,24,63,24],[62,8,63,8],[62,21,63,21],[62,10,63,10],[111,22,112,22],[127,15,128,15],[101,10,102,10],[90,24,91,24],[90,21,91,21],[90,16,91,16],[90,22,91,22],[90,23,91,23],[97,10,97,14],[62,16,63,16],[67,9,68,9],[67,8,68,8],[71,22,72,22],[71,23,72,23],[71,21,72,21],[71,9,72,9],[101,22,102,22],[101,23,102,23],[101,21,102,21],[171,5,172,7],[162,21,163,21],[178,1,178,7],[180,1,181,1],[180,2,181,2],[180,3,181,3],[173,1,173,4],[205,4,206,4],[180,5,181,5],[180,7,181,7],[205,1,206,1],[205,5,206,5],[205,6,206,6],[205,13,205,14],[205,7,206,7],[174,1,174,4],[162,1,163,1],[205,16,206,16],[176,8,177,8],[176,9,177,9],[180,21,181,21],[180,11,180,12],[197,1,198,4],[197,5,198,7],[162,22,163,22],[162,2,163,2],[162,3,163,3],[162,4,163,4],[162,5,163,5],[162,6,163,6],[171,1,172,4],[107,10,107,14],[138,5,139,5],[107,8,108,8],[111,8,112,8],[125,1,125,7],[118,1,119,4],[153,4,154,4],[111,16,112,16],[153,13,153,14],[153,2,154,2],[120,5,120,7],[121,5,121,7],[138,4,139,4],[158,10,158,14],[120,1,120,4],[162,10,163,10],[162,11,162,12],[71,15,72,15],[85,9,86,9],[134,10,134,14],[138,21,139,21],[97,9,98,9],[71,11,71,12],[101,11,101,12],[101,13,101,14],[101,8,102,8],[97,8,98,8],[85,10,85,14],[123,9,124,9],[134,8,135,8],[134,9,135,9],[138,8,139,8],[71,13,71,14],[138,9,139,9],[138,10,139,10],[123,8,124,8],[107,9,108,9],[90,17,90,20],[101,17,101,20],[111,17,111,20],[127,17,127,20],[97,1,98,7],[90,6,91,6],[85,1,86,7],[71,1,72,1],[71,2,72,2],[71,3,72,3],[214,2,215,2],[121,1,121,4],[127,2,128,2],[214,1,215,1],[101,1,102,1],[99,1,99,7],[101,5,102,5],[101,4,102,4],[101,6,102,6],[90,1,91,1],[90,5,91,5],[81,1,81,4],[83,1,83,4],[90,3,91,3],[90,4,91,4],[147,1,147,4],[138,2,139,2],[162,7,163,7],[51,21,52,21],[62,2,63,2],[71,16,72,16],[71,10,72,10],[77,1,77,24],[79,1,80,4],[62,22,63,22],[62,23,63,23],[60,1,60,7],[51,10,52,10],[51,11,51,12],[51,5,52,5],[51,1,52,1],[51,2,52,2],[51,3,52,3],[79,5,80,7],[71,8,72,8],[62,11,62,12],[62,17,62,20],[51,17,51,20],[71,17,71,20],[62,4,63,4],[58,1,59,7],[51,24,52,24],[51,16,52,16],[41,16,42,16],[48,1,49,7],[51,4,52,4],[62,6,63,6],[51,23,52,23],[51,22,52,22],[32,9,33,9],[46,8,47,8],[51,15,52,15],[62,15,63,15],[62,13,62,14],[37,10,37,14],[32,3,33,3],[32,4,33,4],[41,5,42,5],[41,6,42,6],[41,7,42,7],[32,11,32,12],[58,9,59,9],[51,9,52,9],[58,10,58,14],[37,9,38,9],[46,9,47,9],[37,8,38,8],[62,9,63,9],[51,6,52,6],[51,7,52,7],[51,8,52,8],[62,3,63,3],[62,5,63,5],[153,24,154,24],[153,21,154,21],[153,3,154,3],[153,8,154,8],[153,9,154,9],[111,7,112,7],[138,16,139,16],[138,6,139,6],[138,7,139,7],[138,3,139,3],[127,8,128,8],[127,9,128,9],[111,9,112,9],[134,1,135,7],[127,1,128,1],[138,1,139,1],[118,5,119,7],[16,1,16,4],[16,5,16,7],[46,1,47,7],[41,15,42,15],[41,17,41,20],[32,17,32,20],[22,17,22,20],[46,10,46,14],[38,16,38,19],[32,7,33,7],[18,1,19,7],[22,1,23,1],[22,2,23,2],[22,3,23,3],[22,4,23,4],[22,5,23,5],[22,6,23,6],[22,10,23,10],[22,11,22,12],[32,8,33,8],[32,13,32,14],[32,16,33,16],[32,15,33,15],[41,1,42,1],[140,26,140,29],[111,10,112,10],[111,11,111,12],[111,13,111,14],[162,24,163,24],[127,11,127,12],[127,13,127,14],[127,16,128,16],[127,5,128,5],[127,6,128,6],[127,22,128,22],[127,23,128,23],[149,8,150,8],[149,10,149,14],[145,8,145,12],[111,21,112,21],[122,5,122,7],[127,21,128,21],[138,11,138,12],[145,5,146,7],[147,5,147,7],[153,5,154,5],[153,6,154,6],[153,7,154,7],[180,22,181,22],[180,23,181,23],[162,23,163,23],[242,25,243,25],[242,10,243,10],[242,11,242,12],[242,13,242,14],[242,16,243,16],[242,24,243,24],[242,23,243,23],[242,21,243,21],[242,22,243,22],[180,16,181,16],[214,13,214,14],[214,16,215,16],[205,21,206,21],[171,8,171,12],[176,10,176,14],[223,24,224,24],[223,22,224,22],[205,23,206,23],[214,24,215,24],[205,22,206,22],[214,25,215,25],[296,8,297,8],[296,9,297,9],[282,8,283,8],[282,9,283,9],[282,25,283,25],[205,24,206,24],[223,25,224,25],[289,13,289,17],[282,24,283,24],[269,9,270,9],[252,9,253,9],[238,9,239,9],[223,21,224,21],[223,23,224,23],[296,25,297,25],[296,10,297,10],[296,11,296,12],[296,13,296,14],[296,16,297,16],[296,21,297,21],[296,22,297,22],[296,23,297,23],[296,24,297,24],[205,25,206,25],[290,1,290,4],[288,1,289,4],[288,5,289,7],[278,10,278,14],[288,8,288,12],[273,24,274,24],[273,25,274,25],[273,10,274,10],[273,16,274,16],[282,10,283,10],[282,11,282,12],[282,13,282,14],[282,16,283,16],[282,21,283,21],[273,4,274,4],[273,5,274,5],[273,1,274,1],[282,22,283,22],[282,23,283,23],[282,15,283,15],[252,25,253,25],[247,1,248,7],[252,24,253,24],[265,5,266,7],[296,1,297,1],[296,2,297,2],[296,3,297,3],[296,4,297,4],[296,5,297,5],[296,6,297,6],[296,7,297,7],[282,1,283,1],[282,2,283,2],[282,3,283,3],[282,4,283,4],[282,5,283,5],[292,1,293,7],[278,1,279,7],[280,1,280,7],[294,1,294,7],[282,6,283,6],[282,7,283,7],[273,6,274,6],[290,5,290,7],[267,1,267,4],[267,5,267,7],[199,1,199,4],[210,8,211,8],[205,8,206,8],[212,1,212,7],[210,1,211,7],[223,5,224,5],[223,6,224,6],[223,7,224,7],[223,1,224,1],[223,2,224,2],[223,3,224,3],[221,1,221,7],[292,8,293,8],[292,9,293,9],[219,9,220,9],[242,4,243,4],[240,1,240,4],[242,15,243,15],[273,15,274,15],[223,16,224,16],[273,9,274,9],[273,8,274,8],[236,5,236,7],[234,8,234,12],[238,10,238,14],[265,8,265,12],[247,10,247,14],[234,1,235,4],[238,1,239,7],[242,1,243,1],[271,1,271,7],[273,2,274,2],[273,3,274,3],[252,13,252,14],[252,1,253,1],[252,2,253,2],[269,10,269,14],[158,8,159,8],[158,9,159,9],[223,8,224,8],[160,1,160,7],[158,1,159,7],[180,9,181,9],[205,9,206,9],[205,10,206,10],[242,2,243,2],[242,3,243,3],[240,5,240,7],[242,5,243,5],[242,6,243,6],[242,7,243,7],[242,8,243,8],[242,9,243,9],[180,8,181,8],[252,11,252,12],[223,4,224,4],[269,8,270,8],[252,8,253,8],[265,1,266,4],[269,1,270,7],[180,13,180,14],[201,9,202,9],[223,13,223,14],[219,8,220,8],[238,8,239,8],[201,8,202,8],[236,1,236,4],[219,1,220,7],[214,11,214,12],[210,9,211,9],[223,11,223,12],[223,9,224,9],[214,8,215,8],[214,9,215,9],[205,3,206,3],[201,1,202,7],[199,5,199,7],[219,10,219,14],[180,6,181,6],[180,10,181,10],[203,1,203,7],[205,2,206,2],[210,10,210,14],[234,5,235,7],[180,25,181,25],[138,24,139,24],[138,13,138,14],[173,5,173,7],[174,5,174,7],[153,1,154,1],[162,13,162,14],[162,16,163,16],[214,6,215,6],[214,7,215,7],[153,23,154,23],[143,1,143,24],[149,1,150,7],[151,1,151,7],[153,11,153,12],[180,24,181,24],[176,1,177,7],[153,16,154,16],[145,1,146,4],[138,17,138,20],[153,17,153,20],[162,17,162,20],[180,17,180,20],[205,17,205,20],[6,3,6,5],[296,15,297,15],[90,15,91,15],[101,15,102,15],[111,15,112,15],[138,15,139,15],[153,15,154,15],[162,15,163,15],[180,15,181,15],[205,15,206,15],[214,15,215,15],[223,15,224,15],[162,8,163,8],[162,9,163,9],[197,8,197,12],[201,10,201,14],[90,11,90,12],[90,13,90,14],[273,7,274,7],[278,8,279,8],[278,9,279,9],[180,4,181,4],[223,10,224,10],[205,11,205,12],[214,17,214,20],[223,17,223,20],[242,17,242,20],[252,17,252,20],[273,17,273,20],[282,17,282,20],[296,17,296,20],[195,1,195,26],[167,1,167,26],[169,1,169,26],[232,1,232,26],[261,1,261,26],[263,1,263,26],[286,1,286,26],[252,21,253,21],[252,22,253,22],[252,23,253,23],[214,10,215,10],[252,16,253,16],[252,15,253,15],[249,1,250,7],[247,8,248,8],[247,9,248,9],[252,10,253,10]]}
[]
[]
[]
[null,null,null,"Plan de Acción Anual 2023"]
[]
[]
[]
[]
[]
[null,"Perspectiva: Gestión Misional"]
[]
[null,"Objetivo estratégico: GM1.Generar las condiciones para unas finanzas sanas y un financiamiento para las transiciones exportadora y energética"]
[]
[null,"Nombre del indicador ",null,null,null,"Dependencia responsable",null,null,"Metas"]
[null,null,null,null,null,null,null,null,2023,2024,2025,2026,"Cuatrienio"]
[null,"GM1_2023_2026_Ind1 Balance primario del Sector Público No Financiero (SPNF) (% del PIB) (Sinergia)",null,null,null,"Dirección General de Política Macroeconómica",null,null,0.01,2.5999999999999999E-2,1.7999999999999999E-2,1.7000000000000001E-2,1.7000000000000001E-2]
[null,"GM1_2023_2026_Ind2 Diversificación de instrumentos financieros para las transiciones exportadora y energética ",null,null,null,"Dirección  General de Crédito Público y Tesoro Nacional",null,null,1,1,1,1,1]
[]
[null,"Iniciativa ",null,null,null,null,null,null,"Nombre del indicador ","Dependencia responsable","Metas"]
[null,null,null,null,null,null,null,null,null,null,2023,2024,2025,2026,"Cuatrienio"]
[null,"Ini.2023.2026.GM1.01.Desarrollar estrategias e instrumentos para el financiamiento sostenible que contribuya a la adaptación, mitigación del cambio climático y la transición energética.",null,null,null,null,null,null,"Ini_2023_2026_GM1_01_Ind1  Instrumentos financieros que  faciliten las transiciones exportadoras y energéticas (Mínimo 1 al año - Emisión de bonos verdes, sociales y sostenibles) ","Dirección  General de Crédito Público y Tesoro Nacional",1,1,1,1,4]
[]
[null,"No.","Nombre de la Tarea","Descripción de la Tarea ","Entregable","Responsable de aprobar","Responsable de documentar ","Responsable de apoyar (Recurso SMGI)","Proceso(s) asociado(s)","Dependencia responsable","Dependencias y/o entidades participantes","Año de ejecución - Cuatrienio",null,"Año vigencia actual",null,"Estado tareas diciembre 2023","Fuente de Financiación","Fuente de Financiación (Inversión)",null,null,null,"Recursos necesarios para el desarrollo de la tarea","Fuente de información de la tarea","Eje transformacional PND 2022-2026","Objetivo ODS"]
[null,null,null,null,null,null,null,null,null,null,null,"Fecha inicial ","Fecha final","Fecha inicial ","Fecha final",null,null,"Nombre del proyecto","Producto","Apropiación Vigente","Ejecución Presupuestal (obligaciones diciembre 2023)"]
[null,1,"Emitir  Bonos Verdes, Sociales o Sostenibles en virtud de las necesidades establecidas en el plan financiero y la tabla de Fuentes y Usos de cada vigencia","Emisión de Bonos Verdes, Sociales o Sostenibles en virtud de las necesidades establecidas en el plan financiero y la tabla de Fuentes y Usos de cada vigencia","Emisión de bonos verdes","Jose Roberto Acosta","Luis Alexander Lopez Ruiz","Maria Camila Forero\nJuan Pablo González","Mis.3.14","Dirección General de Crédito Público y Tesoro Nacional","Subdirección de Financiamiento interno","2023-01-01","2026-12-20","2023-01-01","2023-12-20","Finalizada","Funcionamiento","-","-","-","-","Talento Humano","Macro metas","Internacionalización, transformación productiva para la vida y acción climática","•    Objetivo 13: Acción por el clima "]
[null,2,"Desarrollar un estrategia de cobertura de los precios del petróleo ","Desarrollar un estrategia de cobertura de los precios del petróleo ","Programa de coberturas ejecutado que sea sostenible en el tiempo.","Jose Roberto Acosta","Johanna Murcia","Jeffrey Steban Cruz Jiménez","Mis 3.10","Dirección General de Crédito Público y Tesoro Nacional","Subdirección de Riesgo","2023-01-01","2026-12-20","2023-01-01","2023-12-20","Finalizada","Inversión","Desarrollo e implementación de una estrategia para coberturas de los precios del petróleo para Colombia nacional","Documentos de planeación",520138052,108310000,"Talento Humano","Macro metas\n\nPropuesta articulado PND","Estabilidad macroeconómica","•    Objetivo 7: Energía asequible y no contaminante"]
[null,3,"Implementar de los  criterios Ambientales Sociales y de Gobernanza + Resiliencia (ASG+R) en proyectos de infraestructura y definición de instrumentos de innovación financiera, para financiar proyectos con criterios sostenibles","Evaluación de impacto de proyectos piloto de Asociaciones Público Privadas que incorporen los criterios Ambientales Sociales y de Gobernanza + Resiliencia (ASG+R) y definición de instrumentos de innovación financiera para financiar proyectos con criterios sostenibles","Informe sobre implementación de la metodología de Valoración de Obligaciones Contingentes para proyectos de Infraestructura APP: criterios ambientales, sociales y de gobernanza + resiliencia","Jose Roberto Acosta","Esteban Velasco","Marlly Lizbeth Giraldo","Mis 3.8","Dirección General de Crédito Público y Tesoro Nacional","Subdirección de Asociaciones Público Privadas","2023-01-01","2026-12-20","2023-01-01","2023-12-20","Finalizada","Funcionamiento","-","-","-","-","Talento Humano","Macro metas","Transformación productiva, internacionalización y acción climática","•    Objetivo 9: Industria, innovación e infraestructura"]
[]
[null,"Iniciativa ",null,null,null,null,null,null,"Nombre del indicador ","Dependencia responsable","Metas"]
[null,null,null,null,null,null,null,null,null,null,2023,2024,2025,2026,"Cuatrienio"]
[null,"Ini.2023.2026.GM1.02 Mecanismos de protección financiera para la reducción de la vulnerabilidad fiscal",null,null,null,null,null,null,"Ini_2023_2026_GM1_02_Ind1 Propuesta de reforma al sistema financiero - DGCPTN","Dirección General de Crédito Público y Tesoro Nacional",1,1,1,1,4]
[]
[null,"No.","Nombre de la Tarea","Descripción de la Tarea ","Entregable","Responsable de aprobar","Responsable de documentar ","Responsable de apoyar (Recurso SMGI)","Proceso(s) asociado(s)","Dependencia responsable","Dependencias y/o entidades participantes","Año de ejecución - Cuatrienio",null,"Año vigencia actual",null,"Estado tareas diciembre 2023","Fuente de Financiación","Fuente de Financiación (Inversión)",null,null,null,"Recursos necesarios para el desarrollo de la tarea","Fuente de información de la tarea","Eje transformacional PND 2022-2026","Objetivo ODS"]
[null,null,null,null,null,null,null,null,null,null,null,"Fecha inicial ","Fecha final","Fecha inicial ","Fecha final",null,null,"Nombre del proyecto","Producto","Apropiación Vigente","Ejecución Presupuestal (obligaciones diciembre 2023)"]
[null,4,"Lanzar un Fondo Bursátil basado en TES","Llevar acabo el lanzamiento de un Fondo Bursátil (ETF -fondo COTIZADO EN BOLSA) en el mercado de capitales local, que permita contribuir en el financiamiento del Plan Financiero y la tabla de fuentes y usos de la vigencia 2022. democratizando la participación de la ciudadanía en la Deuda Pública de la Nación.","Suscripción de un contrato de colocación directa de TES para la constitución de un Fondo Bursátil en el Mercado de Capitales Interno.","Jose Roberto Acosta","Luis Alexander López","Carolina Thomas","Mis 3.1","Dirección General de Crédito Público y Tesoro Nacional","Subdirección de Financiamiento interno","2023-01-01","2026-12-20","2023-01-01","2023-12-20","Finalizada","Funcionamiento","-","-","-","-","Talento Humano","-","Estabilidad macroeconómica","Objetivo 8. Trabajo decente y crecimiento económico"]
[null,5,"Evaluar la estructuración y/o implementación de instrumentos de protección financiera de retención y/o transferencia de riesgo a nivel territorial y sectorial. ","Implementar instrumentos de protección financiera a través de seguros paramétricos y no paramétricos, créditos contingentes, bonos catastróficos y/u otros instrumentos de retención o transferencia del riesgo.\nActualizar la metodología de estimación del pasivo contingente por desastres para la Nación para determinar las necesidades en materia de protección financiera con el fin de reducir la vulnerabilidad fiscal del Estado.\n","Instrumentos de protección financiera contratados\n\nMetodología del pasivo contingente por desastres actualizada","Jose Roberto Acosta","Johanna Murcia","Johanna Orjuela","Mis 3.10","Dirección General de Crédito Público y Tesoro Nacional","Subdirección de Riesgo","2023-01-01","2026-12-20","2023-01-01","2023-12-20","Finalizada","Funcionamiento","-","-","-","-","Talento Humano","Propuesta articulado PND","Internacionalización, transformación productiva para la vida y acción climática","•    Objetivo 11: Ciudades y comunidades sostenibles"]
[]
[null,"Iniciativa ",null,null,null,null,null,null,"Nombre del indicador ","Dependencia responsable","Metas"]
[null,null,null,null,null,null,null,null,null,null,2023,2024,2025,2026,"Cuatrienio"]
[null,"Ini.2023.2026.GM1.03.Avanzar en una reglamentación para el sistema financiero nacional para unas finanzas públicas más incluyentes.",null,null,null,null,null,null,"Ini_2023_2026_GM1_03_Ind1Reglamentación sistema financiero, solidario y mercado de capitales para una mayor inclusión financiera y crediticia","\t\nDespacho del Viceministro Técnico ",1,1,1,0,3]
[]
[null,"No.","Nombre de la Tarea","Descripción de la Tarea ","Entregable","Responsable de aprobar","Responsable de documentar ","Responsable de apoyar (Recurso SMGI)","Proceso(s) asociado(s)","Dependencia responsable","Dependencias y/o entidades participantes","Año de ejecución - Cuatrienio",null,"Año vigencia actual",null,"Estado tareas diciembre 2023","Fuente de Financiación","Fuente de Financiación (Inversión)",null,null,null,"Recursos necesarios para el desarrollo de la tarea","Fuente de información de la tarea","Eje transformacional PND 2022-2026","Objetivo ODS"]
[null,null,null,null,null,null,null,null,null,null,null,"Fecha inicial ","Fecha final","Fecha inicial ","Fecha final",null,null,"Nombre del proyecto","Producto","Apropiación Vigente","Ejecución Presupuestal (obligaciones diciembre 2023)"]
[null,6,"Realizar reformas al sistema orgánico financiero","Avanzar en la reglamentación necesaria para la implementación de la hoja de ruta del subsector solidario de ahorro y crédito, para impulsar una mayor inclusión crediticia.\n\nReglamentar el Sistema de Pagos Inmediato del Banco de la República y la arquitectura de datos abiertos obligatoria (open data) para aumentar la inclusión crediticia\n\nAvanzar en una reglamentación para el Sistema Financiero y Mercado de Capitales ","- Artículos en el Plan Nacional de Desarrollo relacionados con la estrategia de inclusión financiera del MHCP, el fortalecimiento del Subsector Solidario de Ahorro y Crédito, Esquema de Datos Abiertos, Interoperabilidad de Sistemas de Pagos Inmediatos de Bajo Valor\n\n- Decretos expedidos para la implementación de la Hoja de Ruta del Subsector Solidario de Ahorro y Crédito, la estrategia de inclusión financiera del MHCP y otros temas del sector financiero y mercado de capitales que busquen un mayor desarrollo del sector. ","Maria Fernanda Valdés","Daniela Saade",null,"N/A","\t\nDespacho del Viceministro Técnico ","\nDespacho del Ministro\nViceministerio General\nURF\nSFC\nSupersolidaria","2023-01-01","2026-12-20","2023-01-02","2023-12-20","Finalizada","Funcionamiento","-","-","-","-","Talento Humano","Macro metas","Seguridad Humana y Justicia Social","•    Objetivo 8: Trabajo decente y crecimiento económico"]
[]
[]
[null,"Iniciativa DGPM ",null,null,null,null,null,null,"Nombre del indicador ","Dependencia responsable","Metas"]
[null,null,null,null,null,null,null,null,null,null,2023,2024,2025,2026,"Cuatrienio"]
[null,"\nIni.2023.2026.GM1.04.Modernizar y fortalecer la gestión financiera pública nacional.",null,null,null,null,null,null,"Ini_2023_2026_GM1_04_Ind1Medición del préstamo neto del Gobierno General, medido como % del PIB, con base en los lineamientos del MEFP 2014","Dirección General de Política Macroeconómica",5,5,5,5,20]
[null,null,null,null,null,null,null,null,"Ini_2023_2026_GM1_04_Ind2 Documentos metodológicos, técnicos y de lineamientos de política macroeconómica realizados ","Dirección General de Política Macroeconómica",3,3,0,0,6]
[]
[null,"No.","Nombre de la Tarea","Descripción de la Tarea ","Entregable","Responsable de aprobar","Responsable de documentar ","Responsable de apoyar (Recurso SMGI)","Proceso(s) asociado(s)","Dependencia responsable","Dependencias y/o entidades participantes","Año de ejecución - Cuatrienio",null,"Año vigencia actual",null,"Estado tareas diciembre 2023","Fuente de Financiación","Fuente de Financiación (Inversión)",null,null,null,"Recursos necesarios para el desarrollo de la tarea","Fuente de información de la tarea","Eje transformacional PND 2022-2026","Objetivo ODS"]
[null,null,null,null,null,null,null,null,null,null,null,"Fecha inicial ","Fecha final","Fecha inicial ","Fecha final",null,null,"Nombre del proyecto","Producto","Apropiación Vigente","Ejecución Presupuestal (obligaciones diciembre 2023)"]
[null,7,"Difundir estadísticas de finanzas públicas del Gobierno General con base en los lineamientos del Manual de Estadísticas de Finanzas Públicas (MEFP) 2014","Publicar en la página web del Ministerio de Hacienda las estadísticas de finanzas públicas de Gobierno General compiladas con base en el Manual de Estadísticas de Finanzas Públicas (MEFP) 2014","Documentos publicados en la página web con las estadísticas de gobierno general","Daniel Esteban Osorio","Kelly Yojanna Gómez Gaona ","-","Mis.1.1","Dirección General de Política Macroeconómica","Dirección General de Política Macroeconómica","2023-01-01","2026-12-31","2023-01-02","2023-12-31","Finalizada","Inversión","MEJORAMIENTO E INTEGRACIÓN DE LA INFORMACIÓN EN LA GESTIÓN FINANCIERA PÚBLICA NACIONAL","Documentos de estudios técnicos\n\nDocumentos metodológicos\n\nDocumentos de lineamientos técnicos ",1156412151,635928804,"Talento Humano","Proyecto de inversión pública","Estabilidad macroeconómica","•    Objetivo 8: Trabajo decente y crecimiento económico"]
[null,8,"Adelantar las actividades del proyecto de inversión \"Mejoramiento e Integración de la Información en la Gestión Financiera Pública Nacional\", que hacen parte del componente DGPM.","Realizar las actividades (4), registradas en el proyecto de inversión \"Mejoramiento e Integración de la Información en la Gestión Financiera Pública Nacional\", los registros se evidencian en el SPI del DNP.","Documentos técnicos y metodológicos asociados a las actividades registradas en el proyecto de inversión \"Mejoramiento e Integración de la Información en la Gestión Financiera Pública Nacional\"","Daniel Esteban Osorio","Kelly Yojanna Gómez Gaona ","-","Mis.1.1","Dirección General de Política Macroeconómica","DGPPN, DGCPTN, DGRESS, DGAF, SIIF, Contaduría General de la Nación, DNP, DANE","2023-01-01","2026-12-31","2023-01-03","2023-12-31","Finalizada","Inversión","MEJORAMIENTO E INTEGRACIÓN DE LA INFORMACIÓN EN LA GESTIÓN FINANCIERA PÚBLICA NACIONAL","Documentos de estudios técnicos\n\nDocumentos metodológicos\n\nDocumentos de lineamientos técnicos ",1156412151,635928804,"Talento Humano","Proyecto de inversión pública","Estabilidad macroeconómica","•    Objetivo 8: Trabajo decente y crecimiento económico"]
[null,9,"Implementar el Plan Integral de Acción de la Comisión Intersectorial de Información para la gestión financiera pública","Velar por el desarrollo del Plan Integral de Acción de la Comisión Intersectorial de Información para la Gestión Financiera Pública procurando la eficiencia en la ejecución de recursos","Plan Integral de Acción de la Comisión Intersectorial (30%)","Daniel Esteban Osorio","Laura Moreno","-","N/A","\t\nDespacho del Viceministro Técnico","Dirección General de Crédito Público y Tesoro Nacional\nDirección de Política Macroeconómica\nDirección General de Presupuesto Público Nacional\nDepartamento Nacional de Planeación\nContaduría General de la Nación","2023-02-01","2026-12-20","2023-02-01","2023-12-20","Finalizada","Funcionamiento","-","-","-","-","Talento Humano","Macro metas","Consistencia macroeconómica","•    Objetivo 16: Paz, justicia e instituciones solidad"]
[null,10,"Modernizar los Sistemas de información y gestión financiera","Modernización del sistema de información del DGCPTN","informes de gestión mensual por cada uno de los contratistas contratados en la vigencia, correspondiente al apoyo en la implementación y seguimiento del proyecto de modernización","Jose Roberto Acosta","Francisco Lucero","Erika Daniela González Téllez          \n\nÁngela Mercedes Rodríguez Rincón","Mis 3.4","Dirección General de Crédito Público y Tesoro Nacional","Dirección General de Crédito Público y Tesoro Nacional","2023-02-01","2024-12-20","2023-03-20","2023-12-31","Finalizada","Inversión","MEJORAMIENTO E INTEGRACIÓN DE LA INFORMACIÓN EN LA GESTIÓN FINANCIERA PÚBLICA NACIONAL","Informes de gestión mensual por cada uno de los contratistas contratados en la vigencia, correspondiente al apoyo en la implementación y seguimiento del proyecto de modernización",8700000000,230474373,"Talento Humano","Proyecto de inversión pública","Estabilidad macroeconómica","•    Objetivo 8: Trabajo decente y crecimiento económico"]
[]
[null,"Iniciativa ",null,null,null,null,null,null,"Nombre del indicador ","Dependencia responsable","Metas"]
[null,null,null,null,null,null,null,null,null,null,2023,2024,2025,2026,"Cuatrienio"]
[null,"Ini.2023.2026.GM1.05.Fortalecer la institucionalidad macroeconómica y fiscal mediante el uso de herramientas de análisis actualizadas.",null,null,null,null,null,null,"Ini_2023_2026_GM1_05_Ind1 Herramientas incorporadas para el seguimiento macroeconómico ","Dirección General de Política Macroeconómica",4,0,0,0,4]
[]
[null,"No.","Nombre de la Tarea","Descripción de la Tarea ","Entregable","Responsable de aprobar","Responsable de documentar ","Responsable de apoyar (Recurso SMGI)","Proceso(s) asociado(s)","Dependencia responsable","Dependencias y/o entidades participantes","Año de ejecución - Cuatrienio",null,"Año vigencia actual",null,"Estado tareas diciembre 2023","Fuente de Financiación","Fuente de Financiación (Inversión)",null,null,null,"Recursos necesarios para el desarrollo de la tarea","Fuente de información de la tarea","Eje transformacional PND 2022-2026","Objetivo ODS"]
[null,null,null,null,null,null,null,null,null,null,null,"Fecha inicial ","Fecha final","Fecha inicial ","Fecha final",null,null,"Nombre del proyecto","Producto","Apropiación Vigente","Ejecución Presupuestal (obligaciones diciembre 2023)"]
[null,11,"Fortalecer la calidad y consistencia macroeconómica de las herramientas de pronóstico y análisis del MHCP a través de la provisión y capacitación en el uso de modelos de pronóstico de corto y mediano plazo, así como de consistencia macroeconómica. ","Diseñar herramientas y modelos de pronóstico macroeconómico con asesoría de cooperaciones internacionales cuya utilidad es el seguimiento y proyecciones de las principales variables macroeconómicas, así como análisis de los impactos de la implementación de políticas públicas en la economía colombiana. ","- Herramientas y/o modelos de pronóstico y análisis macroeconómico y fiscal: i) modelos de frecuencias mixtas ir) three-pass regresión filter iii) Quarterly Projection Modelo iv) Cannonical Pillar 3","Daniel Esteban Osorio","Diana Yineth Rivera Reyes","Juan Guillermo Salazar Duque","Mis 1.1","Dirección General de Política Macroeconómica","DGPM\nSubdirección de Programación Macroeconómica.\n \nFondo Monetario Internacional","2023-02-01","2026-12-20","2023-02-01","2023-12-20","Finalizada","Funcionamiento e  Inversión","MEJORAMIENTO E INTEGRACIÓN DE LA INFORMACIÓN EN LA GESTIÓN FINANCIERA PÚBLICA NACIONAL","Documentos metodológicos",1156412151,635928804,"Talento Humano","Iniciativa de la dependencia","Estabilidad macroeconómica","•    Objetivo 8: Trabajo decente y crecimiento económico"]
[null,12,"Elaborar, actualizar y publicar  los balances fiscales en los diferentes niveles de gobierno publicados en el Marco Fiscal de Mediano Plazo, cierres fiscales y documentos de plan financiero. ","Revisión y actualización de las cifras de finanzas públicas de nivel nacional con todos los sectores que hacen parte de la muestra, para la elaboración de los planes financieros y la estrategia fiscal de mediano plazo para la toma decisiones en materia de política económica. ","- Marco Fiscal de Mediano Plazo (MFMP)\n- Documentos de cierre fiscal\n- Documentos de actualización Plan Financiero","Daniel Esteban Osorio","Juan Camilo Forero Buitrago","-","Mis 1.1","Dirección General de Política Macroeconómica","DGPPN \nDGCPTN\nDGRESS\nDNP","2023-02-01","2026-12-20","2023-02-01","2023-12-20","Finalizada","Funcionamiento","-","-","-","-","Talento Humano","Iniciativa de la dependencia","Estabilidad macroeconómica","•    Objetivo 8: Trabajo decente y crecimiento económico"]
[]
[null,"Iniciativa",null,null,null,null,null,null,"Nombre del indicador ","Dependencia responsable","Metas"]
[null,null,null,null,null,null,null,null,null,null,2023,2024,2025,2026,"Cuatrienio"]
[null,"Ini.2023.2026.GM1.06.Construir la propuesta de estadísticas presupuestales y fiscales bajo estándares internacionales en línea con la hoja de ruta del CONPES 4008.",null,null,null,null,null,null,"Ini_2023_2026_GM1_06_Ind1 Estrategias diseñadas e implementadas para fortalecer el proceso de asignación de recursos del gasto público","Dirección General de Presupuesto Público Nacional",0,1,0,2,{"$f":"SUM(K70:N70)","v":3}]
[]
[null,"No.","Nombre de la Tarea","Descripción de la Tarea ","Entregable","Responsable de aprobar","Responsable de documentar ","Responsable de apoyar (Recurso SMGI)","Proceso(s) asociado(s)","Dependencia responsable","Dependencias y/o entidades participantes","Año de ejecución - Cuatrienio",null,"Año vigencia actual",null,"Estado tareas diciembre 2023","Fuente de Financiación","Fuente de Financiación (Inversión)",null,null,null,"Recursos necesarios para el desarrollo de la tarea","Fuente de información de la tarea","Eje transformacional PND 2022-2026","Objetivo ODS"]
[null,null,null,null,null,null,null,null,null,null,null,"Fecha inicial ","Fecha final","Fecha inicial ","Fecha final",null,null,"Nombre del proyecto","Producto","Apropiación Vigente","Ejecución Presupuestal (obligaciones diciembre 2023)"]
[null,13,"Diseñar, implementar y hacer seguimiento a la clasificación programática del gasto.","Estructurar el marco metodológico, diseño de herramientas de medición y seguimiento de la clasificación programática. \n\nLograr la implementación del clasificador programático en las entidades que integran el Presupuesto General de la Nación.","Clasificador programático implementado","Claudia Marcela Numa Páez","Lelio Rodriguez","Adriana Hernandez.\nEdgar Guio.\nAlejandra Castañeda.\nSebastián Cubillos.","Mis.2.1 - Mis2.2","Dirección General de Presupuesto Público Nacional","SACP\nSubdirección De Análisis Y Consolidación Presupuestal \n - DGPPN","2023-02-01","2025-12-20","2023-02-01","2023-12-20","Finalizada","Otras - cooperación internacional","-","-","-","-","Financiero","Macro metas","Estabilidad macroeconómica","•    Objetivo 8: Trabajo decente y crecimiento económico, Objetivo 10: Reducción de las desigualdades y Objetivo 17: Alianzas para lograr los objetivos"]
[null,14,"Generar la estrategia metodológica de definición y seguimiento a políticas transversales a través de trazadores presupuestales.","Mejoramiento de la presentación de los reportes de los trazadores de recursos destinados a políticas transversales.","Documento metodológico de trazadores y reportes de trazadores presupuestales","Claudia Marcela Numa Páez","Lelio Rodriguez","Adriana Hernandez.\nEdgar Guio.\nAlejandra Castañeda.\nSebastián Cubillos.\nLeonardo Buitrago.\nMónica Parada","Mis.2.1 - Mis2.2","Dirección General de Presupuesto Público Nacional","SACP - DGPPN","2023-02-01","2024-12-20","2023-02-01","2023-12-20","Finalizada","Otras - cooperación internacional","-","-","-","-","Financiero","Propuesta articulado PND","COLOMBIA SOCIEDAD PARA LA VIDA: ACTORES DIFERENCIALES PARA EL CAMBIO","•    Objetivo 8: Trabajo decente y crecimiento económico, Objetivo 10: Reducción de las desigualdades y Objetivo 17: Alianzas para lograr los objetivos",null," "]
[null,15,"Certificar la operación estadística Seguimiento Presupuestal bajo la Norma Técnica de la Calidad del Proceso Estadístico (NTC PE 1000) o la norma vigente expedida por el Departamento Administrativo Nacional Estadística - DANE","Surtir todas las etapas de planificación, seguimiento y evaluación para obtener la certificación de la operación estadística \"Seguimiento presupuestal\"","Certificado","Claudia Marcela Numa Páez","Lelio Rodriguez","Adriana Hernandez.\nEdgar Guio.\nAlejandra Castañeda.\nSebastián Cubillos.","Mis2.2","Dirección General de Presupuesto Público Nacional","SACP - DGPPN","2023-02-01","2026-12-20","2023-02-01","2023-12-20","Finalizada","Funcionamiento","-","-","-","-","Financiero","Propuesta articulado PND","Estabilidad macroeconómica","•    Objetivo 8: Trabajo decente y crecimiento económico, Objetivo 10: Reducción de las desigualdades y Objetivo 17: Alianzas para lograr los objetivos"]
[]
[null,"Objetivo estratégico: GM2.Fortalecer la gestión financiera pública territorial para una descentralización efectiva, con equidad de las fuentes de financiación y calidad del gasto territorial"]
[]
[null,"Nombre del indicador ",null,null,null,"Dependencia responsable",null,null,"Metas"]
[null,null,null,null,null,null,null,null,2023,2024,2025,2026,"Cuatrienio"]
[null,"GM2_2023_2026_Ind1 Propuestas de reorganización de las fuentes de financiación territorial (impuestos, transferencias (SGP)",null,null,null,"Dirección General de Apoyo Fiscal",null,null,0,0,0,0,1]
[null,"GM2_2023_2026_Ind2 Propuestas para mejorar la calidad del gasto territorial​ ",null,null,null,"Dirección General de Apoyo Fiscal",null,null,1,1,0,0,1]
[null,"GM2_2023_2026_Ind3 Recaudo de ingresos tributarios y no tributarios territoriales como porcentaje del PIB (SINERGIA)",null,null,null,"Dirección General de Apoyo Fiscal",null,null,3.35,3.65,3.75,3.75,3.63]
[]
[null,"Iniciativa ",null,null,null,null,null,null,"Nombre del indicador ","Dependencia responsable","Metas"]
[null,null,null,null,null,null,null,null,null,null,2023,2024,2025,2026,"Cuatrienio"]
[null,"Ini.2023.2026.GM2.01.Contribuir al fortalecimiento de la capacidad fiscal territorial.",null,null,null,null,null,null,"Ini_2023_2026_GM2_01_Ind1Propuesta de proyecto de ley de reforma tributaria territorial ","Dirección General de Apoyo Fiscal",1,0,0,0,1]
[null,null,null,null,null,null,null,null,"Ini_2023_2026_GM2_01_Ind2 Propuesta de proyecto de ley de reforma a la Ley de competencias y recursos (SGP) ","Dirección General de Apoyo Fiscal",0,1,0,0,1]
[]
[null,"No.","Nombre de la Tarea","Descripción de la Tarea ","Entregable","Responsable de aprobar","Responsable de documentar ","Responsable de apoyar (Recurso SMGI)","Proceso(s) asociado(s)","Dependencia responsable","Dependencias y/o entidades participantes","Año de ejecución - Cuatrienio",null,"Año vigencia actual",null,"Estado tareas diciembre 2023","Fuente de Financiación","Fuente de Financiación (Inversión)",null,null,null,"Recursos necesarios para el desarrollo de la tarea","Fuente de información de la tarea","Eje transformacional PND 2022-2026","Objetivo ODS"]
[null,null,null,null,null,null,null,null,null,null,null,"Fecha inicial ","Fecha final","Fecha inicial ","Fecha final",null,null,"Nombre del proyecto","Producto","Apropiación Vigente","Ejecución Presupuestal (obligaciones diciembre 2023)"]
[null,16,"Adelantar el proyecto de divulgación efectiva del informe de viabilidad a los ciudadanos.  ","Fase 2 (2023). Herramientas pedagógicas de difusión efectiva del catálogo.  Se plantean productos:\n\n1.Conjunto de herramientas pedagógicas basadas en didáctica digital con un lenguaje apropiado para lograr la difusión del informe y su comprensión a la ciudadanía.  Se propone el diseño de micro videos, micro cursos y un nuevo capítulo del coquito recargado con los temas asociados al entendimiento del informe de viabilidad.  \n2.Eventos de socialización del informe de viabilidad.  Se plantean dos grupos de eventos.  El primero, un evento Nacional con la participación de las directivas del MHCP.  El segundo grupo, son eventos regionales con las particularidades de cada entidad (Departamento o Ciudad Capital), cada  evento regional debe ser coordinado por el responsable territorial con la Secretaría de Hacienda de la entidad.","Herramientas pedagógicas","Nestor Mario Urrea Duque","Rosa Angélica Villamil Martinez","Andrés Felipe Urrea\n","Mis.4.1 - Mis.4.2  ","Dirección General de Apoyo Fiscal","Dirección General de Apoyo Fiscal","2023-09-01","2023-12-20","2023-02-01","2023-12-20","Finalizada","Funcionamiento e Inversión","IMPLEMENTACIÓN DE ACCIONES DE FORTALECIMIENTO INSTITUCIONAL PARA MEJORAR LA CALIDAD DEL GASTO PUBLICO Y PRESERVAR LA SOSTENIBILIDAD FISCAL DE LAS ENTIDADES TERRITORIALES Y SUS DESCENTRALIZADAS. NACIONAL","Productos asociados al Proyecto de Inversión y a los compromisos funcionales y de los acuerdos de Gestión de los Gerentes Públicos",9000000000,6772606802,"Talento Humano","Open Hacienda ","2. Seguridad Humana y Justicia Social\n 5. Convergencia Regional","Objetivo 6: Agua limpia y saneamiento\nObjetivo 8: Trabajo decente y crecimiento económico\nObjetivo 10: Reducción de las desigualdades\nObjetivo 12: Producción y consumo responsables"]
[null,17,"Administrar y realizar mantenimiento al  Catálogo de \"Clasificación Presupuestal de Entidades Territoriales CCPET","De acuerdo con las necesidades de gestión de los gobiernos territoriales , Se actualizará el reporte de información con fines de monitoreo, seguimiento y evaluación a la programación y ejecución financiera","Catalogo de clasificación presupuestal","Nestor Mario Urrea Duque","Rosa Angélica Villamil Martinez","Alex Fernando Buitrago\n","Mis.4.1 - Mis4.2 - Mis.4.5","Dirección General de Apoyo Fiscal","Dirección General de Apoyo Fiscal","2023-02-01","2026-12-20","2023-02-01","2023-12-20","Finalizada","Funcionamiento e Inversión","IMPLEMENTACIÓN DE ACCIONES DE FORTALECIMIENTO INSTITUCIONAL PARA MEJORAR LA CALIDAD DEL GASTO PUBLICO Y PRESERVAR LA SOSTENIBILIDAD FISCAL DE LAS ENTIDADES TERRITORIALES Y SUS DESCENTRALIZADAS. NACIONAL","Productos asociados al Proyecto de Inversión y a los compromisos funcionales y de los acuerdos de Gestión de los Gerentes Públicos",9000000000,6772606802,"Talento Humano","Macro metas","2. Seguridad Humana y Justicia Social\n 5. Convergencia Regional","Objetivo 6: Agua limpia y saneamiento\nObjetivo 8: Trabajo decente y crecimiento económico\nObjetivo 10: Reducción de las desigualdades\nObjetivo 12: Producción y consumo responsables\n"]
[null,18,"Brindar asistencia técnica para el fortalecimiento de la gestión tributaria territorial (predial, rentas por el uso del suelo, impoconsumos)","Adelantar acciones de fortalecimiento a través de la generación de conceptos, capacitaciones y asistencias técnicas","Compilación conceptos \nBoletines\nSoportes de asistencias técnicas","Nestor Mario Urrea Duque","Rosa Angélica Villamil Martinez","Claudia Otalora","Mis.4.1 - Mis4.2 - Mis.4.5","Dirección General de Apoyo Fiscal","Dirección General de Apoyo Fiscal","2023-02-01","2026-12-20","2023-02-01","2023-12-20","Finalizada","Funcionamiento e Inversión","IMPLEMENTACIÓN DE ACCIONES DE FORTALECIMIENTO INSTITUCIONAL PARA MEJORAR LA CALIDAD DEL GASTO PUBLICO Y PRESERVAR LA SOSTENIBILIDAD FISCAL DE LAS ENTIDADES TERRITORIALES Y SUS DESCENTRALIZADAS. NACIONAL","Productos asociados al Proyecto de Inversión y a los compromisos funcionales y de los acuerdos de Gestión de los Gerentes Públicos",9000000000,6772606802,"Talento Humano","Macro metas","2. Seguridad Humana y Justicia Social\n 5. Convergencia Regional","Objetivo 6: Agua limpia y saneamiento\nObjetivo 8: Trabajo decente y crecimiento económico\nObjetivo 10: Reducción de las desigualdades\nObjetivo 12: Producción y consumo responsables"]
[null,19,"Armonizar la herramienta para la elaboración de los Marcos Fiscales de Mediano Plazo de las entidades territoriales con el Catálogo de Clasificación presupuestal y la Categoría Única de Información del Presupuesto Ordinario","Armonizar la herramienta para la elaboración de los Marcos Fiscales de Mediano Plazo de las entidades territoriales con el Catálogo de Clasificación presupuestal y la Categoría Única de Información del Presupuesto Ordinario","Herramienta de análisis actualizada","Nestor Mario Urrea Duque","Rosa Angélica Villamil Martinez","Sandra Maritza Piñeros","Mis.4.1 - Mis4.2 - Mis.4.5","Dirección General de Apoyo Fiscal","Dirección General de Apoyo Fiscal","2023-02-01","2026-12-20","2023-02-01","2023-12-20","Finalizada","Funcionamiento e Inversión","IMPLEMENTACIÓN DE ACCIONES DE FORTALECIMIENTO INSTITUCIONAL PARA MEJORAR LA CALIDAD DEL GASTO PUBLICO Y PRESERVAR LA SOSTENIBILIDAD FISCAL DE LAS ENTIDADES TERRITORIALES Y SUS DESCENTRALIZADAS. NACIONAL","Productos asociados al Proyecto de Inversión y a los compromisos funcionales y de los acuerdos de Gestión de los Gerentes Públicos",9000000000,6772606802,"Talento Humano","Macro metas","2. Seguridad Humana y Justicia Social\n 5. Convergencia Regional","Objetivo 6: Agua limpia y saneamiento\nObjetivo 8: Trabajo decente y crecimiento económico\nObjetivo 10: Reducción de las desigualdades\nObjetivo 12: Producción y consumo responsables"]
[null,null,null,null,null,null,null,null,null,null,null,null,null,null,null,null,null,null,null,null,null,null,null,null,null," "]
[null,"Iniciativa ",null,null,null,null,null,null,"Nombre del indicador ","Dependencia responsable","Metas"]
[null,null,null,null,null,null,null,null,null,null,2023,2024,2025,2026,"Cuatrienio"]
[null,"Ini.2023.2026.GM2.02.Contribuir al mejoramiento de la calidad del gasto territorial.",null,null,null,null,null,null,"Ini_2023_2026_GM2_02_Ind1 Informes anuales presentados sobre los resultados del monitoreo y seguimiento de las políticas públicas aplicadas en territorio, por los sectores de educación, salud, APSB, PAE,  deporte cultura y atención a grupos étnicos. ","Dirección General de Apoyo Fiscal",1,1,1,1,4]
[]
[null,"No.","Nombre de la Tarea","Descripción de la Tarea ","Entregable","Responsable de aprobar","Responsable de documentar ","Responsable de apoyar (Recurso SMGI)","Proceso(s) asociado(s)","Dependencia responsable","Dependencias y/o entidades participantes","Año de ejecución - Cuatrienio",null,"Año vigencia actual",null,"Estado tareas diciembre 2023","Fuente de Financiación","Fuente de Financiación (Inversión)",null,null,null,"Recursos necesarios para el desarrollo de la tarea","Fuente de información de la tarea","Eje transformacional PND 2022-2026","Objetivo ODS"]
[null,null,null,null,null,null,null,null,null,null,null,"Fecha inicial ","Fecha final","Fecha inicial ","Fecha final",null,null,"Nombre del proyecto","Producto","Apropiación Vigente","Ejecución Presupuestal (obligaciones diciembre 2023)"]
[null,20,"Realizar análisis del uso eficiente de los recursos asignados a los sectores de: educación, salud, APSB, PAE, propósito general, atención a grupos étnicos, ribereños y hospitales","Se llevará a cabo un análisis en aspectos del uso eficiente de los recursos asignados a los sectores de: educación, salud, APSB, PAE, propósito general, atención a grupos étnicos, ribereños y hospitales. \n","\nInforme de análisis de problemáticas sectoriales que inciden en el uso de los recursos asignados a las entidades territoriales.\n","Nestor Mario Urrea Duque","Rosa Angélica Villamil Martinez","Fernando Olivera","Mis.4.5 - Mis.4.8","Dirección General de Apoyo Fiscal","Dirección General de Apoyo Fiscal","2023-02-01","2026-12-20","2023-02-01","2023-12-20","Finalizada","Funcionamiento e inversión","IMPLEMENTACIÓN DE ACCIONES DE FORTALECIMIENTO INSTITUCIONAL PARA MEJORAR LA CALIDAD DEL GASTO PUBLICO Y PRESERVAR LA SOSTENIBILIDAD FISCAL DE LAS ENTIDADES TERRITORIALES Y SUS DESCENTRALIZADAS. NACIONAL","Productos asociados al Proyecto de Inversión y a los compromisos funcionales y de los acuerdos de Gestión de los Gerentes Públicos",9000000000,6772606802,"Talento Humano","Macro metas","2. Seguridad Humana y Justicia Social\n 5. Convergencia Regional","Objetivo 6: Agua limpia y saneamiento\nObjetivo 8: Trabajo decente y crecimiento económico\nObjetivo 10: Reducción de las desigualdades\nObjetivo 12: Producción y consumo responsables"]
[null,21,"Realizar propuesta de reforma a la estrategia de monitoreo, seguimiento y control al uso del Sistema General de Participantes.","Se realizara la propuesta de reforma a la estrategia de monitoreo, seguimiento y control al uso del SGP.","Propuesta de reforma a la estrategia de monitoreo, seguimiento y control integral al uso de los recursos del SGP. ","Nestor Mario Urrea Duque","Rosa Angélica Villamil Martinez","Fernando Olivera","Mis.4.5 - Mis.4.8","Dirección General de Apoyo Fiscal","Dirección General de Apoyo Fiscal","2023-04-12","2023-12-20","2023-02-01","2023-12-20","Finalizada","Funcionamiento e Inversión","IMPLEMENTACIÓN DE ACCIONES DE FORTALECIMIENTO INSTITUCIONAL PARA MEJORAR LA CALIDAD DEL GASTO PUBLICO Y PRESERVAR LA SOSTENIBILIDAD FISCAL DE LAS ENTIDADES TERRITORIALES Y SUS DESCENTRALIZADAS. NACIONAL","Documento de propuesta de reforma a la estrategia de monitoreo, seguimiento y control integral al uso de los recursos del SGP. ",9000000000,6772606802,"Talento Humano","Macro metas","2. Seguridad Humana y Justicia Social\n 5. Convergencia Regional","Objetivo 6: Agua limpia y saneamiento\nObjetivo 8: Trabajo decente y crecimiento económico\nObjetivo 10: Reducción de las desigualdades\nObjetivo 12: Producción y consumo responsables"]
[null,22,"Adecuar institucionalmente un equipo de interdependencias  para apoyar la revisión y respuesta integral del Ministerio ante temas de grupos étnicos. ","Crear una instancia al interior del MHCP deliberativa y consultiva para tratar temas de poblaciones con pertinencia étnica y generar respuestas más integrales ","Informes anual","Diego Alejandro Guevara Castañeda","Paula Katherine Triviño","-","-","\t\nDespacho del Viceministro General","Subjurídica\nDGPPN\nDAF\nOAP\nSGR","-","-","2023-02-01","2023-12-20","Finalizada","Funcionamiento","-","-","-","-","Talento Humano","Iniciativa de la dependencia","COLOMBIA SOCIEDAD PARA LA VIDA: ACTORES DIFERENCIALES PARA EL CAMBIO - 5. Pueblos y comunidades étnicas","•    Objetivo 10: Reducción de las desigualdades"]
[]
[null,"Iniciativa",null,null,null,null,null,null,"Nombre del indicador ","Dependencia responsable","Metas"]
[null,null,null,null,null,null,null,null,null,null,2023,2024,2025,2026,"Cuatrienio"]
[null,"Ini.2023.2026.GM2.03.Avanzar en la cobertura del pasivo pensional de las entidades territoriales y optimizar los procesos internos de gestión.",null,null,null,null,null,null,"Ini_2023_2026_GM2_03_Ind1 Porcentaje  de entidades con cubrimiento del pasivo pensional (SINERGIA)","Dirección General de Regulación Económica de la Seguridad Social",0.4,0.45,0.5,0.6,0.6]
[]
[null,"No.","Nombre de la Tarea","Descripción de la Tarea ","Entregable","Responsable de aprobar","Responsable de documentar ","Responsable de apoyar (Recurso SMGI)","Proceso(s) asociado(s)","Dependencia responsable","Dependencias y/o entidades participantes","Año de ejecución - Cuatrienio",null,"Año vigencia actual",null,"Estado tareas diciembre 2023","Fuente de Financiación","Fuente de Financiación (Inversión)",null,null,null,"Recursos necesarios para el desarrollo de la tarea","Fuente de información de la tarea","Eje transformacional PND 2022-2026","Objetivo ODS","Control de cambios"]
[null,null,null,null,null,null,null,null,null,null,null,"Fecha inicial ","Fecha final","Fecha inicial ","Fecha final",null,null,"Nombre del proyecto","Producto","Apropiación Vigente","Ejecución Presupuestal (obligaciones diciembre 2023)"]
[null,23,"Optimizar los procesos de seguimiento y control a los recursos de las Entidades Territoriales administrados por el FONPET.","Optimizar los procesos de seguimiento y control  en la administración de los recursos del FONPET","Documento de seguimiento","Flor Esther Salazar","Ciro Alfonso Contreras Torres","-","Mis.3.11","Dirección General de Regulación Económica de la Seguridad Social","Grupo FONPET","2023-01-01","2026-12-20","2023-01-26","2023-12-20","Se presenta a Comité Institucional de Gestión y Desempeño 29-01-2024 ","Funcionamiento","-","-","-","-","Talento Humano","Macro metas","2. Seguridad Humana y Justicia Social","• Objetivo 1: Fin de la pobreza","En el Comité Institucional 29 y 30 de enero 2024 se aprobó la cancelación de la tarea\nLa dependencia hizo la solicitud en el SMGI mediante SS-2647"]
[null,23,"Fortalecer las herramientas tecnológicas de pásivocol para lograr una  trasferencia de información eficiente.","Operar el sistema de información SUPPT-CETIL y su interoperabilidad.","Operación del aplicativo para grupo de entidades piloto (33 et)","Flor Esther Salazar","Luis Miguel Rodríguez Garzon","-","Mis.3.11","Dirección General de Regulación Económica de la Seguridad Social","Grupo Pasivocol. \nDirección Tecnología.\nCetil","2023-01-01","2026-12-20","2023-01-26","2023-12-20","Finalizada","Funcionamiento","-","-","-","-","Talento Humano","Macro metas","2. Seguridad Humana y Justicia Social","• Objetivo 1: Fin de la pobreza"]
[]
[null,"Objetivo estratégico: GM3.Dinamizar la Banca de Desarrollo para la inclusión financiera que favorezca el desarrollo de los objetivos del programa \"Colombia potencia mundial de la vida\""]
[]
[null,"Nombre del indicador ",null,null,null,"Dependencia responsable",null,null,"Metas"]
[null,null,null,null,null,null,null,null,2023,2024,2025,2026,"Cuatrienio"]
[null,"GM3_2023_2026_Ind1 Lineamientos y seguimiento a la estrategia del Portafolio Grupo Bicentenario ",null,null,null,"Grupo Bicentenario",null,null,5,4,4,5,{"$f":"+I121+J121+K121+L121","v":18}]
[null,"GM3_2023_2026_Ind2 Estrategia de armonización de las entidades financieras públicas bajo el holding financiero (expedición de reglamentación)",null,null,null,"Dirección de Participaciones Estatales ",null,null,1,1,0,0,{"$f":"+I122+J122","v":2}]
[]
[null,"Iniciativa ",null,null,null,null,null,null,"Nombre del indicador ","Dependencia responsable","Metas"]
[null,null,null,null,null,null,null,null,null,null,2023,2024,2025,2026,"Cuatrienio"]
[null,"Ini.2023.2026.GM3.01.Fomento de servicios financieros públicos a través del Holding Financiero y el modelo de gestión de propiedad estatal para generar valor social y económico.",null,null,null,null,null,null,"Ini_2023_2026_GM3_01_Ind1 Implementación de tres programas estratégicos del Grupo Bicentenario(Inclusión Financiera, Innovación y Finanzas Verdes)","Dirección General de Participaciones Estatales",5,4,4,5,5]
[]
[null,"No.","Nombre de la Tarea","Descripción de la Tarea ","Entregable","Responsable de aprobar","Responsable de documentar ","Responsable de apoyar (Recurso SMGI)","Proceso(s) asociado(s)","Dependencia responsable","Dependencias y/o entidades participantes","Año de ejecución - Cuatrienio",null,"Año vigencia actual",null,"Estado tareas diciembre 2023","Fuente de Financiación","Fuente de Financiación (Inversión)",null,null,null,"Recursos necesarios para el desarrollo de la tarea","Fuente de información de la tarea","Eje transformacional PND 2022-2026","Objetivo ODS"]
[null,null,null,null,null,null,null,null,null,null,null,"Fecha inicial ","Fecha final","Fecha inicial ","Fecha final",null,null,"Nombre del proyecto","Producto","Apropiación Vigente","Ejecución Presupuestal (obligaciones diciembre 2023)"]
[null,24,"Realizar análisis sobre opciones de transición energética en empresas estatales.","Documentar un estrategia de transición energética de las generadoras","Documentos de análisis","Piedad Muñoz Rojas","Angela Patricia Gomez Higuera","Francisco Quiroga","Mis.3.7","Dirección General de Participaciones Estatales","Empresas participación estatal del sector eléctrico, Ministerio de Minas y Energía","2024-01-01","2024-12-20","2023-01-01","2023-12-20","Finalizada","Inversión","Optimización del Modelo de Gestión Y Administración del Portafolio de Empresas","Informe de alternativas",15565225813,352147858.97000003,"Talento Humano","Macrometas","Internacionalización, transformación productiva para la vida y acción climática","Objetivo 7: Energía asequible y no contaminante\nObjetivo 9: Industria, innovación e infraestructura\n"]
[null,25,"Realizar adopción de mejores prácticas,  fortalecimiento del gobierno corporativo y transparencia en las empresas con participación estatal.","Socializar e implementar el Código de Propiedad con las empresas de Participación Estatal y brindar acompañamiento a  los gestores de Propiedad para lograr el cumplimiento de los lineamientos en las empresas ","Sesiones de capacitación para el código propiedad, Capacitación gobierno corporativo con los miembros JD, ","Piedad Muñoz Rojas","Angela Patricia Gomez Higuera","Juanita Mahecha","Mis.3.7","Dirección General de Participaciones Estatales","Todas las empresas del portafolio de la DGPE ","2025-01-01","2025-12-20","2023-01-01","2023-12-20","Finalizada","Inversión","Optimización del Modelo de Gestión Y Administración del Portafolio de Empresas","Servicio de educación informal ",15565225813,352147858.97000003,"Financiero","Macrometas","2. Seguridad Humana y Justicia Social","\t\nObjetivo 16: Paz, justicia e instituciones sólidas"]
[null,26,"Consolidar la propiedad estatal de acuerdo con la estrategia global de propiedad y de gestión de empresas estatales","Realizar operaciones de consolidación de las empresas de participación estatal tales como fusiones, adquisiciones, capitalizaciones, enajenaciones y descentralización de la propiedad estatal ","Operaciones sobre el portafolio(capitalizaciones)","Piedad Muñoz Rojas","Angela Patricia Gomez Higuera","Andres Bravo","Mis.3.7","Dirección General de Participaciones Estatales","Todas las empresas del portafolio de la DGPE ","2026-01-01","2026-12-20","2023-01-01","2023-12-20","Finalizada","N/A - \t\nInversión","-","-","-","-","Talento Humano","Macro metas","2. Seguridad Humana y Justicia Social","\t\nObjetivo 8: Trabajo decente y crecimiento económico\nObjetivo 9: Industria, innovación e infraestructura"]
[null,27,"Definir el rol del holding de servicios financieros, articulación entre entidades y su alineación con las metas del Gobierno nacional","Catalizador de las iniciativas del MHCP en referencia a Finanavers, promoción a la innovación e inclusión crediticia de la economía popular","Plan estratégico del GB","Piedad Muñoz Rojas","Angela Patricia Gomez Higuera","Natalia Rincón","Mis.3.7","Dirección General de Participaciones Estatales","MHCP ,empresas del grupo Bicentenario, SFC, Banca de las oportunidades","2023-01-01","2026-12-20","2023-01-01","2023-12-20","Finalizada","Funcionamiento","-","-","-","-","Talento Humano","Propuesta articulado PND","4. Internacionalización, transformación productiva para la vida y acción climática","\t\nObjetivo 8: Trabajo decente y crecimiento económico\nObjetivo 9: Industria, innovación e infraestructura"]
[]
[null,"Iniciativa ",null,null,null,null,null,null,"Nombre del indicador ","Dependencia responsable","Metas"]
[null,null,null,null,null,null,null,null,null,null,2023,2024,2025,2026,"cuatrienio"]
[null,"Ini.2023.2026.GM3.02.Participar en la formulación de políticas de inclusión productiva y financiera para fomentar economías populares y procesos de reindustrialización.",null,null,null,null,null,null,"Ini_2023_2026_GM3_02_Ind1 Política pública y reglamentación de los instrumentos de financiamiento de la reindustrialización y reducción de desigualdades","Viceministerio Técnico",1,1,1,0,3]
[]
[null,"No.","Nombre de la Tarea","Descripción de la Tarea ","Entregable","Responsable de aprobar","Responsable de documentar ","Responsable de apoyar (Recurso SMGI)","Proceso(s) asociado(s)","Dependencia responsable","Dependencias y/o entidades participantes","Año de ejecución - Cuatrienio",null,"Año vigencia actual",null,"Estado tareas diciembre 2023","Fuente de Financiación","Fuente de Financiación (Inversión)",null,null,null,"Recursos necesarios para el desarrollo de la tarea","Fuente de información de la tarea","Eje transformacional PND 2022-2026","Objetivo ODS"]
[null,null,null,null,null,null,null,null,null,null,null,"Fecha inicial ","Fecha final","Fecha inicial ","Fecha final",null,null,"Nombre del proyecto","Producto","Apropiación Vigente","Ejecución Presupuestal (obligaciones diciembre 2023)"]
[null,28,"Diseñar la estrategia de inclusión financiera para la innovación, la economía popular y finanzas verdes","Desarrollar los productos que ofrecerá la banca de desarrollo acorde con la estrategia de inclusión financiera y crediticia y de financiamiento sostenible ","Reglamentación de los productos que requieran habilitación legal o normativa","Maria Fernanda Valdés","Daniela Saade","-","-","\t\nDespacho del Viceministro Técnico","DGCPTN\nDAF\nDGPPN\nDGPE\nDespacho\n","2023-01-01","2026-12-20","2023-06-01","2023-12-20","Finalizada","Funcionamiento","-","-","-","-","Talento Humano","Macro metas","2. Seguridad Humana y Justicia Social \n 4.Internacionalización, transformación productiva para la vida y acción climática","\nObjetivo 8: Trabajo decente y crecimiento económico\nObjetivo 13: Acción por el clima"]
[null,29,"Financiar el desarrollo, la reindustrialización y reducción de desigualdades económicas","Acompañamiento para el cierre de  brecha de financiamiento para el desarrollo y se modificarán patrones de producción y consumo, estableciendo un entorno favorable para una economía productiva, descarbonizada y resiliente.","Estrategias transversales \n\n- Artículos en el Plan Nacional de Desarrollo relacionados con la estrategia de reindustrialización.\n\n- Decretos y reglamentaciones expedidos para la implementación de la estrategia de reindustrialización, la estrategia de finanzas verdes e innovación y emprendimiento del MHCP.","Diego Alejandro Guevara Castañeda","Manuel Martinez","-","-","\t\nDespacho del Viceministro General","DGCPTN\nDAF\nDGPPN\nDGPE\nDespacho\n","2023-01-01","2026-12-20","2023-01-01","2023-12-20","Finalizada","Funcionamiento","-","-","-","-","Talento Humano","Macro meta","4. Internacionalización, transformación productiva para la vida y acción climática","Objetivo 8: Trabajo decente y crecimiento económico\nObjetivo 9: Industria, innovación e infraestructura\nObjetivo 10: Reducción de las desigualdades"]
[]
[null,"Objetivo estratégico: GM4. Promover un nuevo contrato social de manera sostenible y responsable en el Sistema General de Seguridad Social"]
[null,"|"]
[null,"Nombre del indicador ",null,null,null,"Dependencia responsable",null,null,"Metas"]
[null,null,null,null,null,null,null,null,2023,2024,2025,2026,"Cuatrienio"]
[null,"GM4_2023_2026_Ind1 Propuestas de lineamientos de sostenibilidad financiera y fiscal para el Sistema General de Seguridad Social",null,null,null,"Dirección General de Regulación Económica de la Seguridad Social",null,null,2,2,1,1,6]
[]
[null,"Iniciativa ",null,null,null,null,null,null,"Nombre del indicador ","Dependencia responsable","Metas"]
[null,null,null,null,null,null,null,null,null,null,2023,2024,2025,2026,"Cuatrienio"]
[null,"Ini.2023.2026.GM4.01.Fortalecer los lineamientos de política de sostenibilidad financiera del Sistema General de Seguridad Social en Salud y el Sistema General de Riesgos Laborales.",null,null,null,null,null,null,"Ini_2023_2026_GM4_01_Ind1Documentos de lineamiento técnico","Dirección General de Regulación Económica de la Seguridad Social",1,1,1,1,4]
[]
[null,"No.","Nombre de la Tarea","Descripción de la Tarea ","Entregable","Responsable de aprobar","Responsable de documentar ","Responsable de apoyar (Recurso SMGI)","Proceso(s) asociado(s)","Dependencia responsable","Dependencias y/o entidades participantes","Año de ejecución - Cuatrienio",null,"Año vigencia actual",null,"Estado tareas diciembre 2023","Fuente de Financiación","Fuente de Financiación (Inversión)",null,null,null,"Recursos necesarios para el desarrollo de la tarea","Fuente de información de la tarea","Eje transformacional PND 2022-2026","Objetivo ODS"]
[null,null,null,null,null,null,null,null,null,null,null,"Fecha inicial ","Fecha final","Fecha inicial ","Fecha final",null,null,"Nombre del proyecto","Producto","Apropiación Vigente","Ejecución Presupuestal (obligaciones diciembre 2023)"]
[null,30,"Evaluar mecanismos específicos que permitan mejorar los resultados en salud de la población, a la vez que contribuyan a la racionalización del gasto en el Sistema General de Seguridad Social en Salud (SGSSS)","Desarrollar elementos para la toma de decisiones en salud, incluyendo  Análisis de Impacto Presupuestal y evaluaciones de impacto de análisis previos, para el proceso de inclusión de tecnologías en salud en el marco del  Modelo de Acción Integral Territorial a través de las Rutas Integrales de Atención en Salud,  o para su financiación a cargo de la Unidad de Pago por Capitación.   Desarrollar insumos técnicos transversales al sistema de salud que aporten elementos al debate político del gasto en salud. ","Documentos","Flor Esther Salazar","Paul Ricardo Díaz","Hernando Rodríguez Moreno","Mis.4.3","Dirección General de Regulación Económica de la Seguridad Social","ADRES, Ministerio de Salud, IETS","2023-01-01","2026-12-20","2023-01-26","2023-12-20","Finalizada","Funcionamiento","-","-","-","-","Talento Humano","Iniciativa de la dependencia","2. Seguridad Humana y Justicia Social","\t\nObjetivo 1: Fin de la pobreza"]
[null,31,"Articular normativa con el fin de dar solución a los problemas de sostenibilidad financiera del Sistema General de Seguridad Social en Salud (SGSSS), Régimen Especial Exceptuado -REX y Sistema General de Riesgos Laborales(SGRL).","Establecer normativa basada en los documentos técnicos pertinentes, buscando la armonización y la sostenibilidad financiera de los sistemas.","Documentos","Flor Esther Salazar","Paul Ricardo Díaz","Hernando Rodríguez Moreno","Mis.4.3","Dirección General de Regulación Económica de la Seguridad Social","Ministerio de Salud, Ministerio del Trabajo, Superintendencia Financiera","2023-01-01","2026-12-20","2023-01-26","2023-12-20","Finalizada","Funcionamiento","-","-","-","-","Talento Humano","Iniciativa de la dependencia","2. Seguridad Humana y Justicia Social","\t\nObjetivo 1: Fin de la pobreza"]
[]
[null,"Iniciativa ",null,null,null,null,null,null,"Nombre del indicador ","Dependencia responsable","Metas"]
[null,null,null,null,null,null,null,null,null,null,2023,2024,2025,2026,"Cuatrienio"]
[null,"Ini.2023.2026.GM4.02 Promover la regulación de normas para avanzar en la cobertura de los mecanismos de protección a la vejez.",null,null,null,null,null,null,"Ini_2023_2026_GM4_02_Ind1 Escenarios fiscales de propuesta de reforma de protección social","Dirección General de Regulación Económica de la Seguridad Social",1,1,0,0,2]
[]
[null,"No.","Nombre de la Tarea","Descripción de la Tarea ","Entregable","Responsable de aprobar","Responsable de documentar ","Responsable de apoyar (Recurso SMGI)","Proceso(s) asociado(s)","Dependencia responsable","Dependencias y/o entidades participantes","Año de ejecución - Cuatrienio",null,"Año vigencia actual",null,"Estado tareas diciembre 2023","Fuente de Financiación","Fuente de Financiación (Inversión)",null,null,null,"Recursos necesarios para el desarrollo de la tarea","Fuente de información de la tarea","Eje transformacional PND 2022-2026","Objetivo ODS"]
[null,null,null,null,null,null,null,null,null,null,null,"Fecha inicial ","Fecha final","Fecha inicial ","Fecha final",null,null,"Nombre del proyecto","Producto","Apropiación Vigente","Ejecución Presupuestal (obligaciones diciembre 2023)"]
[null,32,"Continuar la implementación del Sistema de Información de Historia Laboral Unificada.","Desarrollar todas las  acciones que resulten necesarias para lograr la unificación del Sistema Unificado de Historias laborales a través de la Certificación Electrónica de Tiempos Laborados (CETIL).","Documento informe de seguimiento","Giselle Moreno Pisciotti","María del Pilar Cortés Muñoz","María del Pilar Cortés Muñoz","Mis.3.9\n","Oficina de Bonos Pensionales","Oficina de Bonos Pensionales","2023-01-01","2026-12-20","2023-01-26","2023-12-20","Finalizada","Inversión","MEJORAMIENTO E INTEGRACIÓN DE LA INFORMACIÓN EN LA GESTIÓN FINANCIERA PÚBLICA NACIONAL ","Servicios de información para la gestión financiera pública actualizados ",932173364,617332690.86000001,"Talento Humano","Iniciativa de la dependencia","2. Seguridad Humana y Justicia Social","Objetivo 1: Fin de la pobreza"]
[null,33,"Definir mecanismos y normatividad requerida para lograr mayor equidad y cobertura en el sistema de seguridad social","Proponer y evaluar fiscalmente las políticas y programas que presenten  con relación con los mecanismos de  protección  en la vejez.","Documento informe de seguimiento","Flor Esther Salazar","Sandra Milena Castellanos Gonzalez","-","Mis.4.3  \nMis.4.6","Dirección General de Regulación Económica de la Seguridad Social"," Ministerio del Trabajo, Superintendencia Financiera, URF                                              ","2023-01-01","2026-12-20","2023-01-26","2023-12-20","Finalizada","Funcionamiento","NA","NA","NA","NA","Talento Humano","Iniciativa de la dependencia","2. Seguridad Humana y Justicia Social","Objetivo 1: Fin de la pobreza"]
[]
[null,"Perspectiva: Gestión para el Resultado"]
[]
[null,"Objetivo estratégico: GR1. Fortalecer los mecanismos para una cultura de transparencia y participación ciudadana"]
[]
[null,"Nombre del indicador ",null,null,null,"Dependencia responsable",null,null,"Metas"]
[null,null,null,null,null,null,null,null,2023,2024,2025,2026,"Cuatrienio"]
[null,"GR1_2023_2026_Ind1  Resultados de medición del índice de transparencia y acceso a la información pública - ITA",null,null,null,"Grupo de Gestión de Información y de Relación con el ciudadano",null,null,0.9,0.9,0.9,0.9,0.9]
[null,"GR1_2023_2026_Ind2 Propuestas de acciones que permitan mitigar la insatisfacción en la atención a los grupos de valor.",null,null,null,"Grupo de Gestión de Información y de Relación con el ciudadano",null,null,1,1,1,1,4]
[]
[null,"Iniciativa ",null,null,null,null,null,null,"Nombre del indicador ","Dependencia responsable","Metas"]
[null,null,null,null,null,null,null,null,null,null,2023,2024,2025,2026,"Cuatrienio"]
[null,"Ini.2023.2026.GR1.01.Generar estrategias para la divulgación de información y relacionamiento con el ciudadano.",null,null,null,null,null,null,"Ini_2023_2026_GR1_01_Ind1 Estrategias de divulgación de información y relacionamiento con el ciudadano programadas y realizadas.","Grupo de Gestión de Información y de Relación con el ciudadano",1,1,1,1,4]
[]
[null,"No.","Nombre de la Tarea","Descripción de la Tarea ","Entregable","Responsable de aprobar","Responsable de documentar ","Responsable de apoyar (Recurso SMGI)","Proceso(s) asociado(s)","Dependencia responsable","Dependencias y/o entidades participantes","Año de ejecución - Cuatrienio",null,"Año vigencia actual",null,"Estado tareas diciembre 2023","Fuente de Financiación","Fuente de Financiación (Inversión)",null,null,null,"Recursos necesarios para el desarrollo de la tarea","Fuente de información de la tarea","Política MIPG","Componente PAAC","Subcomponente PAAC","PLAN DE ACCIÓN ANUAL (Dto. 612 de 2018)"]
[null,null,null,null,null,null,null,null,null,null,null,"Fecha inicial ","Fecha final","Fecha inicial ","Fecha final",null,null,"Nombre del proyecto","Producto","Apropiación Vigente","Ejecución Presupuestal (obligaciones diciembre 2023)"]
[null,34,"Realizar instructivo de seguimiento a la satisfacción del servicio prestado y consolidar  base de datos ","Elaborar un  instructivo que permita realizar el seguimiento a la satisfacción del servicio prestado y consolidar  base de datos donde se ingresará la información de la satisfacción al ciudadano.","Instructivo de seguimiento a la satisfacción del servicio prestado y base de datos.","Edgar Neftali Torres Prieto","Carlos Andrés Gil","-","Est 2.2","Grupo de Gestión de Información y de Relación con el ciudadano","Grupo de Gestión de Información y de Relación con el ciudadano","2023-01-31","2023-12-20","2023-01-31","2023-12-20","Finalizada","Funcionamiento","-","-","-","-","Talento Humano","Iniciativa de la dependencia","Servicio al Ciudadano","4. Servicio al Ciudadano","4.2. Fortalecimiento de los canales de atención","9.Plan Anticorrupción y de Atención al Ciudadano"]
[null,35,"Realizar campañas de sensibilización a la ciudadanía donde se promueva la realización de veedurías y participación ciudadana.","Realizar campañas de sensibilización dirigidas a la ciudadanía donde se promueva la realización de veedurías y participación ciudadana.","Plan de ejecución de campañas donde se promuevan las veedurías y participación ciudadana.","Edgar Neftali Torres Prieto","Carlos Andrés Gil","-","Est 2.2","Grupo de Gestión de Información y de Relación con el ciudadano","Grupo de Gestión de Información y de Relación con el ciudadano","2023-02-01","2026-12-20","2023-01-31","2023-12-20","Finalizada","Funcionamiento","-","-","-","-","Talento Humano","Iniciativa de la dependencia","Servicio al Ciudadano","4. Servicio al Ciudadano","4.4. Conocimiento al servicio al ciudadano.","9.Plan Anticorrupción y de Atención al Ciudadano"]
[null,36,"Consolidar base de datos y elaborar el informe cuatrimestral con el análisis y propuestas para mitigar la insatisfacción.","Consolidar base de datos donde se ingresará la información de la satisfacción al ciudadano y elaborar un Informe cuatrimestral donde se presentará el análisis y propuestas para mitigar la insatisfacción.","Informe cuatrimestral con el análisis y propuestas para mitigar la insatisfacción.","Edgar Neftali Torres Prieto","Carlos Andrés Gil","-","Est 2.2","Grupo de Gestión de Información y de Relación con el ciudadano","Grupo de Gestión de Información y de Relación con el ciudadano","2023-02-01","2026-12-21","2023-01-31","2023-12-20","Finalizada","Funcionamiento","-","-","-","-","Talento Humano","Iniciativa de la dependencia","Servicio al Ciudadano","4. Servicio al Ciudadano","4.5. Evaluación de gestión y medición de la percepción ciudadana.","9.Plan Anticorrupción y de Atención al Ciudadano"]
[null,37,"Realizar la identificación de necesidades para el diseño de una aplicación de interacción ciudadana con la biblioteca pública.","Realizar la identificación de las necesidades y requerimientos para el diseño de una aplicación que permita interactuar de manera virtual con la biblioteca pública José María del Castillo y Rada.","Modelo de requisitos.","Edgar Neftali Torres Prieto","Carlos Andrés Gil","-","Est 2.2","Grupo de Gestión de Información y de Relación con el ciudadano","Grupo de Gestión de Información y de Relación con el ciudadano","-","-","2023-01-31","2023-12-20","Finalizada","Funcionamiento","-","-","-","-","Talento Humano","Iniciativa de la dependencia","Servicio al Ciudadano","4. Servicio al Ciudadano","4.3. Gestión de relacionamiento con los ciudadanos.","9.Plan Anticorrupción y de Atención al Ciudadano"]
[null,38,"Estructurar la ruta académica que permita a los estudiantes de bachillerato (décimo y once) y de pregrado entender el propósito del Misterio de Hacienda y Crédito Publico (MHCP) en el desarrollo del país.","Estructurar la ruta académica que permita a los estudiantes de bachillerato (décimo y once) y de pregrado entender el propósito del Misterio de Hacienda y Crédito Publico (MHCP) en el desarrollo del país.","Documento de estructura ruta académica","Edgar Neftali Torres Prieto","Carlos Andrés Gil","Catherine Cifuentes\nVictor Ciro\nCamilo Sánchez","Est 2.2","Grupo de Gestión de Información y de Relación con el ciudadano","Oficina Asesora de Planeación","2023-05-02","2024-04-30","2023-01-31","2023-12-20","Finalizada","Funcionamiento","-","-","-","-","Talento Humano","Iniciativa de la dependencia","Servicio al Ciudadano","4. Servicio al Ciudadano","4.3. Gestión de relacionamiento con los ciudadanos.","9.Plan Anticorrupción y de Atención al Ciudadano"]
[null,39,"Promover la ruta académica que permita que los estudiantes de bachillerato (décimo y once) y de pregrado que permita entender el propósito del MHCP en el desarrollo del país.","Promover la ruta académica que permita que los estudiantes de bachillerato (décimo y once) y de pregrado que permita entender el propósito del MHCP en el desarrollo del país.","Actividades de promoción de la ruta académica","Edgar Neftali Torres Prieto","Carlos Andrés Gil","Catherine Cifuentes\nVictor Ciro\nCamilo Sánchez","Est 2.2","Grupo de Gestión de Información y de Relación con el ciudadano","Oficina Asesora de Planeación","2023-05-02","2024-04-30","2023-01-31","2023-12-15","Finalizada","Funcionamiento","-","-","-","-","Talento Humano","Iniciativa de la dependencia","Servicio al Ciudadano","4. Servicio al Ciudadano","4.3. Gestión de relacionamiento con los ciudadanos.","9.Plan Anticorrupción y de Atención al Ciudadano"]
[null,40,"Implementar mecanismos de control para la divulgación de información contractual e interacción de los entes de control, veedurías y demás interesados en la participación de los procesos de contratación gestionados por el Misterio de Hacienda y Crédito Publico (MHCP).","Gestionar de forma adecuada y en los términos establecidos por la Ley, los procesos de contratación pública a través de la plataforma SECOP.","Los abogados asesores de los Grupos de Contratos, realizarán la publicación de cada una de las etapas de contratación en la plataforma del sistema electrónico de la contratación publica, portal único de Contratación SECOP II, con el propósito de que los interesados lo puedan observar y participar y al mismo tiempo lo conozcan los entes de control, las veedurías y terceros, en cumplimiento de Ley 80 de 1993, Ley 1150 de 2007 y Decreto 1082 de 2015.","Sonia Liliana Rojas","Yenni Shirley Cortes Montoya","Nidia Constanza Rojas","Apo.4.1","Grupo de Licitaciones y Proceso Especiales","Grupo de Licitaciones y Procesos Especiales / \nGrupo de Contratación Directa","2023-02-01","2026-12-20","2023-01-31","2023-12-20","Finalizada","Funcionamiento","-","-","-","-","Talento Humano","Plataforma SECOP II","Compras y contratación pública ","5. Mecanismos para la transparencia y acceso a la información","5.1. Lineamientos de Transparencia Activa","9.Plan Anticorrupción y de Atención al Ciudadano"]
[null,41,"Fortalecer los espacios de comunicación interna y externa, que genere información de interés a los servidores públicos, incentive la participación ciudadana y el reconocimiento de la marca del Ministerio de Hacienda.","Fortalecer la intranet ","Ajuste en la intranet\n\nReubicación de los Tonten /Reubicación de las pantallas  \n\n\nCampaña de reconocimiento de la marca del Ministerio de Hacienda.","Edgar Laiton","Olga Ximena Novoa","Juliet Tatiana Virguez ","Est.2.1","Comunicaciones","Dirección de Tecnología ","-","-","2023-04-10","2023-12-20","Finalizada","Funcionamiento","-","-","-","-","Talento Humano","Iniciativa de la dependencia","Participación Ciudadana en la Gestión Pública","3. Rendición de cuentas","3.1 Informar avances y resultados de la gestión con calidad y en lenguaje comprensible","9.Plan Anticorrupción y de Atención al Ciudadano"]
[null,42,"Realizar el seguimiento al cumplimiento de los requisitos de la Resolución 1519 de 2020","De acuerdo con los lineamientos que emita la Procuraduría General de la Nación, se realizará el seguimiento a la matriz ITA y el diligenciamiento correspondiente con las dependencias responsables ","Seguimiento a la matriz ITA","María del Pilar Florido","Aura Ruth Herrera","Carlos Gil\nHasbleidy Díaz\nJose Peña","Est. 1.1 ","Oficina Asesora de Planeación \n\n","Grupo de Gestión de Información y de Relación con el ciudadano\nDirección de Tecnología","-","-","2023-07-01","2023-12-20","Finalizada","Funcionamiento","-","-","-","-","Talento Humano","Iniciativa de la dependencia","Transparencia, Acceso a la Información Pública y Lucha Contra la Corrupción","5. Mecanismos para la transparencia y acceso a la información","5.1. Lineamientos de Transparencia Activa","9.Plan Anticorrupción y de Atención al Ciudadano"]
[null,43,"Estructurar la estrategia de rendición de cuentas, en donde se presenten los resultados de la gestión misional y la gestión institucional.","Estructurar la estrategia de rendición de cuentas, en donde se presenten los resultados de la gestión misional y la gestión institucional. Incluir en el Manual de Rendición de Cuentas el enfoque basado en Derechos Humanos así como alinear la estrategia a los requerimientos dispuestos por el DAFP.","Estrategia de rendición de cuentas.\n\nInforme final de la estrategia de rendición de cuentas","María del Pilar Florido","Catherine Cifuentes","Carlos Gil\nOlga Ximena Novoa","Est. 1.1 ","Oficina Asesora de Planeación \n\n","Gestión de Comunicaciones \nGrupo de Gestión de Información y de Relación con el ciudadano-","-","-","2023-07-01","2023-12-20","Finalizada","Funcionamiento","-","-","-","-","Talento Humano","Iniciativa de la dependencia","Participación Ciudadana en la Gestión Pública","3. Rendición de cuentas","3.2. Desarrollar escenarios de diálogo de doble vía con la ciudadanía y sus organizaciones.\n\n3.3 Responder a compromisos propuestos, evaluación y retroalimentación en los ejercicios de rendición de cuentas con acciones correctivas para mejora.\n\n","9.Plan Anticorrupción y de Atención al Ciudadano"]
[null,44,"Estructurar una metodología para la evaluación de la satisfacción de los usuarios de trámites y otros procedimientos administrativos","Revisar la metodología actual y realizar la propuesta de metodología acorde con los lineamientos de la Función Pública","Metodología evaluación y satisfacción usuarios que acceden a los trámites y otros procedimientos administrativos.","María del Pilar Florido","Liliana Parra","Aura Ruth Herrera -Carlos Gil - Jose Peña","Est.1.4","Oficina Asesora de Planeación \n\n","Grupo de Gestión de Información y de Relación con el ciudadano","-","-","2023-01-31","2023-12-20","Finalizada","Funcionamiento","-","-","-","-","Talento Humano","Iniciativa de la dependencia"," Racionalización de trámites","2. Racionalización de trámites","2.3 Racionalización de tramites","9.Plan Anticorrupción y de Atención al Ciudadano"]
[null,45,"Gestionar la formulación y seguimiento de la estrategia de racionalización de tramites y otros procedimientos administrativos","De acuerdo con los lineamiento de la Función Pública se debe realizar la formulación de la estrategia de trámites acorde con los insumos entregados por las dependencias y el ejercicio de participación ciudadana, el seguimiento se realiza de forma trimestral enviando las alertas a los responsables de trámites registrados en el SUIT","Estrategia de formulación y seguimiento de racionalización de trámites.","María del Pilar Florido","Liliana Parra","Aura Ruth Herrera -Carlos Gil - Jose Peña","Est.1.4","Oficina Asesora de Planeación \n\n","Grupo de Gestión de Información y de Relación con el ciudadano","-","-","2023-01-31","2023-12-20","Finalizada","Funcionamiento","-","-","-","-","Talento Humano","Iniciativa de la dependencia","Racionalización de Trámites","2. Racionalización de trámites","2.3 Racionalización de tramites","9.Plan Anticorrupción y de Atención al Ciudadano"]
[]
[null,"Objetivo estratégico: GR2. Promover una cultura de gestión de conocimiento e innovación para una adecuada gestión de información y analítica institucional"]
[]
[null,"Nombre del indicador ",null,null,null,"Dependencia responsable",null,null,"Metas"]
[null,null,null,null,null,null,null,null,2023,2024,2025,2026,"Cuatrienio"]
[null,"GR2_2023_2026_Ind1 Actividades de apropiación de conocimientos basadas en Gesco+i realizadas al interior de la entidad",null,null,null,"Oficina Asesora de Planeación",null,null,1,1,1,1,4]
[]
[null,"Iniciativa ",null,null,null,null,null,null,"Nombre del indicador ","Dependencia responsable","Metas"]
[null,null,null,null,null,null,null,null,null,null,2023,2024,2025,2026,"Cuatrienio"]
[null,"Ini.2023.2026.GR2.01.Fortalecer la Política de Gestión del Conocimiento y la Innovación.",null,null,null,null,null,null,"Ini_2023_2026_GR2_01_Ind1 Estrategias para el fortalecimiento de la política de gestión del conocimiento e innovación.\t","Oficina Asesora de Planeación",1,1,1,1,4]
[]
[null,"No.","Nombre de la Tarea","Descripción de la Tarea ","Entregable","Responsable de aprobar","Responsable de documentar ","Responsable de apoyar (Recurso SMGI)","Proceso(s) asociado(s)","Dependencia responsable","Dependencias y/o entidades participantes","Año de ejecución - Cuatrienio",null,"Año vigencia actual",null,"Estado tareas diciembre 2023","Fuente de Financiación","Fuente de Financiación (Inversión)",null,null,null,"Recursos necesarios para el desarrollo de la tarea","Fuente de información de la tarea","Política MIPG","Componente PAAC","Subcomponente PAAC","PLAN DE ACCIÓN ANUAL (Dto. 612 de 2018)"]
[null,null,null,null,null,null,null,null,null,null,null,"Fecha inicial ","Fecha final","Fecha inicial ","Fecha final",null,null,"Nombre del proyecto","Producto","Apropiación Vigente","Ejecución Presupuestal (obligaciones diciembre 2023)"]
[null,46,"Diseñar e Implementar una estrategia para fortalecer la política de gestión del conocimiento y la innovación al interior de la entidad.","Contar con una estrategia que permita fortalecer la Política de Gestión del Conocimiento e Innovación y permear su metodología en la entidad, mediante la participación de todos los procesos en las actividades programadas durante la vigencia","Estrategia de fortalecimiento política Gestión del Conocimiento y la innovación","Maria del Pilar Florido","Camilo Sánchez","Derly Catherine Cifuentes","Est 1.4","Oficina Asesora de Planeación","Todas las dependencias","2023-02-01","2026-12-31","2023-02-01","2023-12-20","Finalizada","Funcionamiento e  Inversión","Fortalecimiento de la Gestion Institucional con Procesos de Conocimiento, Innovación y Open Government Nacional","Servicio de Educación Informal\npara la Gestión Administrativa",408000000,141248332.34,"Talento Humano","Procesos de la entidad","Gestión del conocimiento e innovación","-","-","-"]
[null,47,"Fortalecer la innovación abierta y cerrada en el Ministerio de Hacienda y Crédito Público.","Realizar actividades de apropiación de conocimientos que permita fortalecer la innovación abierta y cerrada dentro de la entidad","Informe de las acciones adelantadas para fortalecer la innovación abierta y cerrada al interior de la entidad","Maria del Pilar Florido","Camilo Sánchez","Derly Catherine Cifuentes","Est 1.4 ","Oficina Asesora de Planeación","Todas las dependencias","2023-02-01","2026-12-31","2023-02-01","2023-12-20","Finalizada","Funcionamiento e  Inversión","Fortalecimiento de la Gestion Institucional con Procesos de Conocimiento, Innovación y Open Government Nacional","Servicio de Educación Informal\npara la Gestión Administrativa",408000000,141248332.34,"Talento Humano","Procesos de la entidad","Gestión del conocimiento e innovación","-","-","-"]
[]
[null,"Iniciativa ",null,null,null,null,null,null,"Nombre del indicador ","Dependencia responsable","Metas"]
[null,null,null,null,null,null,null,null,null,null,2023,2024,2025,2026,"Cuatrienio"]
[null,"Ini.2023.2026.GR2.02.Promover la gestión de expedientes electrónicos de archivo.",null,null,null,null,null,null,"Ini_2023_2026_GR2_02_Ind1 Implementar una serie documental para manejar expedientes híbridos en el Sistema integral Electrónico Documental(SIED).","Grupo Gestión de Información y de Relación con el Ciudadano","0.25","0.50","0.75",1,1]
[]
[null,"No.","Nombre de la Tarea","Descripción de la Tarea ","Entregable","Responsable de aprobar","Responsable de documentar ","Responsable de apoyar (Recurso SMGI)","Proceso(s) asociado(s)","Dependencia responsable","Dependencias y/o entidades participantes","Año de ejecución - Cuatrienio",null,"Año vigencia actual",null,"Estado tareas diciembre 2023","Fuente de Financiación","Fuente de Financiación (Inversión)",null,null,null,"Recursos necesarios para el desarrollo de la tarea","Fuente de información de la tarea","Política MIPG","Componente PAAC","Subcomponente PAAC","PLAN DE ACCIÓN ANUAL (Dto. 612 de 2018)"]
[null,null,null,null,null,null,null,null,null,null,null,"Fecha inicial ","Fecha final","Fecha inicial ","Fecha final",null,null,"Nombre del proyecto","Producto","Apropiación Vigente","Ejecución Presupuestal (obligaciones diciembre 2023)"]
[null,48,"Revisar la Tabla de Retención Documental  para identificar una serie documental hibrida, identificación de tipos documentales y formatos, revisión de la organización Física y elaboración instructivo expedientes híbridos","Revisar las  Tablas de Retención Documental  para identificar una serie documental hibrida e identificar tipos documentales y formatos para revisar la organización Física y finalmente elaborar  instructivo expedientes híbridos","Instructivo expedientes híbridos","Edgar Neftali Torres Prieto","Carlos Andrés Gil","Diego Vargas","Apo 1.4","Grupo Gestión de Información y de Relación con el Ciudadano","Grupo Gestión de Información y de Relación con el Ciudadano","2023-02-01","2026-12-21","2023-02-01","2023-12-20","Finalizada","Funcionamiento","-","-","-","-","Tecnológicos","Iniciativa de la dependencia","Gestión Documental","5. Transparencia y Acceso a la Información","5.4. Gestión Documental","9.Plan Anticorrupción y de Atención al Ciudadano"]
[null,49,"Aplicar el  instructivo a la serie documental definida e informe impacto en la gestión serie hibrida","Conformar expedientes híbridos","Expedientes híbridos","Edgar Neftali Torres Prieto","Carlos Andrés Gil","Carlos Carrillo","Apo 1.4","Grupo Gestión de Información y de Relación con el Ciudadano","Grupo Gestión de Información y de Relación con el Ciudadano","2023-02-01","2026-12-21","2023-02-01","2023-12-20","Finalizada","Funcionamiento","-","-","-","-","Tecnológicos","Iniciativa de la dependencia","Gestión Documental","5. Transparencia y Acceso a la Información","5.4. Gestión Documental","9.Plan Anticorrupción y de Atención al Ciudadano"]
[]
[null,"Iniciativa ",null,null,null,null,null,null,"Nombre del indicador ","Dependencia responsable","Metas"]
[null,null,null,null,null,null,null,null,null,null,2023,2024,2025,2026,"Cuatrienio"]
[null,"Ini.2023.2026.GR2.03.Fortalecer la gestión organizacional y por procesos de la entidad.",null,null,null,null,null,null,"Ini_2023_2026_GR2_03_Ind1 documentos realizados / documentos programados","Oficina Asesora de Planeación",1,1,1,1,4]
[]
[null,"No.","Nombre de la Tarea","Descripción de la Tarea ","Entregable","Responsable de aprobar","Responsable de documentar ","Responsable de apoyar (Recurso SMGI)","Proceso(s) asociado(s)","Dependencia responsable","Dependencias y/o entidades participantes","Año de ejecución - Cuatrienio",null,"Año vigencia actual",null,"Estado tareas diciembre 2023","Fuente de Financiación","Fuente de Financiación (Inversión)",null,null,null,"Recursos necesarios para el desarrollo de la tarea","Fuente de información de la tarea","Política MIPG","Componente PAAC","Subcomponente PAAC","PLAN DE ACCIÓN ANUAL (Dto. 612 de 2018)"]
[null,null,null,null,null,null,null,null,null,null,null,"Fecha inicial ","Fecha final","Fecha inicial ","Fecha final",null,null,"Nombre del proyecto","Producto","Apropiación Vigente","Ejecución Presupuestal (obligaciones diciembre 2023)"]
[null,50,"Participar en el programa de excelencia Empresarial Ambiental (PREAD).","Realizar la inscripción y participar en el programa de excelencia Empresarial Ambiental (PREAD) de la Secretaria Distrital de Ambiente.","Informe final de auditoría externa para el reconocimiento de Excelencia Ambiental Distrital 2023","Edgar Neftali Torres Prieto","Jeimmy Catalina Ángel","Pilar Rodriguez Chaparro","Apo.4.5","\tGrupo de Gestión de Información y de Relación con el Ciudadano","Gestión de Comunicaciones","-","-","2023-02-01","2023-12-20","Finalizada","Funcionamiento","-","-","-","-","Talento Humano","Iniciativa dependencia","Fortalecimiento Organizacional y Simplificación de Procesos ","-","-","13.Plan Institucional de Gestión Ambiental - PIGA"]
[null,51,"Organizar la semana ambiental y eco empresarial.","Realizar una semana ambiental y eco empresarial para todos los funcionarios, contratistas y pasantes del Ministerio de Hacienda y Crédito Público."," Listas de asistencia por parte de funcionarios, pasantes y contratistas a actividades propuestas. ","Edgar Neftali Torres Prieto","Jeimmy Catalina Ángel","Pilar Rodriguez Chaparro","Apo.4.5","\tGrupo de Gestión de Información y de Relación con el Ciudadano","Gestión de Comunicaciones","-","-","2023-02-01","2023-12-20","Finalizada","Funcionamiento","-","-","-","-","Talento Humano","Iniciativa dependencia","Fortalecimiento Organizacional y Simplificación de Procesos ","-","-","13.Plan Institucional de Gestión Ambiental - PIGA"]
[null,52,"Estructurar la documentación del MOP- Modelo de Operación por Procesos","Estructurar la documentación de caracterizaciones, flujos de procedimientos, cadena de valor, entre otros asociado a la actualización del Modelo de Operación por Procesos","Documentación del MOP","Maria del Pilar Florido","Claudia Umbarila","-","Est.1.4","Oficina Asesora de Planeación","Todas las dependencias","-","-","2023-02-01","2023-12-20","Finalizada","Funcionamiento","-","-","-",null,"Talento Humano","Iniciativa dependencia","Fortalecimiento Organizacional y Simplificación de Procesos ","-","-","-"]
[null,53,"Estructurar la estrategia de racionalización, simplificación y automatización de procesos y procedimientos.","Se definirá por etapas en cada vigencia el desarrollo de la estrategia, acorde con los diferentes niveles de procesos.","Estrategia estructurada","Maria del Pilar Florido","Claudia Umbarila","-","Est.1.4","Oficina Asesora de Planeación","-","-","-","2023-02-01","2023-12-20","Finalizada","Funcionamiento","-","-","-","-","Talento Humano","Iniciativa dependencia","Fortalecimiento Organizacional y Simplificación de Procesos ","-","-","-"]
[null,54,"Construir el contexto estratégico y perfeccionar la planeación estratégica institucional y sectorial ","Se realizará la construcción del contexto estratégico de los próximos 4 años, que será insumo para la actualización del anexo de la política de administración de riesgos y de acuerdo con las bases definitivas del PND se perfeccionará la planeación estratégica de la entidad y del sector.","Contexto estratégico y riesgos estratégicos","Maria del Pilar Florido","Catherine Cifuentes","Liliana Parra","Est.1.1","Oficina Asesora de Planeación","-","-","-","2023-07-01","2023-12-20","Finalizada","Funcionamiento","-","-","-","-","Talento Humano","Iniciativa dependencia","Planeación Institucional ","1. Gestión del Riesgo de Corrupción","1.4. Monitoreo y revisión","9.Plan Anticorrupción y de Atención al Ciudadano"]
[null,55,"Administrar conforme a la normatividad vigente la política de administración del riesgos ","Se realizará el monitoreo al cumplimiento en el registro de riesgos de los procesos, y se publicará de manera cuatrimestral los riesgos en la página web.","Matriz de seguimiento a riesgos","Maria del Pilar Florido","Liliana Parra","-","Est.1.4","Oficina Asesora de Planeación","-","-","-","2023-04-01","2023-12-20","Finalizada","Funcionamiento","-","-","-","-","Talento Humano","Iniciativa dependencia","Planeación Institucional ","1. Gestión del Riesgo de Corrupción","1.1. Política de Administración de Riesgos","9.Plan Anticorrupción y de Atención al Ciudadano"]
[]
[null,"Objetivo estratégico: GR3. Fortalecer la transformación digital para contribuir a la generación de valor público"]
[]
[null,"Nombre del indicador ",null,null,null,"Dependencia responsable",null,null,"Metas"]
[null,null,null,null,null,null,null,null,2023,2024,2025,2026,"Cuatrienio"]
[null,"GR3_2023_2026_Ind1  Incrementar el índice FURAG para la política de gobierno digital\t\t\t",null,null,null,"Dirección de Tecnología",null,null,0.9,0.93,0.95,0.97,0.97]
[]
[null,"Iniciativa ",null,null,null,null,null,null,"Nombre del indicador ","Dependencia responsable","Metas"]
[null,null,null,null,null,null,null,null,null,null,2023,2024,2025,2026,"Cuatrienio"]
[null,"Ini.2023.2026.GR3.01.Fortalecer el gobierno y gestión de datos en el MHCP.",null,null,null,"Dirección de Tecnología",null,null,"Ini_2023_2026_GR3_01_Ind1 Dominio de datos implementado anualmente de acuerdo con el marco de gobierno de datos definido para la entidad","Dirección de Tecnología",1,1,1,1,4]
[]
[null,"No.","Nombre de la Tarea","Descripción de la Tarea ","Entregable","Responsable de aprobar","Responsable de documentar ","Responsable de apoyar (Recurso SMGI)","Proceso(s) asociado(s)","Dependencia responsable","Dependencias y/o entidades participantes","Año de ejecución - Cuatrienio",null,"Año vigencia actual",null,"Estado tareas diciembre 2023","Fuente de Financiación","Fuente de Financiación (Inversión)",null,null,null,"Recursos necesarios para el desarrollo de la tarea","Fuente de información de la tarea","Política MIPG","Componente PAAC","Subcomponente PAAC","PLAN DE ACCIÓN ANUAL (Dto. 612 de 2018)"]
[null,null,null,null,null,null,null,null,null,null,null,"Fecha inicial ","Fecha final","Fecha inicial ","Fecha final",null,null,"Nombre del proyecto","Producto","Apropiación Vigente","Ejecución Presupuestal (obligaciones diciembre 2023)"]
[null,56,"Definir el modelo de gobierno de datos para el Ministerio de Hacienda y Crédito Publico","\tEstablecer los estándares, guías y buenas prácticas en Gobierno de Datos teniendo en cuenta las recomendaciones, tales como: Guía DAMA-DMBOK, lineamientos del Gobierno Nacional según la guía G.INF.06 Guía Técnica de Información - Gobierno del dato, y los que se consideren necesarios y convenientes a las características y necesidades del MHCP.","Modelo de gobierno de datos para el Ministerio de Hacienda y Crédito Publico","Ricardo Fernelix Rios","Jose Alberto Ahumada","-","Apo 1.3","Dirección de Tecnología","-","2023-01-02","2023-12-20","2023-01-02","2023-12-20","Finalizada","Inversión","C-  1399-1000-4 FORTALECIMIENTO DEL GOBIERNO Y LA GESTIÓN DE SERVICIOS TIC EN EL MHCP BOGOTÁ","Documentos de lineamientos técnicos",361047950,361047950,"Talento Humano","Funcionario que apoya  la supervisión del contrato 4.003-2022","Gobierno Digital","\t\n5. Mecanismos para la Transparencia y el Acceso a la Información","5.1. Lineamientos de Transparencia Activa","10.Plan Estratégico de Tecnologías de la Información y las Comunicaciones – PETI"]
[null,57,"Implementar el modelo de gobierno de datos para uno de los dominios priorizados por la Dirección de Tecnología ","Desarrollar  el modelo de gestión de datos alineado con el marco general de Gobierno de datos definido a uno de los dominios que sean priorizados","Documento del dominio seleccionado con el modelo de gobierno de datos aplicado","Ricardo Fernelix Rios","Jose Alberto Ahumada","-","Apo 1.3","Dirección de Tecnología","-","2023-01-02","2026-12-20","2023-01-02","2023-12-20","Finalizada","Inversión","C-  1399-1000-4 FORTALECIMIENTO DEL GOBIERNO Y LA GESTIÓN DE SERVICIOS TIC EN EL MHCP BOGOTÁ","Documentos de lineamientos técnicos",{"$f":"448320306/2","v":224160153},224160153,"Talento Humano","Funcionario que apoya  la supervisión del contrato 4.003-2022","Gobierno Digital","5. Transparencia y Acceso a la Información","5.1. Lineamientos de Transparencia Activa","10.Plan Estratégico de Tecnologías de la Información y las Comunicaciones – PETI"]
[]
[null,"Iniciativa ",null,null,null,null,null,null,"Nombre del indicador ","Dependencia responsable","Metas"]
[null,null,null,null,null,null,null,null,null,null,2023,2024,2025,2026,"Cuatrienio"]
[null,"Ini.2023.2026.GR3.02.Fortalecer la adopción de los elementos constitutivos de la política de gobierno digital establecidos en el Decreto 767 de 2022.",null,null,null,null,null,null,"Ini_2023_2026_GR3_02_Ind1Incrementar el nivel de madurez del 80% de lineamientos MGGTI y MAE de  MinTIC que presentan brechas  de acuerdo con la evaluación de madurez indicada en el PETI 2022 - 2025.","Dirección de Tecnología",0.15,0.25,0.2,0.2,0.8]
[null,null,null,null,null,null,null,null,"Ini_2023_2026_GR3_02_Ind2 Piloto anual de tecnologías emergentes siguiendo las recomendaciones de la guía de implementación de tecnologías emergentes del MinTIC .","Dirección de Tecnología",0,1,1,1,3]
[]
[null,"No.","Nombre de la Tarea","Descripción de la Tarea ","Entregable","Responsable de aprobar","Responsable de documentar ","Responsable de apoyar (Recurso SMGI)","Proceso(s) asociado(s)","Dependencia responsable","Dependencias y/o entidades participantes","Año de ejecución - Cuatrienio",null,"Año vigencia actual",null,"Estado tareas diciembre 2023","Fuente de Financiación","Fuente de Financiación (Inversión)",null,null,null,"Recursos necesarios para el desarrollo de la tarea","Fuente de información de la tarea","Política MIPG","Componente PAAC","Subcomponente PAAC","PLAN DE ACCIÓN ANUAL (Dto. 612 de 2018)","Control de cambios"]
[null,null,null,null,null,null,null,null,null,null,null,"Fecha inicial ","Fecha final","Fecha inicial ","Fecha final",null,null,"Nombre del proyecto","Producto","Apropiación Vigente","Ejecución Presupuestal (obligaciones diciembre 2023)"]
[null,58,"Elaborar guía de implementación de ejercicios de arquitectura empresarial para el Ministerio de Hacienda y Crédito Publico","Establecer lineamientos básicos para realizar ejercicios de Arquitectura Empresarial en el Ministerio de Hacienda y Crédito Publico","guía de implementación de ejercicios de arquitectura empresarial","Ricardo Fernelix Rios","Ludy Paola Romero","N/A","Apo 1.3","Dirección de Tecnología","Oficina Asesora de Planeación ","2023-02-21","2023-12-20","2023-02-01","2023-12-20","Finalizada","Inversión","C-  1399-1000-4 FORTALECIMIENTO DEL GOBIERNO Y LA GESTIÓN DE SERVICIOS TIC EN EL MHCP BOGOTÁ","Documentos de lineamientos técnicos",209764728,0,"Talento Humano","Contratista que apoya la implementación de PETI","Gobierno Digital","-","-","12.Plan de Seguridad y Privacidad de la Información "]
[null,59,"Gestionar la implementación de un Centro de Operaciones de Seguridad (SOC)","Llevar a cabo  la adquisición e implementación de un servicio de SOC  para reforzar la estrategia de seguridad del Ministerio de Hacienda y Crédito Publico"," Implementación del Centro de Operaciones de Seguridad  ","Ricardo Fernelix Rios","Luis Orlando Arenas ","N/A","Apo 1.3","Dirección de Tecnología","-","2023-01-01","2023-12-20","2023-01-01","2023-12-20","Finalizada","Inversión","C-  1399-1000-4 FORTALECIMIENTO DEL GOBIERNO Y LA GESTIÓN DE SERVICIOS TIC EN EL MHCP BOGOTÁ","Servicios de información implementados",183873022,0,"Talento Humano","Continuación tarea plan institucional 2022","Seguridad Digital","-","-","12.Plan de Seguridad y Privacidad de la Información "]
[null,60,"Revisar el modelo de gobierno y gestión de los activos de información en el marco del Modelo de Seguridad y Privacidad de la Información ","Identificar el estado actual de lineamientos, roles, responsabilidades y procedimientos, con los cuenta el Ministerio de Hacienda y Crédito Publico  para gestionar los activos de información de acuerdo con lo establecido en el Modelo de Seguridad y Privacidad de la Información","Documento orientador de la  gestión de activos de información ","Ricardo Fernelix Rios","Francisco José Ariza Pastor","N/A","Apo 1.3","Dirección de Tecnología","Grupo de Gestión de la Información\n\nOficina Asesora de Planeación","2023-01-01","2023-12-20","2023-02-01","2023-12-20","Finalizada","Inversión","C-  1399-1000-4 FORTALECIMIENTO DEL GOBIERNO Y LA GESTIÓN DE SERVICIOS TIC EN EL MHCP BOGOTÁ","Servicios de información implementados",{"$f":"94420100*0.6","v":56652060},49851359.399999999,"Talento Humano","Contratista especializado en gestión de seguridad de la información ","Gobierno Digital","-","-","12.Plan de Seguridad y Privacidad de la Información "]
[null,61,"Ejecutar plan de cierre de brechas en los dominios MGGTI y MAE de acuerdo con el plan elaborado para cada vigencia ","Llevar a cabo actividades que permitan elevar el cumplimiento de los lineamientos establecidos en los marcos de referencia MGGTI y MAE emitidos por el Ministerio de Tecnologías de la Información y Comunicaciones de Colombia","Informe anual de cierre de brechas ","Ricardo Fernelix Rios","Ludy Paola Romero","N/A","Apo 1.3","Dirección de Tecnología","-","2023-01-01","2026-12-20","2023-02-01","2023-12-20","Finalizada","Inversión","C-  1399-1000-4 FORTALECIMIENTO DEL GOBIERNO Y LA GESTIÓN DE SERVICIOS TIC EN EL MHCP BOGOTÁ","Documentos de lineamientos técnicos",100020820,90150431,"Talento Humano","Contratista que apoya la implementación de PETI","Gobierno Digital","-","-","12.Plan de Seguridad y Privacidad de la Información "]
[null,62,"Actualizar el Modelo de Seguridad y Privacidad de la Información de cada vigencia","Adelantar las acciones requeridas para actualizar el Modelo de Seguridad y Privacidad de la Información a partir de la revisión del mismo y las oportunidades de mejora  identificadas ","Informe anual de actualización del MSPI","Ricardo Fernelix Rios","Francisco José Ariza Pastor","N/A","Apo 1.3","Dirección de Tecnología","-","2023-01-01","2026-12-20","2023-02-01","2023-12-20","Finalizada","Inversión","C-  1399-1000-4 FORTALECIMIENTO DEL GOBIERNO Y LA GESTIÓN DE SERVICIOS TIC EN EL MHCP BOGOTÁ","Servicios de información implementados",{"$f":"94420100*0.4","v":37768040},33234239.600000001,"Talento Humano","Contratista especializado en gestión de seguridad de la información ","Gobierno Digital","-","-","12.Plan de Seguridad y Privacidad de la Información "]
[null,63,"Gestionar  las acciones anuales de socialización de las políticas de seguridad de la información para usuarios finales","Planear y ejecutar actividades de socialización y capacitación en materia de seguridad de la información dirigida al personal de la Entidad","Informe semestral  de actividades de socialización de las políticas de seguridad de la información para usuarios finales","Ricardo Fernelix Rios","Luis Orlando Arenas ","N/A","Apo 1.3","Dirección de Tecnología","-","2023-01-01","2026-12-20","2023-02-01","2023-12-20","Finalizada","Funcionamiento","-","-","-","-","Talento Humano","Asesor de Despacho asignado a labores de seguridad de la información ","Seguridad Digital","5. Transparencia y Acceso a la Información","5.6 Transparencia Colaborativa","12.Plan de Seguridad y Privacidad de la Información "]
[]
[null,"Perspectiva: Gestión de capacidades institucionales"]
[]
[null,"Objetivo estratégico: GC1. Fortalecer las capacidades del talento humano en el marco de los valores institucionales"]
[]
[null,"Nombre del indicador ",null,null,null,"Dependencia responsable",null,null,"Metas"]
[null,null,null,null,null,null,null,null,2023,2024,2025,2026,"Cuatrienio"]
[null,"GC1_2023_2026_Ind1 Nivel de Madurez en la Dimensión de Talento Humano del Mipg, de conformidad con los Autodiagnóstico del DAFP",null,null,null,"Subdirección de Gestión del Talento Humano",null,null,0.8,0.85,0.9,0.9,0.9]
[]
[null,"Iniciativa ",null,null,null,null,null,null,"Nombre del indicador ","Dependencia responsable","Metas"]
[null,null,null,null,null,null,null,null,null,null,2023,2024,2025,2026,"Cuatrienio"]
[null,"Ini.2023.2026.GC1.01.Promover acciones orientadas a mantener el nivel de consolidación de la Política de Gestión Estratégica de Talento Humano, de acuerdo con lo lineamientos del Modelo Integrado de Planeación y Gestión - MIPG y el Modelo de Entidad Familiarmente Responsable - efr.",null,null,null,null,null,null,"Ini_2023_2026_GC1_01_Ind1 Nivel de Madurez en las etapas de Gestión de la Política de Gestión del Talento Humano de la Matriz de Autodiagnóstico del DAFP","Subdirección de Gestión del Talento Humano",0.8,0.85,0.9,0.9,0.9]
[]
[null,"No.","Nombre de la Tarea","Descripción de la Tarea ","Entregable","Responsable de aprobar","Responsable de documentar ","Responsable de apoyar (Recurso SMGI)","Proceso(s) asociado(s)","Dependencia responsable","Dependencias y/o entidades participantes","Año de ejecución - Cuatrienio",null,"Año vigencia actual",null,"Estado tareas diciembre 2023","Fuente de Financiación","Fuente de Financiación (Inversión)",null,null,null,"Recursos necesarios para el desarrollo de la tarea","Fuente de información de la tarea","Política MIPG","Componente PAAC","Subcomponente PAAC","PLAN DE ACCIÓN ANUAL (Dto. 612 de 2018)"]
[null,null,null,null,null,null,null,null,null,null,null,"Fecha inicial ","Fecha final","Fecha inicial ","Fecha final",null,null,"Nombre del proyecto","Producto","Apropiación Vigente","Ejecución Presupuestal (obligaciones diciembre 2023)"]
[null,64,"Realizar las actividades a cargo del proceso Apo.2.1 relacionadas con el ciclo de vida del servidor público, los estándares de la norma entidad familiarmente responsable - efr y las rutas de creación de valor (felicidad, crecimiento, servicio, calidad, análisis de datos), según lo estipulado en el PETH.","Ejecutar en cada vigencia las acciones y líneas de trabajo estipuladas en los planes que conforman el Plan Estratégico de Talento Humano en relación con la Política de Gestión del Talento Humano, a cargo del proceso Apo.2.1.","Informes de ejecución y seguimiento del Plan Estratégico de Talento Humano de cada vigencia.","Fernando Antonio Carvajal","Hilda Veronica Tapasco Cedeño","Carlos Leonardo Cano Paramo\nHilda Verónica Tapasco","Apo 2.1","Subdirección de Gestión del  Talento Humano","Servidores Públicos","2023-02-01","2026-12-20","2023-02-01","2023-12-20","Finalizada","Funcionamiento","-","-","-","-","Talento Humano","Necesidades MHCP","Talento Humano","-","-","5.Plan Estratégico de Talento Humano"]
[null,65,"Realizar las actividades a cargo del proceso Apo.2.2 relacionadas con el ciclo de vida del servidor público, los estándares de la norma entidad familiarmente responsable - efr y las rutas de creación de valor (felicidad, crecimiento, servicio, calidad, análisis de datos), según lo estipulado en el PETH.","Ejecutar en cada vigencia las acciones y líneas de trabajo estipuladas en los planes que conforman el Plan Estratégico de Talento Humano en relación con la Política de Gestión del Talento Humano, a cargo del proceso Apo.2.2.","Informes de ejecución y seguimiento del Plan Estratégico de Talento Humano de cada vigencia.","Fernando Antonio Carvajal","Karen Duque Aguirre","\nLia Carolina Cabrejo Cardenas\nHilda Verónica Tapasco","Apo 2.2","Subdirección de Gestión del  Talento Humano","Servidores Públicos","2023-02-01","2026-12-20","2023-02-01","2023-12-20","Finalizada","Funcionamiento e  Inversión"," Fortalecimiento de las Competencias Técnicas de los Funcionarios del MHCP Nacional","Servicio de Apoyo Financiero para el Fortalecimiento del Talento Humano\nMeta Horizonte: 387\nActividades: \n* Desarrollar la convocatoria para\nofrecer cupos de Estudios en el\nExterior del País.\n* Desarrollar la convocatoria para ofrecer cupos de estudio del idioma inglés.",1496180182,431767677.41000003,"Talento Humano","Necesidades MHCP","Talento Humano","-","-","5.Plan Estratégico de Talento Humano"]
[]
[null,"Iniciativa ",null,null,null,null,null,null,"Nombre del indicador ","Dependencia responsable","Metas"]
[null,null,null,null,null,null,null,null,null,null,2023,2024,2025,2026,"Cuatrienio"]
[null,"Ini.2023.2026.GC1.02.Realizar actividades que fortalezcan la implementación de la Política de Integridad, con el propósito de alcanzar el nivel de consolidación, de acuerdo con los lineamientos del Modelo Integrado de Planeación y Gestión - MIPG.",null,null,null,null,null,null,"Ini_2023_2026_GC1_02_Ind1 Nivel de Madurez en las etapas de Gestión de la Política de Integridad de la Matriz de Autodiagnóstico del DAFP","Subdirección de Gestión del  Talento Humano",0.8,0.85,0.9,0.9,0.9]
[]
[null,"No.","Nombre de la Tarea","Descripción de la Tarea ","Entregable","Responsable de aprobar","Responsable de documentar ","Responsable de apoyar (Recurso SMGI)","Proceso(s) asociado(s)","Dependencia responsable","Dependencias y/o entidades participantes","Año de ejecución - Cuatrienio",null,"Año vigencia actual",null,"Estado tareas diciembre 2023","Fuente de Financiación","Fuente de Financiación (Inversión)",null,null,null,"Recursos necesarios para el desarrollo de la tarea","Fuente de información de la tarea","Política MIPG","Componente PAAC","Subcomponente PAAC","PLAN DE ACCIÓN ANUAL (Dto. 612 de 2018)"]
[null,null,null,null,null,null,null,null,null,null,null,"Fecha inicial ","Fecha final","Fecha inicial ","Fecha final",null,null,"Nombre del proyecto","Producto","Apropiación Vigente","Ejecución Presupuestal (obligaciones diciembre 2023)"]
[null,66,"Ejecutar actividades que promuevan la cultura de integridad, de conformidad con las líneas de trabajo estipuladas en el Plan Estratégico de Talento Humano de cada vigencia.","Ejecutar en cada vigencia las acciones y líneas de trabajo estipuladas en los planes que conforman el Plan Estratégico de Talento Humano en relación con la Política de Integridad.","Informes de ejecución y seguimiento del Plan Estratégico de Talento Humano de cada vigencia.","Fernando Antonio Carvajal","\nKaren Duque Aguirre","Lia Carolina Cabrejo Cardenas\nHilda Verónica Tapasco\n","Apo 2.2","Subdirección de Gestión del  Talento Humano","Servidores Públicos","2023-02-01","2026-12-20","2023-02-01","2023-12-20","Finalizada","Funcionamiento","-","-","-","-","Talento Humano","Necesidades MHCP","Integridad","6. Iniciativas Adicionales","-","5.Plan Estratégico de Talento Humano"]
[]
[null,"Objetivo estratégico: GC2.  Fortalecer la gestión pública a través de procesos administrativos, financieros y jurídicos"]
[]
[null,"Nombre del indicador ",null,null,null,"Dependencia responsable",null,null,"Metas"]
[null,null,null,null,null,null,null,null,2023,2024,2025,2026,"Cuatrienio"]
[null," GC2_2023_2026_Ind1 Estrategias para el fortalecimiento de la gestión pública a través de procesos administrativos, financieros y jurídicos ",null,null,null,"Subdirección Jurídica",null,null,1,0,0,0,1]
[]
[null,"Iniciativa ",null,null,null,null,null,null,"Nombre del indicador ","Dependencia responsable","Metas"]
[null,null,null,null,null,null,null,null,null,null,2023,2024,2025,2026,"Cuatrienio"]
[null,"Ini.2023.2026.GC2.01 Promover mecanismos para un ejercicio adecuado de defensa jurídica de la Entidad.",null,null,null,null,null,null,"Ini_2023_2026_GC2_01_Ind1  Implementar mecanismos para la adecuada defensa jurídica de la Entidad","Subdirección Jurídica",1,0,0,0,1]
[]
[null,"No.","Nombre de la Tarea","Descripción de la Tarea ","Entregable","Responsable de aprobar","Responsable de documentar ","Responsable de apoyar (Recurso SMGI)","Proceso(s) asociado(s)","Dependencia responsable","Dependencias y/o entidades participantes","Año de ejecución - Cuatrienio",null,"Año vigencia actual",null,"Estado tareas diciembre 2023","Fuente de Financiación","Fuente de Financiación (Inversión)",null,null,null,"Recursos necesarios para el desarrollo de la tarea","Fuente de información de la tarea","Política MIPG","Componente PAAC","Subcomponente PAAC","PLAN DE ACCIÓN ANUAL (Dto. 612 de 2018)"]
[null,null,null,null,null,null,null,null,null,null,null,"Fecha inicial ","Fecha final","Fecha inicial ","Fecha final",null,null,"Nombre del proyecto","Producto","Apropiación Vigente","Ejecución Presupuestal (obligaciones diciembre 2023)"]
[null,67,"Promover e incentivar la generación de estrategias de defensa entre las diferentes entidades que actúen ya sea como demandantes o demandadas","Programar mesas de trabajo para fortalecer la argumentación para la defensa de la institucionalidad presupuestal dentro de los procesos judiciales en las diversas áreas del Ministerio de Hacienda y Crédito Publico y con las diferentes entidades del Estado.","Convocatoria a mesa de trabajo o lista de asistencia o actas de reunión o documento de política de defensa","Diego Ignacio Rivera","Sandra Díaz Castellanos","Sandra Mónica Acosta García - Liliana María Almeyda","Apo.5.1","Subdirección Jurídica","N/A","2023-02-01","2026-12-20","2023-02-01","2023-12-20","Finalizada","Funcionamiento","-","-","-","-","Talento Humano","Iniciativa dependencia","Defensa Jurídica","-","-","-"]
[null,68,"Coordinar con las Dependencias  del Ministerio de Hacienda y Crédito Público que se requieran para fortalecer los procesos de la Entidad","Coordinar con las Dependencias del Ministerio el intercambio de información que sean de interés para fortalecer los procesos del Ministerio y el apoyo de la Subdirección Jurídica a los mismos.","Convocatoria a reunión o lista de asistencia ","Diego Ignacio Rivera","Diana Marcela Barbosa","Liliana María Almeyda Gómez","Apo.6.2","Subdirección Jurídica","N/A","2023-02-01","2026-12-20","2023-02-01","2023-12-20","Finalizada","Funcionamiento","-","-","-","-","Talento Humano","Iniciativa dependencia","Defensa Jurídica","-","-","-"]
[null,69,"Gestionar el conocimiento y la innovación en las actuaciones administrativas de la Subdirección Jurídica y su apoyo o interacción con las áreas del MHCP y otras Entidades del Estado","i) Promover a través de la información existente y de la forma en que actúan las diferentes dependencias esquemas de apoyo que permitan mejorar la gestión legal y jurídica en procura de evitar la generación de daño antijurídico.   \nir) Identificar esquemas que permitan generar grupos de valor o interés para mejorar la gestión Jurídica en las diferentes actuaciones del MHCP.\niii) Apoyar jurídicamente a las áreas al interior del MHCP y a las Entidades del Estado que lo requieran.\niv) Promover la administración eficiente de los flujos de información.\nv) Promover las buenas prácticas en las actuaciones administrativas y jurídicas de la Subdirección Jurídica","Convocatoria a reunión o lista de asistencia o documento que contiene concepto jurídico o documento de operación del Sistema Oracle","Diego Ignacio Rivera","Sandra Díaz Castellanos","Sandra Mónica Acosta García - Liliana María Almeyda -  \n\n","Apo.5.1","Subdirección Jurídica","N/A","2023-02-01","2026-12-20","2023-02-01","2023-12-20","Finalizada","Funcionamiento","-","-","-","-","Talento Humano","Iniciativa dependencia","Defensa Jurídica","-","-","-"]
[null,70,"Determinar las deficiencias de las actuaciones procesales por parte de los apoderados de la entidad en los estudios y/o análisis que realiza la entidad de los procesos que cursan o hayan cursado en su contra, con el fin de proponer correctivos","Revisar mensualmente las alertas tempranas, a partir de la información que arrojada las herramientas tecnológicas que controla los términos en el ciclo de la defensa judicial.","Informe con registros cuantitativos y descriptivos de las alertas tempranas generadas en el mes","Diego Ignacio Rivera","Sandra Díaz Castellanos","Sandra Mónica Acosta García - Liliana María Almeyda -  \n","Apo.5.1","Subdirección Jurídica","N/A","2023-02-01","2026-12-20","2023-02-01","2023-12-20","Finalizada","Funcionamiento","-","-","-","-","Talento Humano","Iniciativa dependencia","Defensa Jurídica","-","-","-"]
[null,71,"Fortalecer el proceso de Defensa Jurídica en la Subdirección Jurídica acciones de tutela,  en articulación con otras dependencias del Ministerio","1. Identificar líneas de investigación para mapear (i) Temas frecuentes, (ir)Fortalezas, (iii) Limitaciones y (iv) Fallos favorables /condenatorios, en la defensa jurídica de acciones de tutela.\n\n2. Sistematizar la información recolectada (i) Tema, (ir) Pretensiones (iii) Insumos (Argumentos jurídicos.\n\n3. Analizar la información con el área competente.\n\n4. Determinar Oportunidades de Mejora.\n\n5. Generar documento final.","Documento de política de defensa en acciones de tutela","Diego Ignacio Rivera","Maira Alejandra Hernández\n","Sandra Mónica Acosta García - Liliana María Almeyda -  \n","Apo.5.1","Subdirección Jurídica","N/A","-","-","2023-02-01","2023-07-31","Finalizada","Funcionamiento","-","-","-","-","Talento Humano","Iniciativa dependencia","Defensa Jurídica","-","-","-"]